Body Name,Body,Supplier,Transaction Number,Payment Date,Amount,Directorate,Organisational Unit,Cost Centre/Detail Code,Cost Centre Description,Detail Code Description
Ashfield District Council,37UB,HEB Surveyors,V1011239,10/11/2022,120.00,Housing & Assets 2,Supplies & Services,G00302/D201011,Capital Receipts HRA,General Fees and Charges
Ashfield District Council,37UB,Davinhulme Security Dogs,V1009557,03/11/2022,511.50,Housing & Assets 2,Supplies & Services,C00264/D200008,FHS Fund,Payments to Contractors External
Ashfield District Council,37UB,Gleeds Building Surveying Ltd,V1011276,17/11/2022,14870.84,Place & Communities 2,Supplies & Services,C00265/D200008,FHS Fund,Payments to Contractors External
Ashfield District Council,37UB,Guy Taylor Associates,V1009493,03/11/2022,16780.00,Place & Communities 2,Supplies & Services,C00266/D200008,FHS Fund,Payments to Contractors External
Ashfield District Council,37UB,Kinver Business Solutions Ltd,V1009562,03/11/2022,1280.00,Place & Communities 2,Supplies & Services,C00265/D201019,FHS Fund,Project Management Fees
Ashfield District Council,37UB,Kinver Business Solutions Ltd,V1009562,03/11/2022,1280.00,Place & Communities 2,Supplies & Services,C00263/D201019,FHS Fund,Project Management Fees
Ashfield District Council,37UB,Kinver Business Solutions Ltd,V1009562,03/11/2022,1280.00,Place & Communities 2,Supplies & Services,C00264/D201019,FHS Fund,Project Management Fees
Ashfield District Council,37UB,Miller Knight Resource Management Ltd,V1010736,10/11/2022,118235.06,Place & Communities 2,Supplies & Services,C00265/D200008,FHS Fund,Payments to Contractors External
Ashfield District Council,37UB,Miller Knight Resource Management Ltd,V1011897,24/11/2022,180591.04,Place & Communities 2,Supplies & Services,C00265/D200008,FHS Fund,Payments to Contractors External
Ashfield District Council,37UB,ThreeRooms Ltd,V1010679,10/11/2022,1875.00,Place & Communities 2,Supplies & Services,C00264/D200008,FHS Fund,Payments to Contractors External
Ashfield District Council,37UB,ThreeRooms Ltd,V1010679,10/11/2022,1875.00,Place & Communities 2,Supplies & Services,C00263/D200008,FHS Fund,Payments to Contractors External
Ashfield District Council,37UB,Greenacre Recruitment Limited,V1010570,10/11/2022,1800.00,Chief Executive 2,Supplies & Services,C00235/D200008,General Fund,Payments to Contractors External
Ashfield District Council,37UB,Greenacre Recruitment Limited,V1010749,10/11/2022,1950.00,Chief Executive 2,Supplies & Services,C00235/D200008,General Fund,Payments to Contractors External
Ashfield District Council,37UB,Greenacre Recruitment Limited,V1010750,10/11/2022,1800.00,Chief Executive 2,Supplies & Services,C00235/D200008,General Fund,Payments to Contractors External
Ashfield District Council,37UB,Greenacre Recruitment Limited,V1011417,17/11/2022,2400.00,Chief Executive 2,Supplies & Services,C00235/D200008,General Fund,Payments to Contractors External
Ashfield District Council,37UB,Bronbury Services Ltd,V1009585,03/11/2022,265.00,Housing & Assets 2,Supplies & Services,G00002001/D200008,General Fund,Payments to Contractors External
Ashfield District Council,37UB,Bronbury Services Ltd,V1011251,10/11/2022,5610.00,Housing & Assets 2,Supplies & Services,G00002001/D200008,General Fund,Payments to Contractors External
Ashfield District Council,37UB,D Cresswell & Son (Electricians) Ltd,V1009417,03/11/2022,3817.00,Housing & Assets 2,Supplies & Services,G00002001/D200008,General Fund,Payments to Contractors External
Ashfield District Council,37UB,David P Formon B.D.C. Ltd,V1009610,03/11/2022,1065.00,Housing & Assets 2,Supplies & Services,G00002001/D200008,General Fund,Payments to Contractors External
Ashfield District Council,37UB,David P Formon B.D.C. Ltd,V1009611,03/11/2022,975.00,Housing & Assets 2,Supplies & Services,G00002001/D200008,General Fund,Payments to Contractors External
Ashfield District Council,37UB,David P Formon B.D.C. Ltd,V1009612,03/11/2022,985.00,Housing & Assets 2,Supplies & Services,G00002001/D200008,General Fund,Payments to Contractors External
Ashfield District Council,37UB,Ian Williams Ltd,V1011470,17/11/2022,893.10,Housing & Assets 2,Supplies & Services,C00254/D200008,General Fund,Payments to Contractors External
Ashfield District Council,37UB,Lindum Group Limited,V1009615,03/11/2022,1522.76,Housing & Assets 2,Supplies & Services,C00269/D200008,General Fund,Payments to Contractors External
Ashfield District Council,37UB,Lindum Group Limited,V1011462,17/11/2022,14020.39,Housing & Assets 2,Supplies & Services,C00269/D200008,General Fund,Payments to Contractors External
Ashfield District Council,37UB,Obam Lift Services Ltd,V1008566,24/11/2022,5160.00,Housing & Assets 2,Supplies & Services,G00002001/D200008,General Fund,Payments to Contractors External
Ashfield District Council,37UB,Obam Lift Services Ltd,V1011891,24/11/2022,3109.00,Housing & Assets 2,Supplies & Services,G00002001/D200008,General Fund,Payments to Contractors External
Ashfield District Council,37UB,PB Property Developments,V1009586,03/11/2022,6671.00,Housing & Assets 2,Supplies & Services,G00002001/D200008,General Fund,Payments to Contractors External
Ashfield District Council,37UB,T Grant & Son Ltd,V1011830,24/11/2022,6943.00,Housing & Assets 2,Supplies & Services,G00002001/D200008,General Fund,Payments to Contractors External
Ashfield District Council,37UB,TK Access Solutions Ltd,V1012261,24/11/2022,4035.00,Housing & Assets 2,Supplies & Services,G00002001/D200008,General Fund,Payments to Contractors External
Ashfield District Council,37UB,Freeths LLP,V1011388,17/11/2022,1089.00,Legal & Governance 2,Supplies & Services,C00235/D200004,General Fund,Legal Expenses
Ashfield District Council,37UB,Andy Dean Business Solutions Ltd,V1011318,17/11/2022,4355.80,Place & Communities 2,Supplies & Services,c00255003/D200008,General Fund,Payments to Contractors External
Ashfield District Council,37UB,British Openreach,V1011311,17/11/2022,929.34,Place & Communities 2,Supplies & Services,C00255008/D200008,General Fund,Payments to Contractors External
Ashfield District Council,37UB,Fluid Ideas Ltd,V1011807,24/11/2022,50.00,Place & Communities 2,Supplies & Services,C00255101/d200008,General Fund,Payments to Contractors External
Ashfield District Council,37UB,Gleeds Advisory Ltd,V1003417,10/11/2022,19600.00,Place & Communities 2,Supplies & Services,C00255018/D200008,General Fund,Payments to Contractors External
Ashfield District Council,37UB,Guy Taylor Associates,V1009493,03/11/2022,20925.00,Place & Communities 2,Supplies & Services,C00255012/D200008,General Fund,Payments to Contractors External
Ashfield District Council,37UB,Kier Construction - North and Scotland,V1009559,03/11/2022,112172.91,Place & Communities 2,Supplies & Services,C00235/D200008,General Fund,Payments to Contractors External
Ashfield District Council,37UB,Kier Construction - North and Scotland,V1010579,03/11/2022,40300.52,Place & Communities 2,Supplies & Services,C00262/D200008,General Fund,Payments to Contractors External
Ashfield District Council,37UB,Kier Construction - North and Scotland,V1010579,03/11/2022,103056.59,Place & Communities 2,Supplies & Services,C00260/D200008,General Fund,Payments to Contractors External
Ashfield District Council,37UB,Kinver Business Solutions Ltd,V1009413,03/11/2022,3266.60,Place & Communities 2,Supplies & Services,C00255008/D200008,General Fund,Payments to Contractors External
Ashfield District Council,37UB,Kinver Business Solutions Ltd,V1009563,03/11/2022,1280.00,Place & Communities 2,Supplies & Services,C00255013/D201019,General Fund,Project Management Fees
Ashfield District Council,37UB,Kinver Business Solutions Ltd,V1009563,03/11/2022,1280.00,Place & Communities 2,Supplies & Services,C00255011/D201019,General Fund,Project Management Fees
Ashfield District Council,37UB,Kinver Business Solutions Ltd,V1009563,03/11/2022,1280.00,Place & Communities 2,Supplies & Services,C00255017/D201019,General Fund,Project Management Fees
Ashfield District Council,37UB,Kinver Business Solutions Ltd,V1009563,03/11/2022,1280.00,Place & Communities 2,Supplies & Services,C00255001/D201019,General Fund,Project Management Fees
Ashfield District Council,37UB,Kinver Business Solutions Ltd,V1009563,03/11/2022,1280.00,Place & Communities 2,Supplies & Services,C00255006/D201019,General Fund,Project Management Fees
Ashfield District Council,37UB,Kinver Business Solutions Ltd,V1009563,03/11/2022,1280.00,Place & Communities 2,Supplies & Services,C00255002/D201019,General Fund,Project Management Fees
Ashfield District Council,37UB,Kinver Business Solutions Ltd,V1009563,03/11/2022,1280.00,Place & Communities 2,Supplies & Services,C00255008/D201019,General Fund,Project Management Fees
Ashfield District Council,37UB,Maber Associates Ltd,V1009436,03/11/2022,3208.50,Place & Communities 2,Supplies & Services,C00255002/D201020,General Fund,Design Fees
Ashfield District Council,37UB,Maber Associates Ltd,V1011316,17/11/2022,3208.50,Place & Communities 2,Supplies & Services,C00255003/D201020,General Fund,Design Fees
Ashfield District Council,37UB,P S Marsden (Lawnmower Services) Ltd,V1011244,10/11/2022,19860.00,Place & Communities 2,Supplies & Services,G00010001/D001001,General Fund,Equipment Purchase
Ashfield District Council,37UB,Perfect Circle JV Ltd,V1010684,10/11/2022,61751.63,Place & Communities 2,Supplies & Services,C00255008/D200008,General Fund,Payments to Contractors External
Ashfield District Council,37UB,Perfect Circle JV Ltd,V1010685,10/11/2022,16222.35,Place & Communities 2,Supplies & Services,C00255008/D200008,General Fund,Payments to Contractors External
Ashfield District Council,37UB,Perfect Circle JV Ltd,V1010690,10/11/2022,29490.36,Place & Communities 2,Supplies & Services,C00255008/D200008,General Fund,Payments to Contractors External
Ashfield District Council,37UB,Pi SQ Ltd,V1011408,17/11/2022,13989.50,Place & Communities 2,Supplies & Services,C00235/D200008,General Fund,Payments to Contractors External
Ashfield District Council,37UB,Semantic Limited,V1011319,17/11/2022,5000.00,Place & Communities 2,Supplies & Services,c00255003/d200008,General Fund,Payments to Contractors External
Ashfield District Council,37UB,Sports & Leisure Management Ltd,V1011824,24/11/2022,90822.00,Place & Communities 2,Supplies & Services,C00281/D200008,General Fund,Payments to Contractors External
Ashfield District Council,37UB,Vivid Resourcing,V1009437,03/11/2022,2790.00,Place & Communities 2,Supplies & Services,C00255004/D200008,General Fund,Payments to Contractors External
Ashfield District Council,37UB,Vivid Resourcing,V1011320,17/11/2022,2790.00,Place & Communities 2,Supplies & Services,C00255004/D200008,General Fund,Payments to Contractors External
Ashfield District Council,37UB,Vivid Resourcing,V1011324,17/11/2022,930.00,Place & Communities 2,Supplies & Services,C00255004/D200008,General Fund,Payments to Contractors External
Ashfield District Council,37UB,Vivid Resourcing,V1011328,17/11/2022,2790.00,Place & Communities 2,Supplies & Services,C00255004/D200008,General Fund,Payments to Contractors External
Ashfield District Council,37UB,Vivid Resourcing,V1011799,24/11/2022,5580.00,Place & Communities 2,Supplies & Services,C00255004/D200008,General Fund,Payments to Contractors External
Ashfield District Council,37UB,Dulux Decorator Centre,V1011755,17/11/2022,90.56,Housing & Assets 2,Supplies & Services,G00450003/D200033,HRA Decent Homes,Decoration Vouchers
Ashfield District Council,37UB,Dulux Decorator Centre,V1011756,17/11/2022,83.19,Housing & Assets 2,Supplies & Services,G00450003/D200033,HRA Decent Homes,Decoration Vouchers
Ashfield District Council,37UB,Miltons Wallpapers Limited,V1009465,03/11/2022,1693.98,Housing & Assets 2,Supplies & Services,G00450003/D200033,HRA Decent Homes,Decoration Vouchers
Ashfield District Council,37UB,Miltons Wallpapers Limited,V1009466,03/11/2022,1694.10,Housing & Assets 2,Supplies & Services,G00450003/D200033,HRA Decent Homes,Decoration Vouchers
Ashfield District Council,37UB,Miltons Wallpapers Limited,V1009467,03/11/2022,1491.32,Housing & Assets 2,Supplies & Services,G00450003/D200033,HRA Decent Homes,Decoration Vouchers
Ashfield District Council,37UB,Miltons Wallpapers Limited,V1012244,24/11/2022,2728.00,Housing & Assets 2,Supplies & Services,G00450003/D200033,HRA Decent Homes,Decoration Vouchers
Ashfield District Council,37UB,Severn Trent Water Limited,V1011367,15/11/2022,169.50,Housing & Assets 2,Supplies & Services,G00923/D200008,HRA Decent Homes,Payments to Contractors External
Ashfield District Council,37UB,Westville Limited,V1011758,17/11/2022,1621.00,Housing & Assets 2,Supplies & Services,G00460001/D200008,HRA Decent Homes,Payments to Contractors External
Ashfield District Council,37UB,Wilko Retail Limited,V1009368,03/11/2022,125.00,Housing & Assets 2,Supplies & Services,G00450003/D200033,HRA Decent Homes,Decoration Vouchers
Ashfield District Council,37UB,Wilko Retail Limited,V1009369,03/11/2022,62.50,Housing & Assets 2,Supplies & Services,G00450003/D200033,HRA Decent Homes,Decoration Vouchers
Ashfield District Council,37UB,Wilko Retail Limited,V1009370,03/11/2022,62.50,Housing & Assets 2,Supplies & Services,G00450003/D200033,HRA Decent Homes,Decoration Vouchers
Ashfield District Council,37UB,Wilko Retail Limited,V1009371,03/11/2022,38.96,Housing & Assets 2,Supplies & Services,G00450003/D200033,HRA Decent Homes,Decoration Vouchers
Ashfield District Council,37UB,Wilko Retail Limited,V1009372,03/11/2022,135.00,Housing & Assets 2,Supplies & Services,G00450003/D200033,HRA Decent Homes,Decoration Vouchers
Ashfield District Council,37UB,Wilko Retail Limited,V1009373,03/11/2022,125.00,Housing & Assets 2,Supplies & Services,G00450003/D200033,HRA Decent Homes,Decoration Vouchers
Ashfield District Council,37UB,Wilko Retail Limited,V1009374,03/11/2022,62.50,Housing & Assets 2,Supplies & Services,G00450003/D200033,HRA Decent Homes,Decoration Vouchers
Ashfield District Council,37UB,Wilko Retail Limited,V1009375,03/11/2022,85.00,Housing & Assets 2,Supplies & Services,G00450003/D200033,HRA Decent Homes,Decoration Vouchers
Ashfield District Council,37UB,Wilko Retail Limited,V1009376,03/11/2022,72.50,Housing & Assets 2,Supplies & Services,G00450003/D200033,HRA Decent Homes,Decoration Vouchers
Ashfield District Council,37UB,Wilko Retail Limited,V1009377,03/11/2022,63.12,Housing & Assets 2,Supplies & Services,G00450003/D200033,HRA Decent Homes,Decoration Vouchers
Ashfield District Council,37UB,Wilko Retail Limited,V1009378,03/11/2022,66.67,Housing & Assets 2,Supplies & Services,G00450003/D200033,HRA Decent Homes,Decoration Vouchers
Ashfield District Council,37UB,Wilko Retail Limited,V1009396,03/11/2022,66.67,Housing & Assets 2,Supplies & Services,G00450003/D200033,HRA Decent Homes,Decoration Vouchers
Ashfield District Council,37UB,Wilko Retail Limited,V1009397,03/11/2022,50.83,Housing & Assets 2,Supplies & Services,G00450003/D200033,HRA Decent Homes,Decoration Vouchers
Ashfield District Council,37UB,Wilko Retail Limited,V1009398,03/11/2022,135.00,Housing & Assets 2,Supplies & Services,G00450003/D200033,HRA Decent Homes,Decoration Vouchers
Ashfield District Council,37UB,Wilko Retail Limited,V1009399,03/11/2022,53.33,Housing & Assets 2,Supplies & Services,G00450003/D200033,HRA Decent Homes,Decoration Vouchers
Ashfield District Council,37UB,Wilko Retail Limited,V1009400,03/11/2022,62.50,Housing & Assets 2,Supplies & Services,G00450003/D200033,HRA Decent Homes,Decoration Vouchers
Ashfield District Council,37UB,Wilko Retail Limited,V1009401,03/11/2022,58.33,Housing & Assets 2,Supplies & Services,G00450003/D200033,HRA Decent Homes,Decoration Vouchers
Ashfield District Council,37UB,Wilko Retail Limited,V1009402,03/11/2022,312.50,Housing & Assets 2,Supplies & Services,G00450003/D200033,HRA Decent Homes,Decoration Vouchers
Ashfield District Council,37UB,Wilko Retail Limited,V1009403,03/11/2022,125.00,Housing & Assets 2,Supplies & Services,G00450003/D200033,HRA Decent Homes,Decoration Vouchers
Ashfield District Council,37UB,Wilko Retail Limited,V1009404,03/11/2022,62.50,Housing & Assets 2,Supplies & Services,G00450003/D200033,HRA Decent Homes,Decoration Vouchers
Ashfield District Council,37UB,Wilko Retail Limited,V1009405,03/11/2022,175.29,Housing & Assets 2,Supplies & Services,G00450003/D200033,HRA Decent Homes,Decoration Vouchers
Ashfield District Council,37UB,Wilko Retail Limited,V1009457,03/11/2022,35.83,Housing & Assets 2,Supplies & Services,G00450003/D200033,HRA Decent Homes,Decoration Vouchers
Ashfield District Council,37UB,Wilko Retail Limited,V1009458,03/11/2022,62.50,Housing & Assets 2,Supplies & Services,G00450003/D200033,HRA Decent Homes,Decoration Vouchers
Ashfield District Council,37UB,Wilko Retail Limited,V1009459,03/11/2022,125.00,Housing & Assets 2,Supplies & Services,G00450003/D200033,HRA Decent Homes,Decoration Vouchers
Ashfield District Council,37UB,Wilko Retail Limited,V1009460,03/11/2022,20.83,Housing & Assets 2,Supplies & Services,G00450003/D200033,HRA Decent Homes,Decoration Vouchers
Ashfield District Council,37UB,Wilko Retail Limited,V1009461,03/11/2022,62.50,Housing & Assets 2,Supplies & Services,G00450003/D200033,HRA Decent Homes,Decoration Vouchers
Ashfield District Council,37UB,Wilko Retail Limited,V1009462,03/11/2022,43.33,Housing & Assets 2,Supplies & Services,G00450003/D200033,HRA Decent Homes,Decoration Vouchers
Ashfield District Council,37UB,Wilko Retail Limited,V1009463,03/11/2022,125.00,Housing & Assets 2,Supplies & Services,G00450003/D200033,HRA Decent Homes,Decoration Vouchers
Ashfield District Council,37UB,Wilko Retail Limited,V1009464,03/11/2022,62.50,Housing & Assets 2,Supplies & Services,G00450003/D200033,HRA Decent Homes,Decoration Vouchers
Ashfield District Council,37UB,Wilko Retail Limited,V1009468,03/11/2022,62.50,Housing & Assets 2,Supplies & Services,G00450003/D200033,HRA Decent Homes,Decoration Vouchers
Ashfield District Council,37UB,Wilko Retail Limited,V1009469,03/11/2022,62.50,Housing & Assets 2,Supplies & Services,G00450003/D200033,HRA Decent Homes,Decoration Vouchers
Ashfield District Council,37UB,Wilko Retail Limited,V1009596,03/11/2022,125.00,Housing & Assets 2,Supplies & Services,G00450003/D200033,HRA Decent Homes,Decoration Vouchers
Ashfield District Council,37UB,Wilko Retail Limited,V1009597,03/11/2022,50.83,Housing & Assets 2,Supplies & Services,G00450003/D200033,HRA Decent Homes,Decoration Vouchers
Ashfield District Council,37UB,Wilko Retail Limited,V1009598,03/11/2022,65.42,Housing & Assets 2,Supplies & Services,G00450003/D200033,HRA Decent Homes,Decoration Vouchers
Ashfield District Council,37UB,Wilko Retail Limited,V1009599,03/11/2022,62.50,Housing & Assets 2,Supplies & Services,G00450003/D200033,HRA Decent Homes,Decoration Vouchers
Ashfield District Council,37UB,Wilko Retail Limited,V1009600,03/11/2022,135.00,Housing & Assets 2,Supplies & Services,G00450003/D200033,HRA Decent Homes,Decoration Vouchers
Ashfield District Council,37UB,Wilko Retail Limited,V1009601,03/11/2022,66.67,Housing & Assets 2,Supplies & Services,G00450003/D200033,HRA Decent Homes,Decoration Vouchers
Ashfield District Council,37UB,Wilko Retail Limited,V1009602,03/11/2022,50.00,Housing & Assets 2,Supplies & Services,G00450003/D200033,HRA Decent Homes,Decoration Vouchers
Ashfield District Council,37UB,Wilko Retail Limited,V1009603,03/11/2022,62.50,Housing & Assets 2,Supplies & Services,G00450003/D200033,HRA Decent Homes,Decoration Vouchers
Ashfield District Council,37UB,Wilko Retail Limited,V1009604,03/11/2022,61.25,Housing & Assets 2,Supplies & Services,G00450003/D200033,HRA Decent Homes,Decoration Vouchers
Ashfield District Council,37UB,Wilko Retail Limited,V1009605,03/11/2022,46.67,Housing & Assets 2,Supplies & Services,G00450003/D200033,HRA Decent Homes,Decoration Vouchers
Ashfield District Council,37UB,Wilko Retail Limited,V1009606,03/11/2022,62.50,Housing & Assets 2,Supplies & Services,G00450003/D200033,HRA Decent Homes,Decoration Vouchers
Ashfield District Council,37UB,Wilko Retail Limited,V1009607,03/11/2022,113.33,Housing & Assets 2,Supplies & Services,G00450003/D200033,HRA Decent Homes,Decoration Vouchers
Ashfield District Council,37UB,Wilko Retail Limited,V1009608,03/11/2022,2.14,Housing & Assets 2,Supplies & Services,G00450003/D200033,HRA Decent Homes,Decoration Vouchers
Ashfield District Council,37UB,Wilko Retail Limited,V1009608,03/11/2022,268.96,Housing & Assets 2,Supplies & Services,G00450003/D200033,HRA Decent Homes,Decoration Vouchers
Ashfield District Council,37UB,Wilko Retail Limited,V1011851,24/11/2022,121.87,Housing & Assets 2,Supplies & Services,G00450003/D200033,HRA Decent Homes,Decoration Vouchers
Ashfield District Council,37UB,Wilko Retail Limited,V1011852,24/11/2022,116.67,Housing & Assets 2,Supplies & Services,G00450003/D200033,HRA Decent Homes,Decoration Vouchers
Ashfield District Council,37UB,Wilko Retail Limited,V1011853,24/11/2022,51.67,Housing & Assets 2,Supplies & Services,G00450003/D200033,HRA Decent Homes,Decoration Vouchers
Ashfield District Council,37UB,Wilko Retail Limited,V1011854,24/11/2022,137.50,Housing & Assets 2,Supplies & Services,G00450003/D200033,HRA Decent Homes,Decoration Vouchers
Ashfield District Council,37UB,Wilko Retail Limited,V1011855,24/11/2022,62.50,Housing & Assets 2,Supplies & Services,G00450003/D200033,HRA Decent Homes,Decoration Vouchers
Ashfield District Council,37UB,Wilko Retail Limited,V1011856,24/11/2022,62.50,Housing & Assets 2,Supplies & Services,G00450003/D200033,HRA Decent Homes,Decoration Vouchers
Ashfield District Council,37UB,Wilko Retail Limited,V1011857,24/11/2022,192.21,Housing & Assets 2,Supplies & Services,G00450003/D200033,HRA Decent Homes,Decoration Vouchers
Ashfield District Council,37UB,Wilko Retail Limited,V1011858,24/11/2022,266.67,Housing & Assets 2,Supplies & Services,G00450003/D200033,HRA Decent Homes,Decoration Vouchers
Ashfield District Council,37UB,Wilko Retail Limited,V1011859,24/11/2022,167.50,Housing & Assets 2,Supplies & Services,G00450003/D200033,HRA Decent Homes,Decoration Vouchers
Ashfield District Council,37UB,Wilko Retail Limited,V1011860,24/11/2022,125.00,Housing & Assets 2,Supplies & Services,G00450003/D200033,HRA Decent Homes,Decoration Vouchers
Ashfield District Council,37UB,Wilko Retail Limited,V1011861,24/11/2022,109.17,Housing & Assets 2,Supplies & Services,G00450003/D200033,HRA Decent Homes,Decoration Vouchers
Ashfield District Council,37UB,Wilko Retail Limited,V1011862,24/11/2022,62.50,Housing & Assets 2,Supplies & Services,G00450003/D200033,HRA Decent Homes,Decoration Vouchers
Ashfield District Council,37UB,Wilko Retail Limited,V1011863,24/11/2022,191.67,Housing & Assets 2,Supplies & Services,G00450003/D200033,HRA Decent Homes,Decoration Vouchers
Ashfield District Council,37UB,Wilko Retail Limited,V1011864,24/11/2022,53.33,Housing & Assets 2,Supplies & Services,G00450003/D200033,HRA Decent Homes,Decoration Vouchers
Ashfield District Council,37UB,Wilko Retail Limited,V1011865,24/11/2022,46.67,Housing & Assets 2,Supplies & Services,G00450003/D200033,HRA Decent Homes,Decoration Vouchers
Ashfield District Council,37UB,Wilko Retail Limited,V1011866,24/11/2022,66.67,Housing & Assets 2,Supplies & Services,G00450003/D200033,HRA Decent Homes,Decoration Vouchers
Ashfield District Council,37UB,Dulux Decorator Centre,V1011283,17/11/2022,261.12,R & B Transformation 2,Supplies & Services,G00450003/D200033,HRA Decent Homes,Decoration Vouchers
Ashfield District Council,37UB,Dulux Decorator Centre,V1011218,18/11/2022,34.30,R & B Transformation 2,Supplies & Services,G00450003/D200033,HRA Decent Homes,Decoration Vouchers
Ashfield District Council,37UB,Dulux Decorator Centre,V1012239,24/11/2022,90.65,R & B Transformation 2,Supplies & Services,G00450003/D200033,HRA Decent Homes,Decoration Vouchers
Ashfield District Council,37UB,Dulux Decorator Centre,V1012240,24/11/2022,62.51,R & B Transformation 2,Supplies & Services,G00450003/D200033,HRA Decent Homes,Decoration Vouchers
Ashfield District Council,37UB,J Tomlinson Ltd,V1011369,17/11/2022,17907.31,R & B Transformation 2,Supplies & Services,G00470001/D200008,HRA Decent Homes,Payments to Contractors External
Ashfield District Council,37UB,J Tomlinson Ltd,V1011369,17/11/2022,75376.39,R & B Transformation 2,Supplies & Services,G00480001/D200008,HRA Decent Homes,Payments to Contractors External
Ashfield District Council,37UB,J Tomlinson Ltd,V1011369,17/11/2022,90239.71,R & B Transformation 2,Supplies & Services,G00450006/D200008,HRA Decent Homes,Payments to Contractors External
Ashfield District Council,37UB,J Tomlinson Ltd,V1011369,17/11/2022,115344.64,R & B Transformation 2,Supplies & Services,G00450004/D200008,HRA Decent Homes,Payments to Contractors External
Ashfield District Council,37UB,J Tomlinson Ltd,V1011369,17/11/2022,113618.75,R & B Transformation 2,Supplies & Services,G00450001/D200008,HRA Decent Homes,Payments to Contractors External
Ashfield District Council,37UB,J Tomlinson Ltd,V1011369,17/11/2022,29947.46,R & B Transformation 2,Supplies & Services,G00450005/D200008,HRA Decent Homes,Payments to Contractors External
Ashfield District Council,37UB,PPG Architectural Coatings UK Ltd,V1011350,17/11/2022,62.50,R & B Transformation 2,Supplies & Services,G00450003/D200033,HRA Decent Homes,Decoration Vouchers
Ashfield District Council,37UB,PPG Architectural Coatings UK Ltd,V1011351,17/11/2022,62.50,R & B Transformation 2,Supplies & Services,G00450003/D200033,HRA Decent Homes,Decoration Vouchers
Ashfield District Council,37UB,PPG Architectural Coatings UK Ltd,V1011355,17/11/2022,125.00,R & B Transformation 2,Supplies & Services,G00450003/D200033,HRA Decent Homes,Decoration Vouchers
Ashfield District Council,37UB,PPG Architectural Coatings UK Ltd,V1011356,17/11/2022,197.50,R & B Transformation 2,Supplies & Services,G00450003/D200033,HRA Decent Homes,Decoration Vouchers
Ashfield District Council,37UB,Total Hire & Sales Ltd,V1011532,21/11/2022,58.80,R & B Transformation 2,Supplies & Services,G00450008/D200008,HRA Decent Homes,Payments to Contractors External
Ashfield District Council,37UB,Eversheds Sutherland (International) LLP,V1011287,17/11/2022,5049.00,Housing & Assets 2,Supplies & Services,C00280/D200008,HRA General,Payments to Contractors External
Ashfield District Council,37UB,Lindum Group Limited,V1010694,10/11/2022,234218.54,Housing & Assets 2,Supplies & Services,G00931/D200008,HRA General,Payments to Contractors External
Ashfield District Council,37UB,Lindum Group Limited,V1010740,10/11/2022,129935.41,Housing & Assets 2,Supplies & Services,C00282/D200008,HRA General,Payments to Contractors External
Ashfield District Council,37UB,Rider Levett Bucknall UK Ltd,V1009432,03/11/2022,2200.00,Housing & Assets 2,Supplies & Services,C00282/D200008,HRA General,Payments to Contractors External
Ashfield District Council,37UB,Rider Levett Bucknall UK Ltd,V1009433,03/11/2022,2100.00,Housing & Assets 2,Supplies & Services,G00931/D200008,HRA General,Payments to Contractors External
Ashfield District Council,37UB,Rider Levett Bucknall UK Ltd,V1009434,03/11/2022,3600.00,Housing & Assets 2,Supplies & Services,C00280/D200008,HRA General,Payments to Contractors External
Ashfield District Council,37UB,Our Centre,V1011906,24/11/2022,140.00,Chief Executive 2,Transport Related Expenses,A40000/C301,Chief Executive,Rail fares
Ashfield District Council,37UB,Karki & Sons Ltd,V1011366,17/11/2022,14.85,R & B Transformation 2,Supplies & Services,A40000/D101,Chief Executive,Reference books & periodicals
Ashfield District Council,37UB,Karki & Sons Ltd,V1011366,17/11/2022,28.35,R & B Transformation 2,Supplies & Services,A01001006/D101,Democratic Core,Reference books & periodicals
Ashfield District Council,37UB,The Commandery of King Offa,V1011396,17/11/2022,52.00,R & B Transformation 2,Supplies & Services,A01001/D400009,Democratic Core,Civic Events
Ashfield District Council,37UB,AKW Medi-Care Limited,V1010472,07/11/2022,609.16,R & B Transformation 2,Supplies & Services,T35026/D200008,Housing Stock Accounts,Payments to Contractors External
Ashfield District Council,37UB,Arden Winch & Co Ltd,V1010473,07/11/2022,679.20,R & B Transformation 2,Supplies & Services,T35026/D200008,Housing Stock Accounts,Payments to Contractors External
Ashfield District Council,37UB,Byron Glass Co Ltd,V1012197,28/11/2022,28.41,R & B Transformation 2,Supplies & Services,T35026/D200008,Housing Stock Accounts,Payments to Contractors External
Ashfield District Council,37UB,Crown Paints Limited,V1011495,21/11/2022,134.10,R & B Transformation 2,Supplies & Services,T35026/D200008,Housing Stock Accounts,Payments to Contractors External
Ashfield District Council,37UB,Crown Paints Limited,V1011495,21/11/2022,135.50,R & B Transformation 2,Supplies & Services,T35026/D200008,Housing Stock Accounts,Payments to Contractors External
Ashfield District Council,37UB,Crown Paints Limited,V1011498,21/11/2022,28.25,R & B Transformation 2,Supplies & Services,T35026/D200008,Housing Stock Accounts,Payments to Contractors External
Ashfield District Council,37UB,Crown Paints Limited,V1011498,21/11/2022,189.70,R & B Transformation 2,Supplies & Services,T35026/D200008,Housing Stock Accounts,Payments to Contractors External
Ashfield District Council,37UB,Crown Paints Limited,V1011498,21/11/2022,134.10,R & B Transformation 2,Supplies & Services,T35026/D200008,Housing Stock Accounts,Payments to Contractors External
Ashfield District Council,37UB,Crown Paints Limited,V1012202,28/11/2022,137.80,R & B Transformation 2,Supplies & Services,T35026/D200008,Housing Stock Accounts,Payments to Contractors External
Ashfield District Council,37UB,Crown Paints Limited,V1012202,28/11/2022,68.90,R & B Transformation 2,Supplies & Services,T35026/D200008,Housing Stock Accounts,Payments to Contractors External
Ashfield District Council,37UB,Door-Stop International Ltd,V1011499,21/11/2022,467.43,R & B Transformation 2,Supplies & Services,T35026/D200008,Housing Stock Accounts,Payments to Contractors External
Ashfield District Council,37UB,Door-Stop International Ltd,V1011500,21/11/2022,451.63,R & B Transformation 2,Supplies & Services,T35026/D200008,Housing Stock Accounts,Payments to Contractors External
Ashfield District Council,37UB,Door-Stop International Ltd,V1011501,21/11/2022,439.13,R & B Transformation 2,Supplies & Services,T35026/D200008,Housing Stock Accounts,Payments to Contractors External
Ashfield District Council,37UB,Door-Stop International Ltd,V1012203,28/11/2022,430.63,R & B Transformation 2,Supplies & Services,T35026/D200008,Housing Stock Accounts,Payments to Contractors External
Ashfield District Council,37UB,Door-Stop International Ltd,V1012204,28/11/2022,506.16,R & B Transformation 2,Supplies & Services,T35026/D200008,Housing Stock Accounts,Payments to Contractors External
Ashfield District Council,37UB,Grafton Merchanting GB Ltd t/a Jackson Buildbase,V1012105,28/11/2022,75.50,R & B Transformation 2,Supplies & Services,T35026/D200008,Housing Stock Accounts,Payments to Contractors External
Ashfield District Council,37UB,Greenham Trading Ltd,V1011503,21/11/2022,147.96,R & B Transformation 2,Supplies & Services,T35026/D200008,Housing Stock Accounts,Payments to Contractors External
Ashfield District Council,37UB,Greenham Trading Ltd,V1011504,21/11/2022,62.50,R & B Transformation 2,Supplies & Services,T35026/D200008,Housing Stock Accounts,Payments to Contractors External
Ashfield District Council,37UB,High Park Industries Ltd,V1011520,21/11/2022,54.87,R & B Transformation 2,Supplies & Services,T35026/D200008,Housing Stock Accounts,Payments to Contractors External
Ashfield District Council,37UB,Huws Gray Limited,V1011156,14/11/2022,157.10,R & B Transformation 2,Supplies & Services,T35026/D200008,Housing Stock Accounts,Payments to Contractors External
Ashfield District Council,37UB,Huws Gray Limited,V1011160,14/11/2022,158.00,R & B Transformation 2,Supplies & Services,T35026/D200008,Housing Stock Accounts,Payments to Contractors External
Ashfield District Council,37UB,Huws Gray Limited,V1011163,14/11/2022,84.40,R & B Transformation 2,Supplies & Services,T35026/D200008,Housing Stock Accounts,Payments to Contractors External
Ashfield District Council,37UB,Huws Gray Limited,V1011164,14/11/2022,530.00,R & B Transformation 2,Supplies & Services,T35026/D200008,Housing Stock Accounts,Payments to Contractors External
Ashfield District Council,37UB,Huws Gray Limited,V1011165,14/11/2022,318.00,R & B Transformation 2,Supplies & Services,T35026/D200008,Housing Stock Accounts,Payments to Contractors External
Ashfield District Council,37UB,Huws Gray Limited,V1011176,14/11/2022,211.24,R & B Transformation 2,Supplies & Services,T35026/D200008,Housing Stock Accounts,Payments to Contractors External
Ashfield District Council,37UB,Huws Gray Limited,V1011176,14/11/2022,324.00,R & B Transformation 2,Supplies & Services,T35026/D200008,Housing Stock Accounts,Payments to Contractors External
Ashfield District Council,37UB,Huws Gray Limited,V1011176,14/11/2022,165.15,R & B Transformation 2,Supplies & Services,T35026/D200008,Housing Stock Accounts,Payments to Contractors External
Ashfield District Council,37UB,Huws Gray Limited,V1011177,14/11/2022,209.40,R & B Transformation 2,Supplies & Services,T35026/D200008,Housing Stock Accounts,Payments to Contractors External
Ashfield District Council,37UB,Huws Gray Limited,V1011177,14/11/2022,151.65,R & B Transformation 2,Supplies & Services,T35026/D200008,Housing Stock Accounts,Payments to Contractors External
Ashfield District Council,37UB,Huws Gray Limited,V1011534,21/11/2022,400.40,R & B Transformation 2,Supplies & Services,T35026/D200008,Housing Stock Accounts,Payments to Contractors External
Ashfield District Council,37UB,Huws Gray Limited,V1011535,21/11/2022,18.76,R & B Transformation 2,Supplies & Services,T35026/D200008,Housing Stock Accounts,Payments to Contractors External
Ashfield District Council,37UB,Huws Gray Limited,V1011536,21/11/2022,168.80,R & B Transformation 2,Supplies & Services,T35026/D200008,Housing Stock Accounts,Payments to Contractors External
Ashfield District Council,37UB,Huws Gray Limited,V1011537,21/11/2022,510.60,R & B Transformation 2,Supplies & Services,T35026/D200008,Housing Stock Accounts,Payments to Contractors External
Ashfield District Council,37UB,Huws Gray Limited,V1011538,21/11/2022,74.40,R & B Transformation 2,Supplies & Services,T35026/D200008,Housing Stock Accounts,Payments to Contractors External
Ashfield District Council,37UB,Huws Gray Limited,V1011539,21/11/2022,235.65,R & B Transformation 2,Supplies & Services,T35026/D200008,Housing Stock Accounts,Payments to Contractors External
Ashfield District Council,37UB,Huws Gray Limited,V1011540,21/11/2022,739.20,R & B Transformation 2,Supplies & Services,T35026/D200008,Housing Stock Accounts,Payments to Contractors External
Ashfield District Council,37UB,Huws Gray Limited,V1011974,28/11/2022,-109.00,R & B Transformation 2,Supplies & Services,T35026/D200008,Housing Stock Accounts,Payments to Contractors External
Ashfield District Council,37UB,Huws Gray Limited,V1012103,28/11/2022,56.58,R & B Transformation 2,Supplies & Services,T35026/D200008,Housing Stock Accounts,Payments to Contractors External
Ashfield District Council,37UB,Huws Gray Limited,V1012104,28/11/2022,86.60,R & B Transformation 2,Supplies & Services,T35026/D200008,Housing Stock Accounts,Payments to Contractors External
Ashfield District Council,37UB,Huws Gray Limited,V1012106,28/11/2022,196.80,R & B Transformation 2,Supplies & Services,T35026/D200008,Housing Stock Accounts,Payments to Contractors External
Ashfield District Council,37UB,Huws Gray Limited,V1012107,28/11/2022,37.35,R & B Transformation 2,Supplies & Services,T35026/D200008,Housing Stock Accounts,Payments to Contractors External
Ashfield District Council,37UB,Huws Gray Limited,V1012111,28/11/2022,274.76,R & B Transformation 2,Supplies & Services,T35026/D200008,Housing Stock Accounts,Payments to Contractors External
Ashfield District Council,37UB,Huws Gray Limited,V1012111,28/11/2022,295.68,R & B Transformation 2,Supplies & Services,T35026/D200008,Housing Stock Accounts,Payments to Contractors External
Ashfield District Council,37UB,Huws Gray Limited,V1012112,28/11/2022,412.80,R & B Transformation 2,Supplies & Services,T35026/D200008,Housing Stock Accounts,Payments to Contractors External
Ashfield District Council,37UB,Huws Gray Limited,V1012113,28/11/2022,13.08,R & B Transformation 2,Supplies & Services,T35026/D200008,Housing Stock Accounts,Payments to Contractors External
Ashfield District Council,37UB,Huws Gray Limited,V1012113,28/11/2022,2.56,R & B Transformation 2,Supplies & Services,T35026/D200008,Housing Stock Accounts,Payments to Contractors External
Ashfield District Council,37UB,Huws Gray Limited,V1012113,28/11/2022,69.60,R & B Transformation 2,Supplies & Services,T35026/D200008,Housing Stock Accounts,Payments to Contractors External
Ashfield District Council,37UB,Huws Gray Limited,V1012113,28/11/2022,8.90,R & B Transformation 2,Supplies & Services,T35026/D200008,Housing Stock Accounts,Payments to Contractors External
Ashfield District Council,37UB,Huws Gray Limited,V1012113,28/11/2022,24.72,R & B Transformation 2,Supplies & Services,T35026/D200008,Housing Stock Accounts,Payments to Contractors External
Ashfield District Council,37UB,Huws Gray Limited,V1012113,28/11/2022,23.00,R & B Transformation 2,Supplies & Services,T35026/D200008,Housing Stock Accounts,Payments to Contractors External
Ashfield District Council,37UB,Huws Gray Limited,V1012113,28/11/2022,20.10,R & B Transformation 2,Supplies & Services,T35026/D200008,Housing Stock Accounts,Payments to Contractors External
Ashfield District Council,37UB,Huws Gray Limited,V1012116,28/11/2022,128.20,R & B Transformation 2,Supplies & Services,T35026/D200008,Housing Stock Accounts,Payments to Contractors External
Ashfield District Council,37UB,Huws Gray Limited,V1012117,28/11/2022,52.25,R & B Transformation 2,Supplies & Services,T35026/D200008,Housing Stock Accounts,Payments to Contractors External
Ashfield District Council,37UB,Huws Gray Limited,V1012117,28/11/2022,4.32,R & B Transformation 2,Supplies & Services,T35026/D200008,Housing Stock Accounts,Payments to Contractors External
Ashfield District Council,37UB,Huws Gray Limited,V1012119,28/11/2022,92.40,R & B Transformation 2,Supplies & Services,T35026/D200008,Housing Stock Accounts,Payments to Contractors External
Ashfield District Council,37UB,Huws Gray Limited,V1012119,28/11/2022,87.12,R & B Transformation 2,Supplies & Services,T35026/D200008,Housing Stock Accounts,Payments to Contractors External
Ashfield District Council,37UB,Huws Gray Limited,V1012120,28/11/2022,23.28,R & B Transformation 2,Supplies & Services,T35026/D200008,Housing Stock Accounts,Payments to Contractors External
Ashfield District Council,37UB,Huws Gray Limited,V1012127,28/11/2022,969.00,R & B Transformation 2,Supplies & Services,T35026/D200008,Housing Stock Accounts,Payments to Contractors External
Ashfield District Council,37UB,Huws Gray Limited,V1012128,28/11/2022,443.52,R & B Transformation 2,Supplies & Services,T35026/D200008,Housing Stock Accounts,Payments to Contractors External
Ashfield District Council,37UB,Huws Gray Limited,V1012130,28/11/2022,182.40,R & B Transformation 2,Supplies & Services,T35026/D200008,Housing Stock Accounts,Payments to Contractors External
Ashfield District Council,37UB,Huws Gray Limited,V1012131,28/11/2022,253.20,R & B Transformation 2,Supplies & Services,T35026/D200008,Housing Stock Accounts,Payments to Contractors External
Ashfield District Council,37UB,Huws Gray Limited,V1012132,28/11/2022,46.00,R & B Transformation 2,Supplies & Services,T35026/D200008,Housing Stock Accounts,Payments to Contractors External
Ashfield District Council,37UB,Huws Gray Limited,V1012137,28/11/2022,8.60,R & B Transformation 2,Supplies & Services,T35026/D200008,Housing Stock Accounts,Payments to Contractors External
Ashfield District Council,37UB,Huws Gray Limited,V1012137,28/11/2022,119.20,R & B Transformation 2,Supplies & Services,T35026/D200008,Housing Stock Accounts,Payments to Contractors External
Ashfield District Council,37UB,Huws Gray Limited,V1012137,28/11/2022,14.00,R & B Transformation 2,Supplies & Services,T35026/D200008,Housing Stock Accounts,Payments to Contractors External
Ashfield District Council,37UB,Huws Gray Limited,V1012137,28/11/2022,48.96,R & B Transformation 2,Supplies & Services,T35026/D200008,Housing Stock Accounts,Payments to Contractors External
Ashfield District Council,37UB,Huws Gray Limited,V1012137,28/11/2022,26.22,R & B Transformation 2,Supplies & Services,T35026/D200008,Housing Stock Accounts,Payments to Contractors External
Ashfield District Council,37UB,JWL (Architectural Ironmongers) Ltd,V1012207,28/11/2022,253.20,R & B Transformation 2,Supplies & Services,T35026/D200008,Housing Stock Accounts,Payments to Contractors External
Ashfield District Council,37UB,Magnet Ltd,V1011507,21/11/2022,480.00,R & B Transformation 2,Supplies & Services,T35026/D200008,Housing Stock Accounts,Payments to Contractors External
Ashfield District Council,37UB,Magnet Ltd,V1011507,21/11/2022,200.00,R & B Transformation 2,Supplies & Services,T35026/D200008,Housing Stock Accounts,Payments to Contractors External
Ashfield District Council,37UB,Magnet Ltd,V1011508,21/11/2022,60.00,R & B Transformation 2,Supplies & Services,T35026/D200008,Housing Stock Accounts,Payments to Contractors External
Ashfield District Council,37UB,Magnet Ltd,V1011509,21/11/2022,60.00,R & B Transformation 2,Supplies & Services,T35026/D200008,Housing Stock Accounts,Payments to Contractors External
Ashfield District Council,37UB,Magnet Ltd,V1011510,21/11/2022,200.00,R & B Transformation 2,Supplies & Services,T35026/D200008,Housing Stock Accounts,Payments to Contractors External
Ashfield District Council,37UB,Magnet Ltd,V1011510,21/11/2022,300.00,R & B Transformation 2,Supplies & Services,T35026/D200008,Housing Stock Accounts,Payments to Contractors External
Ashfield District Council,37UB,Magnet Ltd,V1011510,21/11/2022,800.00,R & B Transformation 2,Supplies & Services,T35026/D200008,Housing Stock Accounts,Payments to Contractors External
Ashfield District Council,37UB,Maxam Direct,V1009340,07/11/2022,-407.28,R & B Transformation 2,Supplies & Services,T35026/D200008,Housing Stock Accounts,Payments to Contractors External
Ashfield District Council,37UB,Maxam Direct,V1009340,07/11/2022,407.28,R & B Transformation 2,Supplies & Services,T35026/D200008,Housing Stock Accounts,Payments to Contractors External
Ashfield District Council,37UB,Maxam Direct,V1012210,28/11/2022,318.56,R & B Transformation 2,Supplies & Services,T35026/D200008,Housing Stock Accounts,Payments to Contractors External
Ashfield District Council,37UB,Nationwide Hygiene Supplies Limited,V1012211,28/11/2022,221.75,R & B Transformation 2,Supplies & Services,T35026/D200008,Housing Stock Accounts,Payments to Contractors External
Ashfield District Council,37UB,Nuaire a division of Polypipe,V1010479,07/11/2022,411.48,R & B Transformation 2,Supplies & Services,T35026/D200008,Housing Stock Accounts,Payments to Contractors External
Ashfield District Council,37UB,Nuaire a division of Polypipe,V1011140,14/11/2022,163.59,R & B Transformation 2,Supplies & Services,T35026/D200008,Housing Stock Accounts,Payments to Contractors External
Ashfield District Council,37UB,Office Depot UK Limited,V1012212,28/11/2022,31.85,R & B Transformation 2,Supplies & Services,T35026/D200008,Housing Stock Accounts,Payments to Contractors External
Ashfield District Council,37UB,Permadoor,V1011514,21/11/2022,778.37,R & B Transformation 2,Supplies & Services,T35026/D200008,Housing Stock Accounts,Payments to Contractors External
Ashfield District Council,37UB,Permadoor,V1011515,21/11/2022,704.00,R & B Transformation 2,Supplies & Services,T35026/D200008,Housing Stock Accounts,Payments to Contractors External
Ashfield District Council,37UB,Permadoor,V1011515,21/11/2022,977.50,R & B Transformation 2,Supplies & Services,T35026/D200008,Housing Stock Accounts,Payments to Contractors External
Ashfield District Council,37UB,Permadoor,V1011516,21/11/2022,942.69,R & B Transformation 2,Supplies & Services,T35026/D200008,Housing Stock Accounts,Payments to Contractors External
Ashfield District Council,37UB,Permadoor,V1011517,21/11/2022,942.69,R & B Transformation 2,Supplies & Services,T35026/D200008,Housing Stock Accounts,Payments to Contractors External
Ashfield District Council,37UB,PWS (Protective Wear Supplies) Limited,V1010480,07/11/2022,72.48,R & B Transformation 2,Supplies & Services,T35026/D200008,Housing Stock Accounts,Payments to Contractors External
Ashfield District Council,37UB,PWS (Protective Wear Supplies) Limited,V1011143,14/11/2022,44.00,R & B Transformation 2,Supplies & Services,T35026/D200008,Housing Stock Accounts,Payments to Contractors External
Ashfield District Council,37UB,PWS (Protective Wear Supplies) Limited,V1011143,14/11/2022,44.00,R & B Transformation 2,Supplies & Services,T35026/D200008,Housing Stock Accounts,Payments to Contractors External
Ashfield District Council,37UB,PWS (Protective Wear Supplies) Limited,V1011144,14/11/2022,179.04,R & B Transformation 2,Supplies & Services,T35026/D200008,Housing Stock Accounts,Payments to Contractors External
Ashfield District Council,37UB,PWS (Protective Wear Supplies) Limited,V1011144,14/11/2022,227.64,R & B Transformation 2,Supplies & Services,T35026/D200008,Housing Stock Accounts,Payments to Contractors External
Ashfield District Council,37UB,PWS (Protective Wear Supplies) Limited,V1011144,14/11/2022,379.40,R & B Transformation 2,Supplies & Services,T35026/D200008,Housing Stock Accounts,Payments to Contractors External
Ashfield District Council,37UB,PWS (Protective Wear Supplies) Limited,V1011145,14/11/2022,96.30,R & B Transformation 2,Supplies & Services,T35026/D200008,Housing Stock Accounts,Payments to Contractors External
Ashfield District Council,37UB,PWS (Protective Wear Supplies) Limited,V1011146,14/11/2022,298.40,R & B Transformation 2,Supplies & Services,T35026/D200008,Housing Stock Accounts,Payments to Contractors External
Ashfield District Council,37UB,PWS (Protective Wear Supplies) Limited,V1011471,21/11/2022,-1.34,R & B Transformation 2,Supplies & Services,T35026/D200008,Housing Stock Accounts,Payments to Contractors External
Ashfield District Council,37UB,PWS (Protective Wear Supplies) Limited,V1011519,21/11/2022,331.80,R & B Transformation 2,Supplies & Services,T35026/D200008,Housing Stock Accounts,Payments to Contractors External
Ashfield District Council,37UB,PWS (Protective Wear Supplies) Limited,V1011975,28/11/2022,-49.28,R & B Transformation 2,Supplies & Services,T35026/D200008,Housing Stock Accounts,Payments to Contractors External
Ashfield District Council,37UB,PWS (Protective Wear Supplies) Limited,V1012218,28/11/2022,151.76,R & B Transformation 2,Supplies & Services,T35026/D200008,Housing Stock Accounts,Payments to Contractors External
Ashfield District Council,37UB,PWS (Protective Wear Supplies) Limited,V1012219,28/11/2022,379.40,R & B Transformation 2,Supplies & Services,T35026/D200008,Housing Stock Accounts,Payments to Contractors External
Ashfield District Council,37UB,PWS (Protective Wear Supplies) Limited,V1012219,28/11/2022,189.70,R & B Transformation 2,Supplies & Services,T35026/D200008,Housing Stock Accounts,Payments to Contractors External
Ashfield District Council,37UB,PWS (Protective Wear Supplies) Limited,V1012220,28/11/2022,321.00,R & B Transformation 2,Supplies & Services,T35026/D200008,Housing Stock Accounts,Payments to Contractors External
Ashfield District Council,37UB,PWS (Protective Wear Supplies) Limited,V1012220,28/11/2022,192.60,R & B Transformation 2,Supplies & Services,T35026/D200008,Housing Stock Accounts,Payments to Contractors External
Ashfield District Council,37UB,PWS (Protective Wear Supplies) Limited,V1012222,28/11/2022,57.23,R & B Transformation 2,Supplies & Services,T35026/D200008,Housing Stock Accounts,Payments to Contractors External
Ashfield District Council,37UB,PWS (Protective Wear Supplies) Limited,V1012223,28/11/2022,379.40,R & B Transformation 2,Supplies & Services,T35026/D200008,Housing Stock Accounts,Payments to Contractors External
Ashfield District Council,37UB,PWS (Protective Wear Supplies) Limited,V1012223,28/11/2022,379.40,R & B Transformation 2,Supplies & Services,T35026/D200008,Housing Stock Accounts,Payments to Contractors External
Ashfield District Council,37UB,PWS (Protective Wear Supplies) Limited,V1012223,28/11/2022,298.40,R & B Transformation 2,Supplies & Services,T35026/D200008,Housing Stock Accounts,Payments to Contractors External
Ashfield District Council,37UB,PWS (Protective Wear Supplies) Limited,V1012224,28/11/2022,88.00,R & B Transformation 2,Supplies & Services,T35026/D200008,Housing Stock Accounts,Payments to Contractors External
Ashfield District Council,37UB,Rexel UK Limited,V1010497,07/11/2022,14.87,R & B Transformation 2,Supplies & Services,T35026/D200008,Housing Stock Accounts,Payments to Contractors External
Ashfield District Council,37UB,Rexel UK Limited,V1010498,07/11/2022,10.90,R & B Transformation 2,Supplies & Services,T35026/D200008,Housing Stock Accounts,Payments to Contractors External
Ashfield District Council,37UB,Rexel UK Limited,V1010498,07/11/2022,92.40,R & B Transformation 2,Supplies & Services,T35026/D200008,Housing Stock Accounts,Payments to Contractors External
Ashfield District Council,37UB,Rexel UK Limited,V1010499,07/11/2022,14.87,R & B Transformation 2,Supplies & Services,T35026/D200008,Housing Stock Accounts,Payments to Contractors External
Ashfield District Council,37UB,Rexel UK Limited,V1010500,07/11/2022,14.87,R & B Transformation 2,Supplies & Services,T35026/D200008,Housing Stock Accounts,Payments to Contractors External
Ashfield District Council,37UB,Rexel UK Limited,V1010501,07/11/2022,14.87,R & B Transformation 2,Supplies & Services,T35026/D200008,Housing Stock Accounts,Payments to Contractors External
Ashfield District Council,37UB,Rexel UK Limited,V1010502,07/11/2022,42.00,R & B Transformation 2,Supplies & Services,T35026/D200008,Housing Stock Accounts,Payments to Contractors External
Ashfield District Council,37UB,Rexel UK Limited,V1010503,07/11/2022,114.00,R & B Transformation 2,Supplies & Services,T35026/D200008,Housing Stock Accounts,Payments to Contractors External
Ashfield District Council,37UB,Rexel UK Limited,V1010504,07/11/2022,59.48,R & B Transformation 2,Supplies & Services,T35026/D200008,Housing Stock Accounts,Payments to Contractors External
Ashfield District Council,37UB,Rexel UK Limited,V1010506,07/11/2022,167.52,R & B Transformation 2,Supplies & Services,T35026/D200008,Housing Stock Accounts,Payments to Contractors External
Ashfield District Council,37UB,Rexel UK Limited,V1010799,14/11/2022,-5.20,R & B Transformation 2,Supplies & Services,T35026/D200008,Housing Stock Accounts,Payments to Contractors External
Ashfield District Council,37UB,Rexel UK Limited,V1011178,14/11/2022,58.00,R & B Transformation 2,Supplies & Services,T35026/D200008,Housing Stock Accounts,Payments to Contractors External
Ashfield District Council,37UB,Rexel UK Limited,V1011179,14/11/2022,5.40,R & B Transformation 2,Supplies & Services,T35026/D200008,Housing Stock Accounts,Payments to Contractors External
Ashfield District Council,37UB,Rexel UK Limited,V1011180,14/11/2022,5.40,R & B Transformation 2,Supplies & Services,T35026/D200008,Housing Stock Accounts,Payments to Contractors External
Ashfield District Council,37UB,Rexel UK Limited,V1011181,21/11/2022,13.30,R & B Transformation 2,Supplies & Services,T35026/D200008,Housing Stock Accounts,Payments to Contractors External
Ashfield District Council,37UB,Rexel UK Limited,V1011543,21/11/2022,45.56,R & B Transformation 2,Supplies & Services,T35026/D200008,Housing Stock Accounts,Payments to Contractors External
Ashfield District Council,37UB,Rexel UK Limited,V1011544,21/11/2022,45.60,R & B Transformation 2,Supplies & Services,T35026/D200008,Housing Stock Accounts,Payments to Contractors External
Ashfield District Council,37UB,Rexel UK Limited,V1011545,21/11/2022,34.20,R & B Transformation 2,Supplies & Services,T35026/D200008,Housing Stock Accounts,Payments to Contractors External
Ashfield District Council,37UB,Rexel UK Limited,V1011546,21/11/2022,159.00,R & B Transformation 2,Supplies & Services,T35026/D200008,Housing Stock Accounts,Payments to Contractors External
Ashfield District Council,37UB,Rexel UK Limited,V1011546,21/11/2022,21.00,R & B Transformation 2,Supplies & Services,T35026/D200008,Housing Stock Accounts,Payments to Contractors External
Ashfield District Council,37UB,Rexel UK Limited,V1011546,21/11/2022,35.91,R & B Transformation 2,Supplies & Services,T35026/D200008,Housing Stock Accounts,Payments to Contractors External
Ashfield District Council,37UB,Rexel UK Limited,V1011546,21/11/2022,42.90,R & B Transformation 2,Supplies & Services,T35026/D200008,Housing Stock Accounts,Payments to Contractors External
Ashfield District Council,37UB,Rexel UK Limited,V1011547,21/11/2022,6.65,R & B Transformation 2,Supplies & Services,T35026/D200008,Housing Stock Accounts,Payments to Contractors External
Ashfield District Council,37UB,Rexel UK Limited,V1011973,28/11/2022,-6.70,R & B Transformation 2,Supplies & Services,T35026/D200008,Housing Stock Accounts,Payments to Contractors External
Ashfield District Council,37UB,Rexel UK Limited,V1012138,28/11/2022,87.40,R & B Transformation 2,Supplies & Services,T35026/D200008,Housing Stock Accounts,Payments to Contractors External
Ashfield District Council,37UB,Rexel UK Limited,V1012138,28/11/2022,95.00,R & B Transformation 2,Supplies & Services,T35026/D200008,Housing Stock Accounts,Payments to Contractors External
Ashfield District Council,37UB,Rexel UK Limited,V1012138,28/11/2022,11.40,R & B Transformation 2,Supplies & Services,T35026/D200008,Housing Stock Accounts,Payments to Contractors External
Ashfield District Council,37UB,Rexel UK Limited,V1012139,28/11/2022,220.59,R & B Transformation 2,Supplies & Services,T35026/D200008,Housing Stock Accounts,Payments to Contractors External
Ashfield District Council,37UB,Rexel UK Limited,V1012140,28/11/2022,508.40,R & B Transformation 2,Supplies & Services,T35026/D200008,Housing Stock Accounts,Payments to Contractors External
Ashfield District Council,37UB,Rexel UK Limited,V1012141,28/11/2022,16.50,R & B Transformation 2,Supplies & Services,T35026/D200008,Housing Stock Accounts,Payments to Contractors External
Ashfield District Council,37UB,Rexel UK Limited,V1012142,28/11/2022,132.50,R & B Transformation 2,Supplies & Services,T35026/D200008,Housing Stock Accounts,Payments to Contractors External
Ashfield District Council,37UB,Rexel UK Limited,V1012144,28/11/2022,29.74,R & B Transformation 2,Supplies & Services,T35026/D200008,Housing Stock Accounts,Payments to Contractors External
Ashfield District Council,37UB,Rexel UK Limited,V1012146,28/11/2022,900.00,R & B Transformation 2,Supplies & Services,T35026/D200008,Housing Stock Accounts,Payments to Contractors External
Ashfield District Council,37UB,Rexel UK Limited,V1012147,28/11/2022,2254.08,R & B Transformation 2,Supplies & Services,T35026/D200008,Housing Stock Accounts,Payments to Contractors External
Ashfield District Council,37UB,Rexel UK Limited,V1012148,28/11/2022,42.81,R & B Transformation 2,Supplies & Services,T35026/D200008,Housing Stock Accounts,Payments to Contractors External
Ashfield District Council,37UB,Rexel UK Limited,V1012148,28/11/2022,228.50,R & B Transformation 2,Supplies & Services,T35026/D200008,Housing Stock Accounts,Payments to Contractors External
Ashfield District Council,37UB,Rexel UK Limited,V1012149,28/11/2022,14.27,R & B Transformation 2,Supplies & Services,T35026/D200008,Housing Stock Accounts,Payments to Contractors External
Ashfield District Council,37UB,Rexel UK Limited,V1012149,28/11/2022,57.23,R & B Transformation 2,Supplies & Services,T35026/D200008,Housing Stock Accounts,Payments to Contractors External
Ashfield District Council,37UB,Rexel UK Limited,V1012150,28/11/2022,69.32,R & B Transformation 2,Supplies & Services,T35026/D200008,Housing Stock Accounts,Payments to Contractors External
Ashfield District Council,37UB,Rexel UK Limited,V1012150,28/11/2022,115.53,R & B Transformation 2,Supplies & Services,T35026/D200008,Housing Stock Accounts,Payments to Contractors External
Ashfield District Council,37UB,Rexel UK Limited,V1012150,28/11/2022,46.21,R & B Transformation 2,Supplies & Services,T35026/D200008,Housing Stock Accounts,Payments to Contractors External
Ashfield District Council,37UB,Rexel UK Limited,V1012150,28/11/2022,46.21,R & B Transformation 2,Supplies & Services,T35026/D200008,Housing Stock Accounts,Payments to Contractors External
Ashfield District Council,37UB,Rexel UK Limited,V1012151,28/11/2022,79.40,R & B Transformation 2,Supplies & Services,T35026/D200008,Housing Stock Accounts,Payments to Contractors External
Ashfield District Council,37UB,Rexel UK Limited,V1012152,28/11/2022,114.25,R & B Transformation 2,Supplies & Services,T35026/D200008,Housing Stock Accounts,Payments to Contractors External
Ashfield District Council,37UB,Rexel UK Limited,V1012153,28/11/2022,99.89,R & B Transformation 2,Supplies & Services,T35026/D200008,Housing Stock Accounts,Payments to Contractors External
Ashfield District Council,37UB,Rexel UK Limited,V1012153,28/11/2022,28.54,R & B Transformation 2,Supplies & Services,T35026/D200008,Housing Stock Accounts,Payments to Contractors External
Ashfield District Council,37UB,Rexel UK Limited,V1012154,28/11/2022,85.60,R & B Transformation 2,Supplies & Services,T35026/D200008,Housing Stock Accounts,Payments to Contractors External
Ashfield District Council,37UB,Rexel UK Limited,V1012155,28/11/2022,14.27,R & B Transformation 2,Supplies & Services,T35026/D200008,Housing Stock Accounts,Payments to Contractors External
Ashfield District Council,37UB,Rexel UK Limited,V1012156,28/11/2022,38.80,R & B Transformation 2,Supplies & Services,T35026/D200008,Housing Stock Accounts,Payments to Contractors External
Ashfield District Council,37UB,Rexel UK Limited,V1012158,28/11/2022,45.00,R & B Transformation 2,Supplies & Services,T35026/D200008,Housing Stock Accounts,Payments to Contractors External
Ashfield District Council,37UB,Rexel UK Limited,V1012160,28/11/2022,45.00,R & B Transformation 2,Supplies & Services,T35026/D200008,Housing Stock Accounts,Payments to Contractors External
Ashfield District Council,37UB,Rexel UK Limited,V1012162,28/11/2022,308.00,R & B Transformation 2,Supplies & Services,T35026/D200008,Housing Stock Accounts,Payments to Contractors External
Ashfield District Council,37UB,Snickers Original Ltd,V1011526,21/11/2022,116.82,R & B Transformation 2,Supplies & Services,T35026/D200008,Housing Stock Accounts,Payments to Contractors External
Ashfield District Council,37UB,Snickers Original Ltd,V1011527,21/11/2022,400.20,R & B Transformation 2,Supplies & Services,T35026/D200008,Housing Stock Accounts,Payments to Contractors External
Ashfield District Council,37UB,Summit Creative Ltd,V1012200,28/11/2022,544.00,R & B Transformation 2,Supplies & Services,T35026/D200008,Housing Stock Accounts,Payments to Contractors External
Ashfield District Council,37UB,Symphony Group,V1010482,07/11/2022,1525.60,R & B Transformation 2,Supplies & Services,T35026/D200008,Housing Stock Accounts,Payments to Contractors External
Ashfield District Council,37UB,Symphony Group,V1010483,07/11/2022,322.00,R & B Transformation 2,Supplies & Services,T35026/D200008,Housing Stock Accounts,Payments to Contractors External
Ashfield District Council,37UB,Symphony Group,V1010483,07/11/2022,81.40,R & B Transformation 2,Supplies & Services,T35026/D200008,Housing Stock Accounts,Payments to Contractors External
Ashfield District Council,37UB,Symphony Group,V1010483,07/11/2022,119.20,R & B Transformation 2,Supplies & Services,T35026/D200008,Housing Stock Accounts,Payments to Contractors External
Ashfield District Council,37UB,Symphony Group,V1010483,07/11/2022,119.20,R & B Transformation 2,Supplies & Services,T35026/D200008,Housing Stock Accounts,Payments to Contractors External
Ashfield District Council,37UB,Symphony Group,V1010483,07/11/2022,170.80,R & B Transformation 2,Supplies & Services,T35026/D200008,Housing Stock Accounts,Payments to Contractors External
Ashfield District Council,37UB,Symphony Group,V1011528,21/11/2022,368.00,R & B Transformation 2,Supplies & Services,T35026/D200008,Housing Stock Accounts,Payments to Contractors External
Ashfield District Council,37UB,Symphony Group,V1011528,21/11/2022,96.00,R & B Transformation 2,Supplies & Services,T35026/D200008,Housing Stock Accounts,Payments to Contractors External
Ashfield District Council,37UB,Symphony Group,V1011529,21/11/2022,206.40,R & B Transformation 2,Supplies & Services,T35026/D200008,Housing Stock Accounts,Payments to Contractors External
Ashfield District Council,37UB,Symphony Group,V1011529,21/11/2022,275.20,R & B Transformation 2,Supplies & Services,T35026/D200008,Housing Stock Accounts,Payments to Contractors External
Ashfield District Council,37UB,Symphony Group,V1011529,21/11/2022,736.00,R & B Transformation 2,Supplies & Services,T35026/D200008,Housing Stock Accounts,Payments to Contractors External
Ashfield District Council,37UB,Symphony Group,V1011529,21/11/2022,177.50,R & B Transformation 2,Supplies & Services,T35026/D200008,Housing Stock Accounts,Payments to Contractors External
Ashfield District Council,37UB,Wolseley UK Limited,V1010510,07/11/2022,22.20,R & B Transformation 2,Supplies & Services,T35026/D200008,Housing Stock Accounts,Payments to Contractors External
Ashfield District Council,37UB,Wolseley UK Limited,V1010510,07/11/2022,3.27,R & B Transformation 2,Supplies & Services,T35026/D200008,Housing Stock Accounts,Payments to Contractors External
Ashfield District Council,37UB,Wolseley UK Limited,V1010512,07/11/2022,478.30,R & B Transformation 2,Supplies & Services,T35026/D200008,Housing Stock Accounts,Payments to Contractors External
Ashfield District Council,37UB,Wolseley UK Limited,V1010512,07/11/2022,608.04,R & B Transformation 2,Supplies & Services,T35026/D200008,Housing Stock Accounts,Payments to Contractors External
Ashfield District Council,37UB,Wolseley UK Limited,V1010514,07/11/2022,81.68,R & B Transformation 2,Supplies & Services,T35026/D200008,Housing Stock Accounts,Payments to Contractors External
Ashfield District Council,37UB,Wolseley UK Limited,V1010514,07/11/2022,25.02,R & B Transformation 2,Supplies & Services,T35026/D200008,Housing Stock Accounts,Payments to Contractors External
Ashfield District Council,37UB,Wolseley UK Limited,V1010516,07/11/2022,469.40,R & B Transformation 2,Supplies & Services,T35026/D200008,Housing Stock Accounts,Payments to Contractors External
Ashfield District Council,37UB,Wolseley UK Limited,V1010518,07/11/2022,1013.40,R & B Transformation 2,Supplies & Services,T35026/D200008,Housing Stock Accounts,Payments to Contractors External
Ashfield District Council,37UB,Wolseley UK Limited,V1010518,07/11/2022,23.60,R & B Transformation 2,Supplies & Services,T35026/D200008,Housing Stock Accounts,Payments to Contractors External
Ashfield District Council,37UB,Wolseley UK Limited,V1010518,07/11/2022,325.20,R & B Transformation 2,Supplies & Services,T35026/D200008,Housing Stock Accounts,Payments to Contractors External
Ashfield District Council,37UB,Wolseley UK Limited,V1010518,07/11/2022,188.40,R & B Transformation 2,Supplies & Services,T35026/D200008,Housing Stock Accounts,Payments to Contractors External
Ashfield District Council,37UB,Wolseley UK Limited,V1010518,07/11/2022,50.40,R & B Transformation 2,Supplies & Services,T35026/D200008,Housing Stock Accounts,Payments to Contractors External
Ashfield District Council,37UB,Wolseley UK Limited,V1010521,07/11/2022,18.80,R & B Transformation 2,Supplies & Services,T35026/D200008,Housing Stock Accounts,Payments to Contractors External
Ashfield District Council,37UB,Wolseley UK Limited,V1010522,07/11/2022,22.89,R & B Transformation 2,Supplies & Services,T35026/D200008,Housing Stock Accounts,Payments to Contractors External
Ashfield District Council,37UB,Wolseley UK Limited,V1010522,07/11/2022,33.96,R & B Transformation 2,Supplies & Services,T35026/D200008,Housing Stock Accounts,Payments to Contractors External
Ashfield District Council,37UB,Wolseley UK Limited,V1010522,07/11/2022,19.60,R & B Transformation 2,Supplies & Services,T35026/D200008,Housing Stock Accounts,Payments to Contractors External
Ashfield District Council,37UB,Wolseley UK Limited,V1010522,07/11/2022,19.40,R & B Transformation 2,Supplies & Services,T35026/D200008,Housing Stock Accounts,Payments to Contractors External
Ashfield District Council,37UB,Wolseley UK Limited,V1010522,07/11/2022,6.20,R & B Transformation 2,Supplies & Services,T35026/D200008,Housing Stock Accounts,Payments to Contractors External
Ashfield District Council,37UB,Wolseley UK Limited,V1010522,07/11/2022,9.20,R & B Transformation 2,Supplies & Services,T35026/D200008,Housing Stock Accounts,Payments to Contractors External
Ashfield District Council,37UB,Wolseley UK Limited,V1011183,14/11/2022,545.80,R & B Transformation 2,Supplies & Services,T35026/D200008,Housing Stock Accounts,Payments to Contractors External
Ashfield District Council,37UB,Wolseley UK Limited,V1011184,14/11/2022,478.30,R & B Transformation 2,Supplies & Services,T35026/D200008,Housing Stock Accounts,Payments to Contractors External
Ashfield District Council,37UB,Wolseley UK Limited,V1011184,14/11/2022,506.70,R & B Transformation 2,Supplies & Services,T35026/D200008,Housing Stock Accounts,Payments to Contractors External
Ashfield District Council,37UB,Wolseley UK Limited,V1011185,14/11/2022,465.70,R & B Transformation 2,Supplies & Services,T35026/D200008,Housing Stock Accounts,Payments to Contractors External
Ashfield District Council,37UB,Wolseley UK Limited,V1011186,14/11/2022,12.98,R & B Transformation 2,Supplies & Services,T35026/D200008,Housing Stock Accounts,Payments to Contractors External
Ashfield District Council,37UB,Wolseley UK Limited,V1011189,14/11/2022,63.48,R & B Transformation 2,Supplies & Services,T35026/D200008,Housing Stock Accounts,Payments to Contractors External
Ashfield District Council,37UB,Wolseley UK Limited,V1011189,14/11/2022,12.98,R & B Transformation 2,Supplies & Services,T35026/D200008,Housing Stock Accounts,Payments to Contractors External
Ashfield District Council,37UB,Wolseley UK Limited,V1011193,14/11/2022,28.16,R & B Transformation 2,Supplies & Services,T35026/D200008,Housing Stock Accounts,Payments to Contractors External
Ashfield District Council,37UB,Wolseley UK Limited,V1011196,14/11/2022,88.00,R & B Transformation 2,Supplies & Services,T35026/D200008,Housing Stock Accounts,Payments to Contractors External
Ashfield District Council,37UB,Wolseley UK Limited,V1011198,14/11/2022,236.46,R & B Transformation 2,Supplies & Services,T35026/D200008,Housing Stock Accounts,Payments to Contractors External
Ashfield District Council,37UB,Wolseley UK Limited,V1011199,14/11/2022,39.00,R & B Transformation 2,Supplies & Services,T35026/D200008,Housing Stock Accounts,Payments to Contractors External
Ashfield District Council,37UB,Wolseley UK Limited,V1011200,14/11/2022,182.24,R & B Transformation 2,Supplies & Services,T35026/D200008,Housing Stock Accounts,Payments to Contractors External
Ashfield District Council,37UB,Wolseley UK Limited,V1011201,14/11/2022,49.47,R & B Transformation 2,Supplies & Services,T35026/D200008,Housing Stock Accounts,Payments to Contractors External
Ashfield District Council,37UB,Wolseley UK Limited,V1011202,14/11/2022,176.24,R & B Transformation 2,Supplies & Services,T35026/D200008,Housing Stock Accounts,Payments to Contractors External
Ashfield District Council,37UB,Wolseley UK Limited,V1011202,14/11/2022,153.09,R & B Transformation 2,Supplies & Services,T35026/D200008,Housing Stock Accounts,Payments to Contractors External
Ashfield District Council,37UB,Wolseley UK Limited,V1011202,14/11/2022,326.40,R & B Transformation 2,Supplies & Services,T35026/D200008,Housing Stock Accounts,Payments to Contractors External
Ashfield District Council,37UB,Wolseley UK Limited,V1011202,14/11/2022,161.10,R & B Transformation 2,Supplies & Services,T35026/D200008,Housing Stock Accounts,Payments to Contractors External
Ashfield District Council,37UB,Wolseley UK Limited,V1011204,14/11/2022,810.72,R & B Transformation 2,Supplies & Services,T35026/D200008,Housing Stock Accounts,Payments to Contractors External
Ashfield District Council,37UB,Wolseley UK Limited,V1011204,14/11/2022,478.30,R & B Transformation 2,Supplies & Services,T35026/D200008,Housing Stock Accounts,Payments to Contractors External
Ashfield District Council,37UB,Wolseley UK Limited,V1011209,14/11/2022,970.90,R & B Transformation 2,Supplies & Services,T35026/D200008,Housing Stock Accounts,Payments to Contractors External
Ashfield District Council,37UB,Wolseley UK Limited,V1011210,14/11/2022,473.88,R & B Transformation 2,Supplies & Services,T35026/D200008,Housing Stock Accounts,Payments to Contractors External
Ashfield District Council,37UB,Wolseley UK Limited,V1012163,28/11/2022,176.80,R & B Transformation 2,Supplies & Services,T35026/D200008,Housing Stock Accounts,Payments to Contractors External
Ashfield District Council,37UB,Wolseley UK Limited,V1012163,28/11/2022,209.40,R & B Transformation 2,Supplies & Services,T35026/D200008,Housing Stock Accounts,Payments to Contractors External
Ashfield District Council,37UB,Wolseley UK Limited,V1012163,28/11/2022,72.03,R & B Transformation 2,Supplies & Services,T35026/D200008,Housing Stock Accounts,Payments to Contractors External
Ashfield District Council,37UB,Wolseley UK Limited,V1012164,28/11/2022,380.00,R & B Transformation 2,Supplies & Services,T35026/D200008,Housing Stock Accounts,Payments to Contractors External
Ashfield District Council,37UB,Wolseley UK Limited,V1012164,28/11/2022,114.15,R & B Transformation 2,Supplies & Services,T35026/D200008,Housing Stock Accounts,Payments to Contractors External
Ashfield District Council,37UB,Wolseley UK Limited,V1012164,28/11/2022,13.60,R & B Transformation 2,Supplies & Services,T35026/D200008,Housing Stock Accounts,Payments to Contractors External
Ashfield District Council,37UB,Wolseley UK Limited,V1012164,28/11/2022,188.40,R & B Transformation 2,Supplies & Services,T35026/D200008,Housing Stock Accounts,Payments to Contractors External
Ashfield District Council,37UB,Wolseley UK Limited,V1012164,28/11/2022,193.52,R & B Transformation 2,Supplies & Services,T35026/D200008,Housing Stock Accounts,Payments to Contractors External
Ashfield District Council,37UB,Wolseley UK Limited,V1012164,28/11/2022,187.20,R & B Transformation 2,Supplies & Services,T35026/D200008,Housing Stock Accounts,Payments to Contractors External
Ashfield District Council,37UB,Wolseley UK Limited,V1012164,28/11/2022,14.80,R & B Transformation 2,Supplies & Services,T35026/D200008,Housing Stock Accounts,Payments to Contractors External
Ashfield District Council,37UB,Wolseley UK Limited,V1012164,28/11/2022,104.10,R & B Transformation 2,Supplies & Services,T35026/D200008,Housing Stock Accounts,Payments to Contractors External
Ashfield District Council,37UB,Wolseley UK Limited,V1012164,28/11/2022,183.36,R & B Transformation 2,Supplies & Services,T35026/D200008,Housing Stock Accounts,Payments to Contractors External
Ashfield District Council,37UB,Wolseley UK Limited,V1012164,28/11/2022,43.08,R & B Transformation 2,Supplies & Services,T35026/D200008,Housing Stock Accounts,Payments to Contractors External
Ashfield District Council,37UB,Wolseley UK Limited,V1012164,28/11/2022,214.80,R & B Transformation 2,Supplies & Services,T35026/D200008,Housing Stock Accounts,Payments to Contractors External
Ashfield District Council,37UB,Wolseley UK Limited,V1012164,28/11/2022,945.78,R & B Transformation 2,Supplies & Services,T35026/D200008,Housing Stock Accounts,Payments to Contractors External
Ashfield District Council,37UB,Wolseley UK Limited,V1012168,28/11/2022,121.76,R & B Transformation 2,Supplies & Services,T35026/D200008,Housing Stock Accounts,Payments to Contractors External
Ashfield District Council,37UB,Wolseley UK Limited,V1012168,28/11/2022,8.77,R & B Transformation 2,Supplies & Services,T35026/D200008,Housing Stock Accounts,Payments to Contractors External
Ashfield District Council,37UB,Wood Lane Timber Merchants Ltd,V1011151,14/11/2022,634.00,R & B Transformation 2,Supplies & Services,T35026/D200008,Housing Stock Accounts,Payments to Contractors External
Ashfield District Council,37UB,Wood Lane Timber Merchants Ltd,V1011151,14/11/2022,542.40,R & B Transformation 2,Supplies & Services,T35026/D200008,Housing Stock Accounts,Payments to Contractors External
Ashfield District Council,37UB,Wood Lane Timber Merchants Ltd,V1011152,14/11/2022,938.00,R & B Transformation 2,Supplies & Services,T35026/D200008,Housing Stock Accounts,Payments to Contractors External
Ashfield District Council,37UB,Wood Lane Timber Merchants Ltd,V1011154,14/11/2022,163.00,R & B Transformation 2,Supplies & Services,T35026/D200008,Housing Stock Accounts,Payments to Contractors External
Ashfield District Council,37UB,Wood Lane Timber Merchants Ltd,V1012233,28/11/2022,292.80,R & B Transformation 2,Supplies & Services,T35026/D200008,Housing Stock Accounts,Payments to Contractors External
Ashfield District Council,37UB,Wood Lane Timber Merchants Ltd,V1012233,28/11/2022,1140.00,R & B Transformation 2,Supplies & Services,T35026/D200008,Housing Stock Accounts,Payments to Contractors External
Ashfield District Council,37UB,Wood Lane Timber Merchants Ltd,V1012233,28/11/2022,547.50,R & B Transformation 2,Supplies & Services,T35026/D200008,Housing Stock Accounts,Payments to Contractors External
Ashfield District Council,37UB,Wood Lane Timber Merchants Ltd,V1012233,28/11/2022,276.50,R & B Transformation 2,Supplies & Services,T35026/D200008,Housing Stock Accounts,Payments to Contractors External
Ashfield District Council,37UB,Wood Lane Timber Merchants Ltd,V1012233,28/11/2022,703.50,R & B Transformation 2,Supplies & Services,T35026/D200008,Housing Stock Accounts,Payments to Contractors External
Ashfield District Council,37UB,Wood Lane Timber Merchants Ltd,V1012233,28/11/2022,1155.00,R & B Transformation 2,Supplies & Services,T35026/D200008,Housing Stock Accounts,Payments to Contractors External
Ashfield District Council,37UB,Wood Lane Timber Merchants Ltd,V1012233,28/11/2022,685.50,R & B Transformation 2,Supplies & Services,T35026/D200008,Housing Stock Accounts,Payments to Contractors External
Ashfield District Council,37UB,B & B Tractors,V1011273,24/11/2022,151.99,Place & Communities 2,Transport Related Expenses,T35002/C011,Stock Account,Parts
Ashfield District Council,37UB,B & B Tractors,V1011273,24/11/2022,10.64,Place & Communities 2,Transport Related Expenses,T35002/C011,Stock Account,Parts
Ashfield District Council,37UB,Bucher Municipal Limited,V1009553,10/11/2022,292.50,Place & Communities 2,Transport Related Expenses,T35002/C011,Stock Account,Parts
Ashfield District Council,37UB,Burrows Recovery,V1010656,10/11/2022,250.00,Place & Communities 2,Transport Related Expenses,T35002/C011,Stock Account,Parts
Ashfield District Council,37UB,Burrows Recovery,V1010657,10/11/2022,262.50,Place & Communities 2,Transport Related Expenses,T35002/C011,Stock Account,Parts
Ashfield District Council,37UB,Burrows Recovery,V1010658,10/11/2022,150.00,Place & Communities 2,Transport Related Expenses,T35002/C011,Stock Account,Parts
Ashfield District Council,37UB,Burrows Recovery,V1011894,24/11/2022,262.50,Place & Communities 2,Transport Related Expenses,T35002/C011,Stock Account,Parts
Ashfield District Council,37UB,Certas Energy UK Ltd t/a Pace Fuelcare,V1009445,03/11/2022,18476.74,Place & Communities 2,Supplies & Services,T35001/D001004,Stock Account,Chemicals and Materials Purchase
Ashfield District Council,37UB,Certas Energy UK Ltd t/a Pace Fuelcare,V1011306,17/11/2022,22455.00,Place & Communities 2,Supplies & Services,T35001/D001004,Stock Account,Chemicals and Materials Purchase
Ashfield District Council,37UB,Certas Energy UK Ltd t/a Pace Fuelcare,V1011896,24/11/2022,16470.34,Place & Communities 2,Supplies & Services,T35001/D001004,Stock Account,Chemicals and Materials Purchase
Ashfield District Council,37UB,Chemodex Ltd,V1009489,03/11/2022,373.10,Place & Communities 2,Transport Related Expenses,T35004/C005,Stock Account,Lubricants
Ashfield District Council,37UB,Chemodex Ltd,V1009489,03/11/2022,461.25,Place & Communities 2,Transport Related Expenses,T35004/C005,Stock Account,Lubricants
Ashfield District Council,37UB,Chemodex Ltd,V1009489,03/11/2022,99.00,Place & Communities 2,Transport Related Expenses,T35004/C005,Stock Account,Lubricants
Ashfield District Council,37UB,Chemodex Ltd,V1009490,03/11/2022,-48.00,Place & Communities 2,Transport Related Expenses,T35004/C005,Stock Account,Lubricants
Ashfield District Council,37UB,Chemodex Ltd,V1009581,03/11/2022,510.00,Place & Communities 2,Supplies & Services,T35001/D001004,Stock Account,Chemicals and Materials Purchase
Ashfield District Council,37UB,Chemodex Ltd,V1011870,24/11/2022,595.00,Place & Communities 2,Supplies & Services,T35001/D001004,Stock Account,Chemicals and Materials Purchase
Ashfield District Council,37UB,County Battery Services Ltd,V1011313,17/11/2022,19.00,Place & Communities 2,Transport Related Expenses,T35002/C011,Stock Account,Parts
Ashfield District Council,37UB,Davmac Spares Ltd,V1006669,03/11/2022,17.97,Place & Communities 2,Transport Related Expenses,T35002/C011,Stock Account,Parts
Ashfield District Council,37UB,Davmac Spares Ltd,V1006674,03/11/2022,6.69,Place & Communities 2,Transport Related Expenses,T35002/C011,Stock Account,Parts
Ashfield District Council,37UB,Davmac Spares Ltd,V1007998,03/11/2022,13.41,Place & Communities 2,Transport Related Expenses,T35002/C011,Stock Account,Parts
Ashfield District Council,37UB,Davmac Spares Ltd,V1009422,03/11/2022,620.00,Place & Communities 2,Transport Related Expenses,T35004/C005,Stock Account,Lubricants
Ashfield District Council,37UB,Davmac Spares Ltd,V1009560,03/11/2022,29.88,Place & Communities 2,Transport Related Expenses,T35004/C005,Stock Account,Lubricants
Ashfield District Council,37UB,Davmac Spares Ltd,V1010530,03/11/2022,-19.70,Place & Communities 2,Transport Related Expenses,T35002/C011,Stock Account,Parts
Ashfield District Council,37UB,Davmac Spares Ltd,V1010568,03/11/2022,15.70,Place & Communities 2,Transport Related Expenses,T35002/C011,Stock Account,Parts
Ashfield District Council,37UB,Davmac Spares Ltd,V1010569,03/11/2022,19.70,Place & Communities 2,Transport Related Expenses,T35002/C011,Stock Account,Parts
Ashfield District Council,37UB,Davmac Spares Ltd,V1009136,10/11/2022,19.75,Place & Communities 2,Transport Related Expenses,T35002/C011,Stock Account,Parts
Ashfield District Council,37UB,Davmac Spares Ltd,V1009143,10/11/2022,19.75,Place & Communities 2,Transport Related Expenses,T35002/C011,Stock Account,Parts
Ashfield District Council,37UB,Davmac Spares Ltd,V1009362,10/11/2022,82.47,Place & Communities 2,Transport Related Expenses,T35002/C011,Stock Account,Parts
Ashfield District Council,37UB,Davmac Spares Ltd,V1009363,10/11/2022,82.47,Place & Communities 2,Transport Related Expenses,T35002/C011,Stock Account,Parts
Ashfield District Council,37UB,Davmac Spares Ltd,V1010763,10/11/2022,-19.75,Place & Communities 2,Transport Related Expenses,T35002/C011,Stock Account,Parts
Ashfield District Council,37UB,Davmac Spares Ltd,V1011264,17/11/2022,33.90,Place & Communities 2,Transport Related Expenses,T35002/C011,Stock Account,Parts
Ashfield District Council,37UB,Davmac Spares Ltd,V1011265,17/11/2022,20.54,Place & Communities 2,Transport Related Expenses,T35002/C011,Stock Account,Parts
Ashfield District Council,37UB,Davmac Spares Ltd,V1011279,17/11/2022,42.36,Place & Communities 2,Transport Related Expenses,T35002/C011,Stock Account,Parts
Ashfield District Council,37UB,Davmac Spares Ltd,V1011299,17/11/2022,8.00,Place & Communities 2,Transport Related Expenses,T35002/C011,Stock Account,Parts
Ashfield District Council,37UB,Davmac Spares Ltd,V1011300,17/11/2022,-8.00,Place & Communities 2,Transport Related Expenses,T35002/C011,Stock Account,Parts
Ashfield District Council,37UB,Davmac Spares Ltd,V1011310,17/11/2022,11.20,Place & Communities 2,Transport Related Expenses,T35002/C011,Stock Account,Parts
Ashfield District Council,37UB,Davmac Spares Ltd,V1011372,17/11/2022,12.69,Place & Communities 2,Transport Related Expenses,T35002/C011,Stock Account,Parts
Ashfield District Council,37UB,Davmac Spares Ltd,V1011393,17/11/2022,12.69,Place & Communities 2,Transport Related Expenses,T35002/C011,Stock Account,Parts
Ashfield District Council,37UB,Davmac Spares Ltd,V1011392,24/11/2022,29.88,Place & Communities 2,Transport Related Expenses,T35004/C005,Stock Account,Lubricants
Ashfield District Council,37UB,Davmac Spares Ltd,V1011913,24/11/2022,3.88,Place & Communities 2,Transport Related Expenses,T35002/C011,Stock Account,Parts
Ashfield District Council,37UB,Davmac Spares Ltd,V1011935,24/11/2022,146.88,Place & Communities 2,Transport Related Expenses,T35002/C011,Stock Account,Parts
Ashfield District Council,37UB,Dennis Eagle Limited,V1009421,03/11/2022,328.95,Place & Communities 2,Transport Related Expenses,T35002/C011,Stock Account,Parts
Ashfield District Council,37UB,Dennis Eagle Limited,V1009471,03/11/2022,37.22,Place & Communities 2,Transport Related Expenses,T35002/C011,Stock Account,Parts
Ashfield District Council,37UB,Dennis Eagle Limited,V1009471,03/11/2022,40.69,Place & Communities 2,Transport Related Expenses,T35002/C011,Stock Account,Parts
Ashfield District Council,37UB,Dennis Eagle Limited,V1009471,03/11/2022,29.69,Place & Communities 2,Transport Related Expenses,T35002/C011,Stock Account,Parts
Ashfield District Council,37UB,Dennis Eagle Limited,V1009471,03/11/2022,58.83,Place & Communities 2,Transport Related Expenses,T35002/C011,Stock Account,Parts
Ashfield District Council,37UB,Dennis Eagle Limited,V1009536,03/11/2022,375.00,Place & Communities 2,Transport Related Expenses,T35002/C011,Stock Account,Parts
Ashfield District Council,37UB,Dennis Eagle Limited,V1009554,03/11/2022,114.44,Place & Communities 2,Transport Related Expenses,T35002/C011,Stock Account,Parts
Ashfield District Council,37UB,Dennis Eagle Limited,V1009554,03/11/2022,234.85,Place & Communities 2,Transport Related Expenses,T35002/C011,Stock Account,Parts
Ashfield District Council,37UB,Dennis Eagle Limited,V1009555,03/11/2022,221.84,Place & Communities 2,Transport Related Expenses,T35002/C011,Stock Account,Parts
Ashfield District Council,37UB,Dennis Eagle Limited,V1009555,03/11/2022,50.99,Place & Communities 2,Transport Related Expenses,T35002/C011,Stock Account,Parts
Ashfield District Council,37UB,Dennis Eagle Limited,V1009555,03/11/2022,37.22,Place & Communities 2,Transport Related Expenses,T35002/C011,Stock Account,Parts
Ashfield District Council,37UB,Dennis Eagle Limited,V1009578,03/11/2022,300.00,Place & Communities 2,Transport Related Expenses,T35002/C011,Stock Account,Parts
Ashfield District Council,37UB,Dennis Eagle Limited,V1009579,03/11/2022,350.00,Place & Communities 2,Transport Related Expenses,T35002/C011,Stock Account,Parts
Ashfield District Council,37UB,Dennis Eagle Limited,V1010559,03/11/2022,40.36,Place & Communities 2,Transport Related Expenses,T35002/C011,Stock Account,Parts
Ashfield District Council,37UB,Dennis Eagle Limited,V1010559,03/11/2022,28.94,Place & Communities 2,Transport Related Expenses,T35002/C011,Stock Account,Parts
Ashfield District Council,37UB,Dennis Eagle Limited,V1010559,03/11/2022,8.34,Place & Communities 2,Transport Related Expenses,T35002/C011,Stock Account,Parts
Ashfield District Council,37UB,Dennis Eagle Limited,V1010559,03/11/2022,7.38,Place & Communities 2,Transport Related Expenses,T35002/C011,Stock Account,Parts
Ashfield District Council,37UB,Dennis Eagle Limited,V1010559,03/11/2022,328.95,Place & Communities 2,Transport Related Expenses,T35002/C011,Stock Account,Parts
Ashfield District Council,37UB,Dennis Eagle Limited,V1009112,10/11/2022,55.46,Place & Communities 2,Transport Related Expenses,T35002/C011,Stock Account,Parts
Ashfield District Council,37UB,Dennis Eagle Limited,V1010638,10/11/2022,22.96,Place & Communities 2,Transport Related Expenses,T35002/C011,Stock Account,Parts
Ashfield District Council,37UB,Dennis Eagle Limited,V1010638,10/11/2022,8.61,Place & Communities 2,Transport Related Expenses,T35002/C011,Stock Account,Parts
Ashfield District Council,37UB,Dennis Eagle Limited,V1010638,10/11/2022,67.24,Place & Communities 2,Transport Related Expenses,T35002/C011,Stock Account,Parts
Ashfield District Council,37UB,Dennis Eagle Limited,V1010638,10/11/2022,11.92,Place & Communities 2,Transport Related Expenses,T35002/C011,Stock Account,Parts
Ashfield District Council,37UB,Dennis Eagle Limited,V1010638,10/11/2022,234.86,Place & Communities 2,Transport Related Expenses,T35002/C011,Stock Account,Parts
Ashfield District Council,37UB,Dennis Eagle Limited,V1010638,10/11/2022,114.44,Place & Communities 2,Transport Related Expenses,T35002/C011,Stock Account,Parts
Ashfield District Council,37UB,Dennis Eagle Limited,V1010639,10/11/2022,22.97,Place & Communities 2,Transport Related Expenses,T35002/C011,Stock Account,Parts
Ashfield District Council,37UB,Dennis Eagle Limited,V1010639,10/11/2022,11.92,Place & Communities 2,Transport Related Expenses,T35002/C011,Stock Account,Parts
Ashfield District Council,37UB,Dennis Eagle Limited,V1010717,10/11/2022,18.95,Place & Communities 2,Transport Related Expenses,T35002/C011,Stock Account,Parts
Ashfield District Council,37UB,Dennis Eagle Limited,V1010717,10/11/2022,122.52,Place & Communities 2,Transport Related Expenses,T35002/C011,Stock Account,Parts
Ashfield District Council,37UB,Dennis Eagle Limited,V1010717,10/11/2022,54.21,Place & Communities 2,Transport Related Expenses,T35002/C011,Stock Account,Parts
Ashfield District Council,37UB,Dennis Eagle Limited,V1010718,10/11/2022,82.40,Place & Communities 2,Transport Related Expenses,T35002/C011,Stock Account,Parts
Ashfield District Council,37UB,Dennis Eagle Limited,V1010791,10/11/2022,114.44,Place & Communities 2,Transport Related Expenses,T35002/C011,Stock Account,Parts
Ashfield District Council,37UB,Dennis Eagle Limited,V1010791,10/11/2022,234.85,Place & Communities 2,Transport Related Expenses,T35002/C011,Stock Account,Parts
Ashfield District Council,37UB,Dennis Eagle Limited,V1010792,10/11/2022,81.38,Place & Communities 2,Transport Related Expenses,T35002/C011,Stock Account,Parts
Ashfield District Council,37UB,Dennis Eagle Limited,V1010792,10/11/2022,117.67,Place & Communities 2,Transport Related Expenses,T35002/C011,Stock Account,Parts
Ashfield District Council,37UB,Dennis Eagle Limited,V1010792,10/11/2022,74.45,Place & Communities 2,Transport Related Expenses,T35002/C011,Stock Account,Parts
Ashfield District Council,37UB,Dennis Eagle Limited,V1011345,17/11/2022,100.00,Place & Communities 2,Transport Related Expenses,T35002/C011,Stock Account,Parts
Ashfield District Council,37UB,Dennis Eagle Limited,V1011438,17/11/2022,27.10,Place & Communities 2,Transport Related Expenses,T35002/C011,Stock Account,Parts
Ashfield District Council,37UB,Dennis Eagle Limited,V1011438,17/11/2022,47.56,Place & Communities 2,Transport Related Expenses,T35002/C011,Stock Account,Parts
Ashfield District Council,37UB,Dennis Eagle Limited,V1011438,17/11/2022,183.96,Place & Communities 2,Transport Related Expenses,T35002/C011,Stock Account,Parts
Ashfield District Council,37UB,Dennis Eagle Limited,V1011443,17/11/2022,245.52,Place & Communities 2,Transport Related Expenses,T35002/C011,Stock Account,Parts
Ashfield District Council,37UB,Dennis Eagle Limited,V1011443,17/11/2022,242.60,Place & Communities 2,Transport Related Expenses,T35002/C011,Stock Account,Parts
Ashfield District Council,37UB,Dennis Eagle Limited,V1011443,17/11/2022,79.56,Place & Communities 2,Transport Related Expenses,T35002/C011,Stock Account,Parts
Ashfield District Council,37UB,Dennis Eagle Limited,V1011443,17/11/2022,7.07,Place & Communities 2,Transport Related Expenses,T35002/C011,Stock Account,Parts
Ashfield District Council,37UB,Dennis Eagle Limited,V1011443,17/11/2022,100.68,Place & Communities 2,Transport Related Expenses,T35002/C011,Stock Account,Parts
Ashfield District Council,37UB,Dennis Eagle Limited,V1011790,18/11/2022,18.07,Place & Communities 2,Transport Related Expenses,T35002/C011,Stock Account,Parts
Ashfield District Council,37UB,Dennis Eagle Limited,V1011790,18/11/2022,13.59,Place & Communities 2,Transport Related Expenses,T35002/C011,Stock Account,Parts
Ashfield District Council,37UB,Dennis Eagle Limited,V1011790,18/11/2022,234.84,Place & Communities 2,Transport Related Expenses,T35002/C011,Stock Account,Parts
Ashfield District Council,37UB,Dennis Eagle Limited,V1011790,18/11/2022,566.69,Place & Communities 2,Transport Related Expenses,T35002/C011,Stock Account,Parts
Ashfield District Council,37UB,Dennis Eagle Limited,V1011790,18/11/2022,5.70,Place & Communities 2,Transport Related Expenses,T35002/C011,Stock Account,Parts
Ashfield District Council,37UB,Dennis Eagle Limited,V1011790,18/11/2022,106.11,Place & Communities 2,Transport Related Expenses,T35002/C011,Stock Account,Parts
Ashfield District Council,37UB,Dennis Eagle Limited,V1011790,18/11/2022,114.44,Place & Communities 2,Transport Related Expenses,T35002/C011,Stock Account,Parts
Ashfield District Council,37UB,Dennis Eagle Limited,V1011790,18/11/2022,54.20,Place & Communities 2,Transport Related Expenses,T35002/C011,Stock Account,Parts
Ashfield District Council,37UB,Dennis Eagle Limited,V1011790,18/11/2022,133.61,Place & Communities 2,Transport Related Expenses,T35002/C011,Stock Account,Parts
Ashfield District Council,37UB,Dennis Eagle Limited,V1011790,18/11/2022,4.05,Place & Communities 2,Transport Related Expenses,T35002/C011,Stock Account,Parts
Ashfield District Council,37UB,Dennis Eagle Limited,V1011842,24/11/2022,36.14,Place & Communities 2,Transport Related Expenses,T35002/C011,Stock Account,Parts
Ashfield District Council,37UB,Dennis Eagle Limited,V1011842,24/11/2022,271.26,Place & Communities 2,Transport Related Expenses,T35002/C011,Stock Account,Parts
Ashfield District Council,37UB,Dennis Eagle Limited,V1011842,24/11/2022,239.49,Place & Communities 2,Transport Related Expenses,T35002/C011,Stock Account,Parts
Ashfield District Council,37UB,Dennis Eagle Limited,V1011842,24/11/2022,394.71,Place & Communities 2,Transport Related Expenses,T35002/C011,Stock Account,Parts
Ashfield District Council,37UB,Dennis Eagle Limited,V1011847,24/11/2022,5.94,Place & Communities 2,Transport Related Expenses,T35002/C011,Stock Account,Parts
Ashfield District Council,37UB,Dennis Eagle Limited,V1011883,24/11/2022,106.10,Place & Communities 2,Transport Related Expenses,T35002/C011,Stock Account,Parts
Ashfield District Council,37UB,Dennis Eagle Limited,V1011883,24/11/2022,17.23,Place & Communities 2,Transport Related Expenses,T35002/C011,Stock Account,Parts
Ashfield District Council,37UB,Dennis Eagle Limited,V1011883,24/11/2022,11.92,Place & Communities 2,Transport Related Expenses,T35002/C011,Stock Account,Parts
Ashfield District Council,37UB,Dennis Eagle Limited,V1011883,24/11/2022,55.35,Place & Communities 2,Transport Related Expenses,T35002/C011,Stock Account,Parts
Ashfield District Council,37UB,Dennis Eagle Limited,V1011962,24/11/2022,72.83,Place & Communities 2,Transport Related Expenses,T35002/C011,Stock Account,Parts
Ashfield District Council,37UB,Dennis Eagle Limited,V1011962,24/11/2022,222.25,Place & Communities 2,Transport Related Expenses,T35002/C011,Stock Account,Parts
Ashfield District Council,37UB,Eurotrucks (Mansfield) Ltd,V1011288,17/11/2022,28.00,Place & Communities 2,Transport Related Expenses,T35002/C011,Stock Account,Parts
Ashfield District Council,37UB,Eurotrucks (Mansfield) Ltd,V1011288,17/11/2022,25.42,Place & Communities 2,Transport Related Expenses,T35002/C011,Stock Account,Parts
Ashfield District Council,37UB,Ford Motor Company T/A Parts Plus,V1009526,03/11/2022,14.78,Place & Communities 2,Transport Related Expenses,T35002/C011,Stock Account,Parts
Ashfield District Council,37UB,Ford Motor Company T/A Parts Plus,V1009526,03/11/2022,17.44,Place & Communities 2,Transport Related Expenses,T35002/C011,Stock Account,Parts
Ashfield District Council,37UB,Ford Motor Company T/A Parts Plus,V1009526,03/11/2022,87.70,Place & Communities 2,Transport Related Expenses,T35002/C011,Stock Account,Parts
Ashfield District Council,37UB,Ford Motor Company T/A Parts Plus,V1009526,03/11/2022,20.84,Place & Communities 2,Transport Related Expenses,T35002/C011,Stock Account,Parts
Ashfield District Council,37UB,Ford Motor Company T/A Parts Plus,V1009526,03/11/2022,61.51,Place & Communities 2,Transport Related Expenses,T35002/C011,Stock Account,Parts
Ashfield District Council,37UB,Ford Motor Company T/A Parts Plus,V1009527,03/11/2022,126.81,Place & Communities 2,Transport Related Expenses,T35002/C011,Stock Account,Parts
Ashfield District Council,37UB,Ford Motor Company T/A Parts Plus,V1009527,03/11/2022,109.38,Place & Communities 2,Transport Related Expenses,T35002/C011,Stock Account,Parts
Ashfield District Council,37UB,Ford Motor Company T/A Parts Plus,V1009527,03/11/2022,1.18,Place & Communities 2,Transport Related Expenses,T35002/C011,Stock Account,Parts
Ashfield District Council,37UB,Ford Motor Company T/A Parts Plus,V1009527,03/11/2022,19.75,Place & Communities 2,Transport Related Expenses,T35002/C011,Stock Account,Parts
Ashfield District Council,37UB,Ford Motor Company T/A Parts Plus,V1009527,03/11/2022,0.84,Place & Communities 2,Transport Related Expenses,T35002/C011,Stock Account,Parts
Ashfield District Council,37UB,Ford Motor Company T/A Parts Plus,V1010567,03/11/2022,30.76,Place & Communities 2,Transport Related Expenses,T35002/C011,Stock Account,Parts
Ashfield District Council,37UB,Ford Motor Company T/A Parts Plus,V1010567,03/11/2022,63.65,Place & Communities 2,Transport Related Expenses,T35002/C011,Stock Account,Parts
Ashfield District Council,37UB,Ford Motor Company T/A Parts Plus,V1010585,03/11/2022,15.49,Place & Communities 2,Transport Related Expenses,T35002/C011,Stock Account,Parts
Ashfield District Council,37UB,Ford Motor Company T/A Parts Plus,V1010585,03/11/2022,26.01,Place & Communities 2,Transport Related Expenses,T35002/C011,Stock Account,Parts
Ashfield District Council,37UB,Ford Motor Company T/A Parts Plus,V1010624,17/11/2022,-233.26,Place & Communities 2,Transport Related Expenses,T35002/C011,Stock Account,Parts
Ashfield District Council,37UB,Ford Motor Company T/A Parts Plus,V1010629,17/11/2022,21.71,Place & Communities 2,Transport Related Expenses,T35002/C011,Stock Account,Parts
Ashfield District Council,37UB,Ford Motor Company T/A Parts Plus,V1010630,17/11/2022,11.22,Place & Communities 2,Transport Related Expenses,T35002/C011,Stock Account,Parts
Ashfield District Council,37UB,Ford Motor Company T/A Parts Plus,V1010631,17/11/2022,14.78,Place & Communities 2,Transport Related Expenses,T35002/C011,Stock Account,Parts
Ashfield District Council,37UB,Ford Motor Company T/A Parts Plus,V1010631,17/11/2022,14.78,Place & Communities 2,Transport Related Expenses,T35002/C011,Stock Account,Parts
Ashfield District Council,37UB,Ford Motor Company T/A Parts Plus,V1010631,17/11/2022,13.01,Place & Communities 2,Transport Related Expenses,T35002/C011,Stock Account,Parts
Ashfield District Council,37UB,Ford Motor Company T/A Parts Plus,V1010632,17/11/2022,34.99,Place & Communities 2,Transport Related Expenses,T35002/C011,Stock Account,Parts
Ashfield District Council,37UB,Ford Motor Company T/A Parts Plus,V1010634,17/11/2022,-82.00,Place & Communities 2,Transport Related Expenses,T35002/C011,Stock Account,Parts
Ashfield District Council,37UB,Ford Motor Company T/A Parts Plus,V1010641,17/11/2022,39.92,Place & Communities 2,Transport Related Expenses,T35002/C011,Stock Account,Parts
Ashfield District Council,37UB,Ford Motor Company T/A Parts Plus,V1010641,17/11/2022,7.75,Place & Communities 2,Transport Related Expenses,T35002/C011,Stock Account,Parts
Ashfield District Council,37UB,Ford Motor Company T/A Parts Plus,V1010641,17/11/2022,26.01,Place & Communities 2,Transport Related Expenses,T35002/C011,Stock Account,Parts
Ashfield District Council,37UB,Ford Motor Company T/A Parts Plus,V1010642,17/11/2022,7.02,Place & Communities 2,Transport Related Expenses,T35002/C011,Stock Account,Parts
Ashfield District Council,37UB,Ford Motor Company T/A Parts Plus,V1010665,17/11/2022,-35.00,Place & Communities 2,Transport Related Expenses,T35002/C011,Stock Account,Parts
Ashfield District Council,37UB,Ford Motor Company T/A Parts Plus,V1010696,17/11/2022,26.01,Place & Communities 2,Transport Related Expenses,T35002/C011,Stock Account,Parts
Ashfield District Council,37UB,Ford Motor Company T/A Parts Plus,V1010696,17/11/2022,14.78,Place & Communities 2,Transport Related Expenses,T35002/C011,Stock Account,Parts
Ashfield District Council,37UB,Ford Motor Company T/A Parts Plus,V1010696,17/11/2022,23.56,Place & Communities 2,Transport Related Expenses,T35002/C011,Stock Account,Parts
Ashfield District Council,37UB,Ford Motor Company T/A Parts Plus,V1010702,17/11/2022,18.37,Place & Communities 2,Transport Related Expenses,T35002/C011,Stock Account,Parts
Ashfield District Council,37UB,Ford Motor Company T/A Parts Plus,V1010702,17/11/2022,7.86,Place & Communities 2,Transport Related Expenses,T35002/C011,Stock Account,Parts
Ashfield District Council,37UB,Ford Motor Company T/A Parts Plus,V1010704,17/11/2022,14.04,Place & Communities 2,Transport Related Expenses,T35002/C011,Stock Account,Parts
Ashfield District Council,37UB,Ford Motor Company T/A Parts Plus,V1011290,17/11/2022,5.96,Place & Communities 2,Transport Related Expenses,T35002/C011,Stock Account,Parts
Ashfield District Council,37UB,Ford Motor Company T/A Parts Plus,V1011290,17/11/2022,19.80,Place & Communities 2,Transport Related Expenses,T35002/C011,Stock Account,Parts
Ashfield District Council,37UB,Ford Motor Company T/A Parts Plus,V1011290,17/11/2022,14.78,Place & Communities 2,Transport Related Expenses,T35002/C011,Stock Account,Parts
Ashfield District Council,37UB,Ford Motor Company T/A Parts Plus,V1011290,17/11/2022,8.74,Place & Communities 2,Transport Related Expenses,T35002/C011,Stock Account,Parts
Ashfield District Council,37UB,Ford Motor Company T/A Parts Plus,V1011290,17/11/2022,26.02,Place & Communities 2,Transport Related Expenses,T35002/C011,Stock Account,Parts
Ashfield District Council,37UB,Ford Motor Company T/A Parts Plus,V1011290,17/11/2022,8.34,Place & Communities 2,Transport Related Expenses,T35002/C011,Stock Account,Parts
Ashfield District Council,37UB,Ford Motor Company T/A Parts Plus,V1011290,17/11/2022,10.42,Place & Communities 2,Transport Related Expenses,T35002/C011,Stock Account,Parts
Ashfield District Council,37UB,Ford Motor Company T/A Parts Plus,V1011290,17/11/2022,31.36,Place & Communities 2,Transport Related Expenses,T35002/C011,Stock Account,Parts
Ashfield District Council,37UB,Ford Motor Company T/A Parts Plus,V1011290,17/11/2022,30.54,Place & Communities 2,Transport Related Expenses,T35002/C011,Stock Account,Parts
Ashfield District Council,37UB,Ford Motor Company T/A Parts Plus,V1011291,17/11/2022,-769.36,Place & Communities 2,Transport Related Expenses,T35002/C011,Stock Account,Parts
Ashfield District Council,37UB,Ford Motor Company T/A Parts Plus,V1011326,17/11/2022,738.00,Place & Communities 2,Transport Related Expenses,T35002/C011,Stock Account,Parts
Ashfield District Council,37UB,Ford Motor Company T/A Parts Plus,V1011327,17/11/2022,31.36,Place & Communities 2,Transport Related Expenses,T35002/C011,Stock Account,Parts
Ashfield District Council,37UB,Ford Motor Company T/A Parts Plus,V1011360,17/11/2022,14.71,Place & Communities 2,Transport Related Expenses,T35002/C011,Stock Account,Parts
Ashfield District Council,37UB,Ford Motor Company T/A Parts Plus,V1011386,17/11/2022,37.87,Place & Communities 2,Transport Related Expenses,T35002/C011,Stock Account,Parts
Ashfield District Council,37UB,Ford Motor Company T/A Parts Plus,V1012253,24/11/2022,18.49,Place & Communities 2,Transport Related Expenses,T35002/C011,Stock Account,Parts
Ashfield District Council,37UB,Ford Motor Company T/A Parts Plus,V1012253,24/11/2022,34.44,Place & Communities 2,Transport Related Expenses,T35004/C005,Stock Account,Lubricants
Ashfield District Council,37UB,Ford Motor Company T/A Parts Plus,V1012254,24/11/2022,144.15,Place & Communities 2,Transport Related Expenses,T35002/C011,Stock Account,Parts
Ashfield District Council,37UB,Ford Motor Company T/A Parts Plus,V1012256,24/11/2022,14.78,Place & Communities 2,Transport Related Expenses,T35002/C011,Stock Account,Parts
Ashfield District Council,37UB,Ford Motor Company T/A Parts Plus,V1012256,24/11/2022,13.01,Place & Communities 2,Transport Related Expenses,T35002/C011,Stock Account,Parts
Ashfield District Council,37UB,Henton & Chattell Ltd,V1011964,24/11/2022,24.11,Place & Communities 2,Transport Related Expenses,T35002/C011,Stock Account,Parts
Ashfield District Council,37UB,Henton & Chattell Ltd,V1011964,24/11/2022,28.31,Place & Communities 2,Transport Related Expenses,T35002/C011,Stock Account,Parts
Ashfield District Council,37UB,Henton & Chattell Ltd,V1011964,24/11/2022,6.49,Place & Communities 2,Transport Related Expenses,T35002/C011,Stock Account,Parts
Ashfield District Council,37UB,Henton & Chattell Ltd,V1011964,24/11/2022,11.74,Place & Communities 2,Transport Related Expenses,T35002/C011,Stock Account,Parts
Ashfield District Council,37UB,Henton & Chattell Ltd,V1011964,24/11/2022,21.63,Place & Communities 2,Transport Related Expenses,T35002/C011,Stock Account,Parts
Ashfield District Council,37UB,Henton & Chattell Ltd,V1011964,24/11/2022,83.00,Place & Communities 2,Transport Related Expenses,T35002/C011,Stock Account,Parts
Ashfield District Council,37UB,Henton & Chattell Ltd,V1011964,24/11/2022,7.81,Place & Communities 2,Transport Related Expenses,T35002/C011,Stock Account,Parts
Ashfield District Council,37UB,HGV Direct Ltd,V1010709,10/11/2022,389.40,Place & Communities 2,Transport Related Expenses,T35002/C011,Stock Account,Parts
Ashfield District Council,37UB,HGV Direct Ltd,V1011301,17/11/2022,236.19,Place & Communities 2,Transport Related Expenses,T35002/C011,Stock Account,Parts
Ashfield District Council,37UB,HGV Direct Ltd,V1011329,17/11/2022,120.20,Place & Communities 2,Transport Related Expenses,T35002/C011,Stock Account,Parts
Ashfield District Council,37UB,Hiab Limited (DEL UK),V1011789,18/11/2022,18.00,Place & Communities 2,Transport Related Expenses,T35002/C011,Stock Account,Parts
Ashfield District Council,37UB,Hiab Limited (DEL UK),V1011789,18/11/2022,83.10,Place & Communities 2,Transport Related Expenses,T35002/C011,Stock Account,Parts
Ashfield District Council,37UB,Hiab Limited (DEL UK),V1011789,18/11/2022,50.85,Place & Communities 2,Transport Related Expenses,T35002/C011,Stock Account,Parts
Ashfield District Council,37UB,Hucknall Bypass Filling Station Ltd,V1011215,24/11/2022,231.44,Place & Communities 2,Supplies & Services,T35001/D001004,Stock Account,Chemicals and Materials Purchase
Ashfield District Council,37UB,Lodge Tyre Co Ltd,V1009145,03/11/2022,235.00,Place & Communities 2,Transport Related Expenses,T35003/C070,Stock Account,Tyres
Ashfield District Council,37UB,Lodge Tyre Co Ltd,V1009145,03/11/2022,245.00,Place & Communities 2,Transport Related Expenses,T35003/C070,Stock Account,Tyres
Ashfield District Council,37UB,Lodge Tyre Co Ltd,V1009145,03/11/2022,245.00,Place & Communities 2,Transport Related Expenses,T35003/C070,Stock Account,Tyres
Ashfield District Council,37UB,Lodge Tyre Co Ltd,V1009145,03/11/2022,65.00,Place & Communities 2,Transport Related Expenses,T35003/C070,Stock Account,Tyres
Ashfield District Council,37UB,Lodge Tyre Co Ltd,V1009145,03/11/2022,95.00,Place & Communities 2,Transport Related Expenses,T35003/C070,Stock Account,Tyres
Ashfield District Council,37UB,Lodge Tyre Co Ltd,V1009145,03/11/2022,15.00,Place & Communities 2,Transport Related Expenses,T35003/C070,Stock Account,Tyres
Ashfield District Council,37UB,Lodge Tyre Co Ltd,V1009145,03/11/2022,245.00,Place & Communities 2,Transport Related Expenses,T35003/C070,Stock Account,Tyres
Ashfield District Council,37UB,Lodge Tyre Co Ltd,V1009145,03/11/2022,30.00,Place & Communities 2,Transport Related Expenses,T35003/C070,Stock Account,Tyres
Ashfield District Council,37UB,Lodge Tyre Co Ltd,V1009145,03/11/2022,65.00,Place & Communities 2,Transport Related Expenses,T35003/C070,Stock Account,Tyres
Ashfield District Council,37UB,Lodge Tyre Co Ltd,V1009145,03/11/2022,60.00,Place & Communities 2,Transport Related Expenses,T35003/C070,Stock Account,Tyres
Ashfield District Council,37UB,Lodge Tyre Co Ltd,V1009145,03/11/2022,70.00,Place & Communities 2,Transport Related Expenses,T35003/C070,Stock Account,Tyres
Ashfield District Council,37UB,Lodge Tyre Co Ltd,V1009145,03/11/2022,125.00,Place & Communities 2,Transport Related Expenses,T35003/C070,Stock Account,Tyres
Ashfield District Council,37UB,Lodge Tyre Co Ltd,V1009426,03/11/2022,-15.00,Place & Communities 2,Transport Related Expenses,T35003/C070,Stock Account,Tyres
Ashfield District Council,37UB,Lodge Tyre Co Ltd,V1009494,03/11/2022,245.00,Place & Communities 2,Transport Related Expenses,T35003/C070,Stock Account,Tyres
Ashfield District Council,37UB,Lodge Tyre Co Ltd,V1009494,03/11/2022,65.00,Place & Communities 2,Transport Related Expenses,T35003/C070,Stock Account,Tyres
Ashfield District Council,37UB,Lodge Tyre Co Ltd,V1009494,03/11/2022,100.00,Place & Communities 2,Transport Related Expenses,T35003/C070,Stock Account,Tyres
Ashfield District Council,37UB,Lodge Tyre Co Ltd,V1009494,03/11/2022,65.00,Place & Communities 2,Transport Related Expenses,T35003/C070,Stock Account,Tyres
Ashfield District Council,37UB,Lodge Tyre Co Ltd,V1010663,10/11/2022,65.00,Place & Communities 2,Transport Related Expenses,T35003/C070,Stock Account,Tyres
Ashfield District Council,37UB,Lodge Tyre Co Ltd,V1010663,10/11/2022,70.00,Place & Communities 2,Transport Related Expenses,T35003/C070,Stock Account,Tyres
Ashfield District Council,37UB,Lodge Tyre Co Ltd,V1009449,24/11/2022,490.00,Place & Communities 2,Transport Related Expenses,T35003/C070,Stock Account,Tyres
Ashfield District Council,37UB,Lodge Tyre Co Ltd,V1009449,24/11/2022,57.00,Place & Communities 2,Transport Related Expenses,T35003/C070,Stock Account,Tyres
Ashfield District Council,37UB,Lodge Tyre Co Ltd,V1009449,24/11/2022,35.00,Place & Communities 2,Transport Related Expenses,T35003/C070,Stock Account,Tyres
Ashfield District Council,37UB,Lodge Tyre Co Ltd,V1009449,24/11/2022,645.00,Place & Communities 2,Transport Related Expenses,T35003/C070,Stock Account,Tyres
Ashfield District Council,37UB,Lodge Tyre Co Ltd,V1011317,24/11/2022,99.50,Place & Communities 2,Transport Related Expenses,t35002/c011,Stock Account,Parts
Ashfield District Council,37UB,Lodge Tyre Co Ltd,V1011317,24/11/2022,490.00,Place & Communities 2,Transport Related Expenses,T35003/C070,Stock Account,Tyres
Ashfield District Council,37UB,Lodge Tyre Co Ltd,V1011317,24/11/2022,130.00,Place & Communities 2,Transport Related Expenses,T35003/C070,Stock Account,Tyres
Ashfield District Council,37UB,Lodge Tyre Co Ltd,V1011317,24/11/2022,203.50,Place & Communities 2,Transport Related Expenses,T35003/C070,Stock Account,Tyres
Ashfield District Council,37UB,Lodge Tyre Co Ltd,V1011317,24/11/2022,66.00,Place & Communities 2,Transport Related Expenses,T35003/C070,Stock Account,Tyres
Ashfield District Council,37UB,Lodge Tyre Co Ltd,V1011317,24/11/2022,60.00,Place & Communities 2,Transport Related Expenses,T35003/C070,Stock Account,Tyres
Ashfield District Council,37UB,Lodge Tyre Co Ltd,V1011317,24/11/2022,35.00,Place & Communities 2,Transport Related Expenses,T35003/C070,Stock Account,Tyres
Ashfield District Council,37UB,Lodge Tyre Co Ltd,V1011831,24/11/2022,-55.00,Place & Communities 2,Transport Related Expenses,T35003/C070,Stock Account,Tyres
Ashfield District Council,37UB,Lodge Tyre Co Ltd,V1011832,24/11/2022,-19.50,Place & Communities 2,Transport Related Expenses,T35003/C070,Stock Account,Tyres
Ashfield District Council,37UB,Maurice Hill Transport Ltd,V1010661,10/11/2022,137.00,Place & Communities 2,Transport Related Expenses,T35002/C011,Stock Account,Parts
Ashfield District Council,37UB,Maurice Hill Transport Ltd,V1010661,10/11/2022,88.00,Place & Communities 2,Transport Related Expenses,T35002/C011,Stock Account,Parts
Ashfield District Council,37UB,Maurice Hill Transport Ltd,V1010733,10/11/2022,66.00,Place & Communities 2,Transport Related Expenses,T35002/C011,Stock Account,Parts
Ashfield District Council,37UB,Maurice Hill Transport Ltd,V1010733,10/11/2022,113.00,Place & Communities 2,Transport Related Expenses,T35002/C011,Stock Account,Parts
Ashfield District Council,37UB,Maurice Hill Transport Ltd,V1011370,17/11/2022,66.00,Place & Communities 2,Transport Related Expenses,T35002/C011,Stock Account,Parts
Ashfield District Council,37UB,Maurice Hill Transport Ltd,V1011370,17/11/2022,113.00,Place & Communities 2,Transport Related Expenses,T35002/C011,Stock Account,Parts
Ashfield District Council,37UB,Minorfern Ltd,V1011817,24/11/2022,6.54,Place & Communities 2,Transport Related Expenses,T35002/C011,Stock Account,Parts
Ashfield District Council,37UB,Mitchell Powersystems,V1009424,03/11/2022,705.71,Place & Communities 2,Transport Related Expenses,T35002/C011,Stock Account,Parts
Ashfield District Council,37UB,MOTUS Commercials,V1009519,03/11/2022,33.95,Place & Communities 2,Transport Related Expenses,T35002/C011,Stock Account,Parts
Ashfield District Council,37UB,MOTUS Commercials,V1009528,03/11/2022,360.00,Place & Communities 2,Transport Related Expenses,T35002/C011,Stock Account,Parts
Ashfield District Council,37UB,MOTUS Commercials,V1009529,03/11/2022,360.00,Place & Communities 2,Transport Related Expenses,T35002/C011,Stock Account,Parts
Ashfield District Council,37UB,MOTUS Commercials,V1009530,03/11/2022,86.85,Place & Communities 2,Transport Related Expenses,T35002/C011,Stock Account,Parts
Ashfield District Council,37UB,MOTUS Commercials,V1009541,10/11/2022,95.00,Place & Communities 2,Transport Related Expenses,T35002/C011,Stock Account,Parts
Ashfield District Council,37UB,MOTUS Commercials,V1011394,17/11/2022,37.93,Place & Communities 2,Transport Related Expenses,T35002/C011,Stock Account,Parts
Ashfield District Council,37UB,P S Marsden (Lawnmower Services) Ltd,V1009455,03/11/2022,1.01,Place & Communities 2,Transport Related Expenses,T35002/C011,Stock Account,Parts
Ashfield District Council,37UB,P S Marsden (Lawnmower Services) Ltd,V1009455,03/11/2022,30.86,Place & Communities 2,Transport Related Expenses,T35002/C011,Stock Account,Parts
Ashfield District Council,37UB,P S Marsden (Lawnmower Services) Ltd,V1009455,03/11/2022,1.15,Place & Communities 2,Transport Related Expenses,T35002/C011,Stock Account,Parts
Ashfield District Council,37UB,P S Marsden (Lawnmower Services) Ltd,V1009455,03/11/2022,8.25,Place & Communities 2,Transport Related Expenses,T35002/C011,Stock Account,Parts
Ashfield District Council,37UB,P S Marsden (Lawnmower Services) Ltd,V1009455,03/11/2022,5.94,Place & Communities 2,Transport Related Expenses,T35002/C011,Stock Account,Parts
Ashfield District Council,37UB,P S Marsden (Lawnmower Services) Ltd,V1009455,03/11/2022,12.50,Place & Communities 2,Transport Related Expenses,T35002/C011,Stock Account,Parts
Ashfield District Council,37UB,P S Marsden (Lawnmower Services) Ltd,V1009455,03/11/2022,1.99,Place & Communities 2,Transport Related Expenses,T35002/C011,Stock Account,Parts
Ashfield District Council,37UB,P S Marsden (Lawnmower Services) Ltd,V1009455,03/11/2022,5.94,Place & Communities 2,Transport Related Expenses,T35002/C011,Stock Account,Parts
Ashfield District Council,37UB,P S Marsden (Lawnmower Services) Ltd,V1009455,03/11/2022,1.28,Place & Communities 2,Transport Related Expenses,T35002/C011,Stock Account,Parts
Ashfield District Council,37UB,P S Marsden (Lawnmower Services) Ltd,V1009455,03/11/2022,1.11,Place & Communities 2,Transport Related Expenses,T35002/C011,Stock Account,Parts
Ashfield District Council,37UB,P S Marsden (Lawnmower Services) Ltd,V1009455,03/11/2022,44.48,Place & Communities 2,Transport Related Expenses,T35002/C011,Stock Account,Parts
Ashfield District Council,37UB,P S Marsden (Lawnmower Services) Ltd,V1009455,03/11/2022,1.51,Place & Communities 2,Transport Related Expenses,T35002/C011,Stock Account,Parts
Ashfield District Council,37UB,P S Marsden (Lawnmower Services) Ltd,V1009495,03/11/2022,12.00,Place & Communities 2,Transport Related Expenses,T35002/C011,Stock Account,Parts
Ashfield District Council,37UB,P S Marsden (Lawnmower Services) Ltd,V1009495,03/11/2022,91.44,Place & Communities 2,Transport Related Expenses,T35002/C011,Stock Account,Parts
Ashfield District Council,37UB,P S Marsden (Lawnmower Services) Ltd,V1010531,03/11/2022,9.00,Place & Communities 2,Transport Related Expenses,T35002/C011,Stock Account,Parts
Ashfield District Council,37UB,P S Marsden (Lawnmower Services) Ltd,V1010531,03/11/2022,347.64,Place & Communities 2,Transport Related Expenses,T35002/C011,Stock Account,Parts
Ashfield District Council,37UB,P S Marsden (Lawnmower Services) Ltd,V1010681,10/11/2022,69.86,Place & Communities 2,Transport Related Expenses,T35002/C011,Stock Account,Parts
Ashfield District Council,37UB,P S Marsden (Lawnmower Services) Ltd,V1010681,10/11/2022,2.76,Place & Communities 2,Transport Related Expenses,T35002/C011,Stock Account,Parts
Ashfield District Council,37UB,P S Marsden (Lawnmower Services) Ltd,V1011339,17/11/2022,2.78,Place & Communities 2,Transport Related Expenses,T35002/C011,Stock Account,Parts
Ashfield District Council,37UB,P S Marsden (Lawnmower Services) Ltd,V1011339,17/11/2022,62.76,Place & Communities 2,Transport Related Expenses,T35002/C011,Stock Account,Parts
Ashfield District Council,37UB,P S Marsden (Lawnmower Services) Ltd,V1011340,17/11/2022,252.66,Place & Communities 2,Transport Related Expenses,T35002/C011,Stock Account,Parts
Ashfield District Council,37UB,P S Marsden (Lawnmower Services) Ltd,V1011342,17/11/2022,76.90,Place & Communities 2,Transport Related Expenses,T35002/C011,Stock Account,Parts
Ashfield District Council,37UB,P S Marsden (Lawnmower Services) Ltd,V1011342,17/11/2022,80.10,Place & Communities 2,Transport Related Expenses,T35002/C011,Stock Account,Parts
Ashfield District Council,37UB,P S Marsden (Lawnmower Services) Ltd,V1011342,17/11/2022,156.54,Place & Communities 2,Transport Related Expenses,T35002/C011,Stock Account,Parts
Ashfield District Council,37UB,P S Marsden (Lawnmower Services) Ltd,V1011342,17/11/2022,457.89,Place & Communities 2,Transport Related Expenses,T35002/C011,Stock Account,Parts
Ashfield District Council,37UB,P S Marsden (Lawnmower Services) Ltd,V1011342,17/11/2022,36.62,Place & Communities 2,Transport Related Expenses,T35002/C011,Stock Account,Parts
Ashfield District Council,37UB,P S Marsden (Lawnmower Services) Ltd,V1011436,17/11/2022,39.39,Place & Communities 2,Transport Related Expenses,T35002/C011,Stock Account,Parts
Ashfield District Council,37UB,P S Marsden (Lawnmower Services) Ltd,V1011436,17/11/2022,43.30,Place & Communities 2,Transport Related Expenses,T35002/C011,Stock Account,Parts
Ashfield District Council,37UB,P S Marsden (Lawnmower Services) Ltd,V1011436,17/11/2022,10.96,Place & Communities 2,Transport Related Expenses,T35002/C011,Stock Account,Parts
Ashfield District Council,37UB,P S Marsden (Lawnmower Services) Ltd,V1011436,17/11/2022,150.16,Place & Communities 2,Transport Related Expenses,T35002/C011,Stock Account,Parts
Ashfield District Council,37UB,P S Marsden (Lawnmower Services) Ltd,V1011436,17/11/2022,21.48,Place & Communities 2,Transport Related Expenses,T35002/C011,Stock Account,Parts
Ashfield District Council,37UB,P S Marsden (Lawnmower Services) Ltd,V1011463,17/11/2022,19.16,Place & Communities 2,Transport Related Expenses,T35002/C011,Stock Account,Parts
Ashfield District Council,37UB,P S Marsden (Lawnmower Services) Ltd,V1011469,17/11/2022,220.52,Place & Communities 2,Transport Related Expenses,T35002/C011,Stock Account,Parts
Ashfield District Council,37UB,P S Marsden (Lawnmower Services) Ltd,V1011845,24/11/2022,43.93,Place & Communities 2,Transport Related Expenses,T35002/C011,Stock Account,Parts
Ashfield District Council,37UB,P S Marsden (Lawnmower Services) Ltd,V1011845,24/11/2022,24.03,Place & Communities 2,Transport Related Expenses,T35002/C011,Stock Account,Parts
Ashfield District Council,37UB,P S Marsden (Lawnmower Services) Ltd,V1011845,24/11/2022,0.16,Place & Communities 2,Transport Related Expenses,T35002/C011,Stock Account,Parts
Ashfield District Council,37UB,P S Marsden (Lawnmower Services) Ltd,V1011845,24/11/2022,9.00,Place & Communities 2,Transport Related Expenses,T35002/C011,Stock Account,Parts
Ashfield District Council,37UB,P S Marsden (Lawnmower Services) Ltd,V1011845,24/11/2022,6.66,Place & Communities 2,Transport Related Expenses,T35002/C011,Stock Account,Parts
Ashfield District Council,37UB,PB Auto Electrics Ltd,V1009531,03/11/2022,60.00,Place & Communities 2,Transport Related Expenses,T35002/C011,Stock Account,Parts
Ashfield District Council,37UB,PB Auto Electrics Ltd,V1011344,17/11/2022,295.39,Place & Communities 2,Transport Related Expenses,T35002/C011,Stock Account,Parts
Ashfield District Council,37UB,PB Auto Electrics Ltd,V1011804,24/11/2022,8.40,Place & Communities 2,Transport Related Expenses,T35002/C011,Stock Account,Parts
Ashfield District Council,37UB,PB Auto Electrics Ltd,V1011804,24/11/2022,8.15,Place & Communities 2,Transport Related Expenses,T35002/C011,Stock Account,Parts
Ashfield District Council,37UB,PB Auto Electrics Ltd,V1011843,24/11/2022,61.00,Place & Communities 2,Transport Related Expenses,T35002/C011,Stock Account,Parts
Ashfield District Council,37UB,PB Auto Electrics Ltd,V1011848,24/11/2022,60.50,Place & Communities 2,Transport Related Expenses,T35002/C011,Stock Account,Parts
Ashfield District Council,37UB,PB Auto Electrics Ltd,V1011867,24/11/2022,187.38,Place & Communities 2,Transport Related Expenses,T35002/C011,Stock Account,Parts
Ashfield District Council,37UB,PB Autofactors,V1008000,03/11/2022,10.75,Place & Communities 2,Transport Related Expenses,T35002/C011,Stock Account,Parts
Ashfield District Council,37UB,PB Autofactors,V1009569,03/11/2022,5.50,Place & Communities 2,Transport Related Expenses,T35002/C011,Stock Account,Parts
Ashfield District Council,37UB,PB Autofactors,V1009569,03/11/2022,7.98,Place & Communities 2,Transport Related Expenses,T35002/C011,Stock Account,Parts
Ashfield District Council,37UB,Pirtek Mansfield,V1010708,10/11/2022,193.11,Place & Communities 2,Transport Related Expenses,T35002/C011,Stock Account,Parts
Ashfield District Council,37UB,Rotec Ltd,V1012252,24/11/2022,179.00,Place & Communities 2,Transport Related Expenses,T35002/C011,Stock Account,Parts
Ashfield District Council,37UB,Spaldings UK Ltd,V1011373,17/11/2022,183.00,Place & Communities 2,Transport Related Expenses,T35002/C011,Stock Account,Parts
Ashfield District Council,37UB,Spaldings UK Ltd,V1011373,17/11/2022,62.55,Place & Communities 2,Transport Related Expenses,T35002/C011,Stock Account,Parts
Ashfield District Council,37UB,T C Harrison JCB,V1011337,17/11/2022,14.35,Place & Communities 2,Transport Related Expenses,T35002/C011,Stock Account,Parts
Ashfield District Council,37UB,T C Harrison JCB,V1011337,17/11/2022,3.49,Place & Communities 2,Transport Related Expenses,T35002/C011,Stock Account,Parts
Ashfield District Council,37UB,T C Harrison JCB,V1011337,17/11/2022,71.98,Place & Communities 2,Transport Related Expenses,T35002/C011,Stock Account,Parts
Ashfield District Council,37UB,Terberg Matec UK,V1009447,03/11/2022,2.24,Place & Communities 2,Transport Related Expenses,T35002/C011,Stock Account,Parts
Ashfield District Council,37UB,Terberg Matec UK,V1009447,03/11/2022,10.26,Place & Communities 2,Transport Related Expenses,T35002/C011,Stock Account,Parts
Ashfield District Council,37UB,Terberg Matec UK,V1009447,03/11/2022,46.07,Place & Communities 2,Transport Related Expenses,T35002/C011,Stock Account,Parts
Ashfield District Council,37UB,Terberg Matec UK,V1009568,03/11/2022,610.17,Place & Communities 2,Transport Related Expenses,T35002/C011,Stock Account,Parts
Ashfield District Council,37UB,Terberg Matec UK,V1010582,10/11/2022,-47.20,Place & Communities 2,Transport Related Expenses,T35002/C011,Stock Account,Parts
Ashfield District Council,37UB,Terberg Matec UK,V1010582,10/11/2022,326.96,Place & Communities 2,Transport Related Expenses,T35002/C011,Stock Account,Parts
Ashfield District Council,37UB,Terberg Matec UK,V1010582,10/11/2022,138.96,Place & Communities 2,Transport Related Expenses,T35002/C011,Stock Account,Parts
Ashfield District Council,37UB,Terberg Matec UK,V1010622,10/11/2022,278.34,Place & Communities 2,Transport Related Expenses,T35002/C011,Stock Account,Parts
Ashfield District Council,37UB,Terberg Matec UK,V1010682,10/11/2022,12.50,Place & Communities 2,Transport Related Expenses,T35002/C011,Stock Account,Parts
Ashfield District Council,37UB,Terberg Matec UK,V1010682,10/11/2022,281.18,Place & Communities 2,Transport Related Expenses,T35002/C011,Stock Account,Parts
Ashfield District Council,37UB,Terberg Matec UK,V1010682,10/11/2022,-28.12,Place & Communities 2,Transport Related Expenses,T35002/C011,Stock Account,Parts
Ashfield District Council,37UB,Terberg Matec UK,V1010719,10/11/2022,169.98,Place & Communities 2,Transport Related Expenses,T35002/C011,Stock Account,Parts
Ashfield District Council,37UB,Terberg Matec UK,V1010719,10/11/2022,3.60,Place & Communities 2,Transport Related Expenses,T35002/C011,Stock Account,Parts
Ashfield District Council,37UB,Terberg Matec UK,V1010720,10/11/2022,30.45,Place & Communities 2,Transport Related Expenses,T35002/C011,Stock Account,Parts
Ashfield District Council,37UB,Terberg Matec UK,V1010720,10/11/2022,111.82,Place & Communities 2,Transport Related Expenses,T35002/C011,Stock Account,Parts
Ashfield District Council,37UB,Terberg Matec UK,V1010724,10/11/2022,3.42,Place & Communities 2,Transport Related Expenses,T35002/C011,Stock Account,Parts
Ashfield District Council,37UB,Terberg Matec UK,V1010728,10/11/2022,65.00,Place & Communities 2,Transport Related Expenses,T35002/C011,Stock Account,Parts
Ashfield District Council,37UB,Terberg Matec UK,V1011364,17/11/2022,60.00,Place & Communities 2,Transport Related Expenses,T35002/C011,Stock Account,Parts
Ashfield District Council,37UB,Terberg Matec UK,V1011805,24/11/2022,372.64,Place & Communities 2,Transport Related Expenses,T35002/C011,Stock Account,Parts
Ashfield District Council,37UB,Terberg Matec UK,V1011844,24/11/2022,196.00,Place & Communities 2,Transport Related Expenses,T35002/C011,Stock Account,Parts
Ashfield District Council,37UB,The Lock Shop (SIA) Ltd,V1010558,03/11/2022,15.00,Place & Communities 2,Transport Related Expenses,T35002/C011,Stock Account,Parts
Ashfield District Council,37UB,The Lock Shop (SIA) Ltd,V1011226,10/11/2022,20.00,Place & Communities 2,Transport Related Expenses,T35002/C011,Stock Account,Parts
Ashfield District Council,37UB,The Lock Shop (SIA) Ltd,V1011934,24/11/2022,27.90,Place & Communities 2,Transport Related Expenses,T35002/C011,Stock Account,Parts
Ashfield District Council,37UB,The Lock Shop (SIA) Ltd,V1012241,24/11/2022,210.00,Place & Communities 2,Transport Related Expenses,T35002/C011,Stock Account,Parts
Ashfield District Council,37UB,Wasteparts UK Ltd,V1010748,10/11/2022,160.00,Place & Communities 2,Transport Related Expenses,T35002/C011,Stock Account,Parts
Ashfield District Council,37UB,Wasteparts UK Ltd,V1010748,10/11/2022,160.00,Place & Communities 2,Transport Related Expenses,T35002/C011,Stock Account,Parts
Ashfield District Council,37UB,,JV289056,24/11/2022,289598.00,R & B Transformation 2,Supplies & Services,T07020/D600002,Sundry Debtors Total Account,Reimbursements
Ashfield District Council,37UB,,JV289056,24/11/2022,870592.00,R & B Transformation 2,Supplies & Services,T07018/D600002,Sundry Debtors Total Account,Reimbursements
Ashfield District Council,37UB,,JV289056,24/11/2022,5629403.80,R & B Transformation 2,Supplies & Services,T07015/D600002,Sundry Debtors Total Account,Reimbursements
Ashfield District Council,37UB,Access Doors Limited,V1011250,17/11/2022,-251.00,R & B Transformation 2,Income,T07019002/J106,Sundry Debtors Total Account,Deductions
Ashfield District Council,37UB,AB Environmental Solutions Ltd,V1011261,17/11/2022,2420.00,Housing & Assets 2,Supplies & Services,T36006006/D200008,Work in Progress,Payments to Contractors External
Ashfield District Council,37UB,Orbis Property Protection Ltd,V1002820,17/11/2022,58.60,Housing & Assets 2,Supplies & Services,T36006008/D200008,Work in Progress,Payments to Contractors External
Ashfield District Council,37UB,Orbis Property Protection Ltd,V1004142,17/11/2022,58.60,Housing & Assets 2,Supplies & Services,T36006008/D200008,Work in Progress,Payments to Contractors External
Ashfield District Council,37UB,Orbis Property Protection Ltd,V1004144,17/11/2022,58.60,Housing & Assets 2,Supplies & Services,T36006008/D200008,Work in Progress,Payments to Contractors External
Ashfield District Council,37UB,Orbis Property Protection Ltd,V1004147,17/11/2022,58.60,Housing & Assets 2,Supplies & Services,T36006008/D200008,Work in Progress,Payments to Contractors External
Ashfield District Council,37UB,Orbis Property Protection Ltd,V1004149,17/11/2022,58.60,Housing & Assets 2,Supplies & Services,T36006008/D200008,Work in Progress,Payments to Contractors External
Ashfield District Council,37UB,Orbis Property Protection Ltd,V1004157,17/11/2022,117.20,Housing & Assets 2,Supplies & Services,T36006008/D200008,Work in Progress,Payments to Contractors External
Ashfield District Council,37UB,Orbis Property Protection Ltd,V1009150,17/11/2022,58.60,Housing & Assets 2,Supplies & Services,T36006008/D200008,Work in Progress,Payments to Contractors External
Ashfield District Council,37UB,Orbis Property Protection Ltd,V1010609,17/11/2022,58.60,Housing & Assets 2,Supplies & Services,T36006008/D200008,Work in Progress,Payments to Contractors External
Ashfield District Council,37UB,Excel Cleaning Solutions Ltd,V1010587,03/11/2022,46.00,Housing & Assets 2,Premises Expenses,G51015/B003005,Housing OP and SN,Window Cleaning
Ashfield District Council,37UB,Excel Cleaning Solutions Ltd,V1010587,03/11/2022,24.00,Housing & Assets 2,Premises Expenses,G51023/B003004,Housing OP and SN,Cleaning
Ashfield District Council,37UB,Excel Cleaning Solutions Ltd,V1010587,03/11/2022,18.00,Housing & Assets 2,Premises Expenses,G51016/B004006,Housing OP and SN,General; Building Repairs & Courts
Ashfield District Council,37UB,Excel Cleaning Solutions Ltd,V1010587,03/11/2022,22.00,Housing & Assets 2,Premises Expenses,G51028/B003005,Housing OP and SN,Window Cleaning
Ashfield District Council,37UB,Excel Cleaning Solutions Ltd,V1010589,03/11/2022,20.00,Housing & Assets 2,Premises Expenses,G51029/B003005,Housing OP and SN,Window Cleaning
Ashfield District Council,37UB,Excel Cleaning Solutions Ltd,V1010589,03/11/2022,40.00,Housing & Assets 2,Premises Expenses,G51042/B003005,Housing OP and SN,Window Cleaning
Ashfield District Council,37UB,Excel Cleaning Solutions Ltd,V1010589,03/11/2022,45.00,Housing & Assets 2,Premises Expenses,G51049/B003005,Housing OP and SN,Window Cleaning
Ashfield District Council,37UB,Excel Cleaning Solutions Ltd,V1010589,03/11/2022,15.00,Housing & Assets 2,Premises Expenses,G51065/B003005,Housing OP and SN,Window Cleaning
Ashfield District Council,37UB,Excel Cleaning Solutions Ltd,V1010589,03/11/2022,15.00,Housing & Assets 2,Premises Expenses,G51041/B003005,Housing OP and SN,Window Cleaning
Ashfield District Council,37UB,Excel Cleaning Solutions Ltd,V1010589,03/11/2022,20.00,Housing & Assets 2,Premises Expenses,G51029/B003005,Housing OP and SN,Window Cleaning
Ashfield District Council,37UB,Excel Cleaning Solutions Ltd,V1010589,03/11/2022,60.00,Housing & Assets 2,Premises Expenses,G51046/B003005,Housing OP and SN,Window Cleaning
Ashfield District Council,37UB,Excel Cleaning Solutions Ltd,V1010589,03/11/2022,20.00,Housing & Assets 2,Premises Expenses,G51029/B003005,Housing OP and SN,Window Cleaning
Ashfield District Council,37UB,Excel Cleaning Solutions Ltd,V1010589,03/11/2022,40.00,Housing & Assets 2,Premises Expenses,G51029/B003005,Housing OP and SN,Window Cleaning
Ashfield District Council,37UB,Excel Cleaning Solutions Ltd,V1010589,03/11/2022,60.00,Housing & Assets 2,Premises Expenses,G51039/B003005,Housing OP and SN,Window Cleaning
Ashfield District Council,37UB,Excel Cleaning Solutions Ltd,V1010590,03/11/2022,30.00,Housing & Assets 2,Premises Expenses,G51024/B003005,Housing OP and SN,Window Cleaning
Ashfield District Council,37UB,Excel Cleaning Solutions Ltd,V1010590,03/11/2022,18.00,Housing & Assets 2,Premises Expenses,G51038/B003005,Housing OP and SN,Window Cleaning
Ashfield District Council,37UB,Excel Cleaning Solutions Ltd,V1010590,03/11/2022,15.00,Housing & Assets 2,Premises Expenses,G51047/B003005,Housing OP and SN,Window Cleaning
Ashfield District Council,37UB,Excel Cleaning Solutions Ltd,V1010590,03/11/2022,25.00,Housing & Assets 2,Premises Expenses,G51060/B003005,Housing OP and SN,Window Cleaning
Ashfield District Council,37UB,Excel Cleaning Solutions Ltd,V1010590,03/11/2022,95.00,Housing & Assets 2,Premises Expenses,G51022/B003005,Housing OP and SN,Window Cleaning
Ashfield District Council,37UB,Excel Cleaning Solutions Ltd,V1010590,03/11/2022,40.00,Housing & Assets 2,Premises Expenses,G51021/B003005,Housing OP and SN,Window Cleaning
Ashfield District Council,37UB,Excel Cleaning Solutions Ltd,V1010590,03/11/2022,20.00,Housing & Assets 2,Premises Expenses,G51007/B003005,Housing OP and SN,Window Cleaning
Ashfield District Council,37UB,Excel Cleaning Solutions Ltd,V1010590,03/11/2022,60.00,Housing & Assets 2,Premises Expenses,G51026/B003005,Housing OP and SN,Window Cleaning
Ashfield District Council,37UB,Excel Cleaning Solutions Ltd,V1010590,03/11/2022,16.00,Housing & Assets 2,Premises Expenses,G51040/B003005,Housing OP and SN,Window Cleaning
Ashfield District Council,37UB,Excel Cleaning Solutions Ltd,V1010592,03/11/2022,40.00,Housing & Assets 2,Premises Expenses,G51036/B003005,Housing OP and SN,Window Cleaning
Ashfield District Council,37UB,Excel Cleaning Solutions Ltd,V1010592,03/11/2022,20.00,Housing & Assets 2,Premises Expenses,G51053/B003005,Housing OP and SN,Window Cleaning
Ashfield District Council,37UB,Excel Cleaning Solutions Ltd,V1010592,03/11/2022,45.00,Housing & Assets 2,Premises Expenses,G51037/B003005,Housing OP and SN,Window Cleaning
Ashfield District Council,37UB,Excel Cleaning Solutions Ltd,V1010592,03/11/2022,20.00,Housing & Assets 2,Premises Expenses,G51035/B003005,Housing OP and SN,Window Cleaning
Ashfield District Council,37UB,Excel Cleaning Solutions Ltd,V1010592,03/11/2022,150.00,Housing & Assets 2,Premises Expenses,G51017/B003005,Housing OP and SN,Window Cleaning
Ashfield District Council,37UB,Excel Cleaning Solutions Ltd,V1010592,03/11/2022,20.00,Housing & Assets 2,Premises Expenses,G51066/B003005,Housing OP and SN,Window Cleaning
Ashfield District Council,37UB,Excel Cleaning Solutions Ltd,V1010593,03/11/2022,70.00,Housing & Assets 2,Premises Expenses,G51027/B003005,Housing OP and SN,Window Cleaning
Ashfield District Council,37UB,Excel Cleaning Solutions Ltd,V1010593,03/11/2022,90.00,Housing & Assets 2,Premises Expenses,G51033/B003005,Housing OP and SN,Window Cleaning
Ashfield District Council,37UB,Excel Cleaning Solutions Ltd,V1010593,03/11/2022,90.00,Housing & Assets 2,Premises Expenses,G51032/B003005,Housing OP and SN,Window Cleaning
Ashfield District Council,37UB,Excel Cleaning Solutions Ltd,V1010593,03/11/2022,36.00,Housing & Assets 2,Premises Expenses,G51013/B003005,Housing OP and SN,Window Cleaning
Ashfield District Council,37UB,Excel Cleaning Solutions Ltd,V1010593,03/11/2022,30.00,Housing & Assets 2,Premises Expenses,G51030/B003005,Housing OP and SN,Window Cleaning
Ashfield District Council,37UB,Excel Cleaning Solutions Ltd,V1010753,10/11/2022,40.00,Housing & Assets 2,Premises Expenses,G51021/B003005,Housing OP and SN,Window Cleaning
Ashfield District Council,37UB,Excel Cleaning Solutions Ltd,V1010753,10/11/2022,20.00,Housing & Assets 2,Premises Expenses,G51007/B003005,Housing OP and SN,Window Cleaning
Ashfield District Council,37UB,Excel Cleaning Solutions Ltd,V1010753,10/11/2022,30.00,Housing & Assets 2,Premises Expenses,G51024/B003005,Housing OP and SN,Window Cleaning
Ashfield District Council,37UB,Excel Cleaning Solutions Ltd,V1010753,10/11/2022,95.00,Housing & Assets 2,Premises Expenses,G51022/B003005,Housing OP and SN,Window Cleaning
Ashfield District Council,37UB,Excel Cleaning Solutions Ltd,V1010753,10/11/2022,16.00,Housing & Assets 2,Premises Expenses,G51040/B003005,Housing OP and SN,Window Cleaning
Ashfield District Council,37UB,Excel Cleaning Solutions Ltd,V1010753,10/11/2022,25.00,Housing & Assets 2,Premises Expenses,G51060/B003005,Housing OP and SN,Window Cleaning
Ashfield District Council,37UB,Excel Cleaning Solutions Ltd,V1010753,10/11/2022,15.00,Housing & Assets 2,Premises Expenses,G51047/B003005,Housing OP and SN,Window Cleaning
Ashfield District Council,37UB,Excel Cleaning Solutions Ltd,V1010753,10/11/2022,18.00,Housing & Assets 2,Premises Expenses,G51038/B003005,Housing OP and SN,Window Cleaning
Ashfield District Council,37UB,Excel Cleaning Solutions Ltd,V1010753,10/11/2022,60.00,Housing & Assets 2,Premises Expenses,G51026/B003005,Housing OP and SN,Window Cleaning
Ashfield District Council,37UB,Excel Cleaning Solutions Ltd,V1010753,10/11/2022,54.00,Housing & Assets 2,Premises Expenses,G51008/B003005,Housing OP and SN,Window Cleaning
Ashfield District Council,37UB,Excel Cleaning Solutions Ltd,V1010754,10/11/2022,20.00,Housing & Assets 2,Premises Expenses,G51035/B003005,Housing OP and SN,Window Cleaning
Ashfield District Council,37UB,Excel Cleaning Solutions Ltd,V1010754,10/11/2022,45.00,Housing & Assets 2,Premises Expenses,G51037/B003005,Housing OP and SN,Window Cleaning
Ashfield District Council,37UB,Excel Cleaning Solutions Ltd,V1010754,10/11/2022,40.00,Housing & Assets 2,Premises Expenses,G51036/B003005,Housing OP and SN,Window Cleaning
Ashfield District Council,37UB,Excel Cleaning Solutions Ltd,V1010754,10/11/2022,150.00,Housing & Assets 2,Premises Expenses,G51017/B003005,Housing OP and SN,Window Cleaning
Ashfield District Council,37UB,Excel Cleaning Solutions Ltd,V1010754,10/11/2022,20.00,Housing & Assets 2,Premises Expenses,G51053/B003005,Housing OP and SN,Window Cleaning
Ashfield District Council,37UB,Excel Cleaning Solutions Ltd,V1010754,10/11/2022,20.00,Housing & Assets 2,Premises Expenses,G51066/B003005,Housing OP and SN,Window Cleaning
Ashfield District Council,37UB,Excel Cleaning Solutions Ltd,V1010756,10/11/2022,90.00,Housing & Assets 2,Premises Expenses,G51033/B003005,Housing OP and SN,Window Cleaning
Ashfield District Council,37UB,Excel Cleaning Solutions Ltd,V1010756,10/11/2022,36.00,Housing & Assets 2,Premises Expenses,G51013/B003005,Housing OP and SN,Window Cleaning
Ashfield District Council,37UB,Excel Cleaning Solutions Ltd,V1010756,10/11/2022,90.00,Housing & Assets 2,Premises Expenses,G51032/B003005,Housing OP and SN,Window Cleaning
Ashfield District Council,37UB,Excel Cleaning Solutions Ltd,V1010756,10/11/2022,30.00,Housing & Assets 2,Premises Expenses,G51030/B003005,Housing OP and SN,Window Cleaning
Ashfield District Council,37UB,Excel Cleaning Solutions Ltd,V1010756,10/11/2022,70.00,Housing & Assets 2,Premises Expenses,G51027/B003005,Housing OP and SN,Window Cleaning
Ashfield District Council,37UB,Excel Cleaning Solutions Ltd,V1010758,10/11/2022,40.00,Housing & Assets 2,Premises Expenses,G51029/B003005,Housing OP and SN,Window Cleaning
Ashfield District Council,37UB,Excel Cleaning Solutions Ltd,V1010758,10/11/2022,15.00,Housing & Assets 2,Premises Expenses,G51041/B003005,Housing OP and SN,Window Cleaning
Ashfield District Council,37UB,Excel Cleaning Solutions Ltd,V1010758,10/11/2022,40.00,Housing & Assets 2,Premises Expenses,G51042/B003005,Housing OP and SN,Window Cleaning
Ashfield District Council,37UB,Excel Cleaning Solutions Ltd,V1010758,10/11/2022,60.00,Housing & Assets 2,Premises Expenses,G51046/B003005,Housing OP and SN,Window Cleaning
Ashfield District Council,37UB,Excel Cleaning Solutions Ltd,V1010758,10/11/2022,20.00,Housing & Assets 2,Premises Expenses,G51029/B003005,Housing OP and SN,Window Cleaning
Ashfield District Council,37UB,Excel Cleaning Solutions Ltd,V1010758,10/11/2022,60.00,Housing & Assets 2,Premises Expenses,G51039/B003005,Housing OP and SN,Window Cleaning
Ashfield District Council,37UB,Excel Cleaning Solutions Ltd,V1010758,10/11/2022,15.00,Housing & Assets 2,Premises Expenses,G51065/B003005,Housing OP and SN,Window Cleaning
Ashfield District Council,37UB,Excel Cleaning Solutions Ltd,V1010758,10/11/2022,20.00,Housing & Assets 2,Premises Expenses,G51029/B003005,Housing OP and SN,Window Cleaning
Ashfield District Council,37UB,Excel Cleaning Solutions Ltd,V1010758,10/11/2022,45.00,Housing & Assets 2,Premises Expenses,G51049/B003005,Housing OP and SN,Window Cleaning
Ashfield District Council,37UB,Excel Cleaning Solutions Ltd,V1010758,10/11/2022,20.00,Housing & Assets 2,Premises Expenses,G51029/B003005,Housing OP and SN,Window Cleaning
Ashfield District Council,37UB,Hoot Fire & Security Ltd,V1009427,03/11/2022,77.00,Housing & Assets 2,Premises Expenses,G51028/B003011,Housing OP and SN,Fire Alarms
Ashfield District Council,37UB,Hoot Fire & Security Ltd,V1009580,03/11/2022,154.00,Housing & Assets 2,Premises Expenses,G51008/B003011,Housing OP and SN,Fire Alarms
Ashfield District Council,37UB,Hoot Fire & Security Ltd,V1010670,10/11/2022,332.50,Housing & Assets 2,Premises Expenses,G51007/B003011,Housing OP and SN,Fire Alarms
Ashfield District Council,37UB,Morris Vermaport Ltd,V1009239,03/11/2022,82.00,Housing & Assets 2,Premises Expenses,G51026/b003006,Housing OP and SN,Lift
Ashfield District Council,37UB,Morris Vermaport Ltd,V1009241,03/11/2022,49.00,Housing & Assets 2,Premises Expenses,G51026/b003006,Housing OP and SN,Lift
Ashfield District Council,37UB,Morris Vermaport Ltd,V1009584,03/11/2022,49.00,Housing & Assets 2,Premises Expenses,G51027/b003006,Housing OP and SN,Lift
Ashfield District Council,37UB,Morris Vermaport Ltd,V1009594,03/11/2022,49.00,Housing & Assets 2,Premises Expenses,G51013/B003006,Housing OP and SN,Lift
Ashfield District Council,37UB,Morris Vermaport Ltd,V1009616,03/11/2022,49.00,Housing & Assets 2,Premises Expenses,G51013/B003006,Housing OP and SN,Lift
Ashfield District Council,37UB,Morris Vermaport Ltd,V1010528,03/11/2022,49.00,Housing & Assets 2,Premises Expenses,G51022/B003006,Housing OP and SN,Lift
Ashfield District Council,37UB,Morris Vermaport Ltd,V1010536,03/11/2022,49.00,Housing & Assets 2,Premises Expenses,G51030/B003006,Housing OP and SN,Lift
Ashfield District Council,37UB,Morris Vermaport Ltd,V1010537,03/11/2022,89.00,Housing & Assets 2,Premises Expenses,G51015/B003006,Housing OP and SN,Lift
Ashfield District Council,37UB,Morris Vermaport Ltd,V1010538,03/11/2022,89.00,Housing & Assets 2,Premises Expenses,G51015/B003006,Housing OP and SN,Lift
Ashfield District Council,37UB,Morris Vermaport Ltd,V1010539,03/11/2022,49.00,Housing & Assets 2,Premises Expenses,G51015/B003006,Housing OP and SN,Lift
Ashfield District Council,37UB,Morris Vermaport Ltd,V1010540,03/11/2022,49.00,Housing & Assets 2,Premises Expenses,G51007/B003006,Housing OP and SN,Lift
Ashfield District Council,37UB,Morris Vermaport Ltd,V1010541,03/11/2022,162.00,Housing & Assets 2,Premises Expenses,G51007/B003006,Housing OP and SN,Lift
Ashfield District Council,37UB,Morris Vermaport Ltd,V1010542,03/11/2022,49.00,Housing & Assets 2,Premises Expenses,G51021/B003006,Housing OP and SN,Lift
Ashfield District Council,37UB,Morris Vermaport Ltd,V1010543,03/11/2022,49.00,Housing & Assets 2,Premises Expenses,G51023/B003006,Housing OP and SN,Lift
Ashfield District Council,37UB,Morris Vermaport Ltd,V1010544,03/11/2022,89.00,Housing & Assets 2,Premises Expenses,G51023/B003006,Housing OP and SN,Lift
Ashfield District Council,37UB,Morris Vermaport Ltd,V1010545,03/11/2022,49.00,Housing & Assets 2,Premises Expenses,G51015/B003006,Housing OP and SN,Lift
Ashfield District Council,37UB,Morris Vermaport Ltd,V1010566,03/11/2022,49.00,Housing & Assets 2,Premises Expenses,G51028/B003006,Housing OP and SN,Lift
Ashfield District Council,37UB,Morris Vermaport Ltd,V1010711,10/11/2022,225.00,Housing & Assets 2,Premises Expenses,G51022/B003006,Housing OP and SN,Lift
Ashfield District Council,37UB,Morris Vermaport Ltd,V1010713,10/11/2022,225.00,Housing & Assets 2,Premises Expenses,G51028/B003006,Housing OP and SN,Lift
Ashfield District Council,37UB,Morris Vermaport Ltd,V1010714,10/11/2022,225.00,Housing & Assets 2,Premises Expenses,G51027/B003006,Housing OP and SN,Lift
Ashfield District Council,37UB,Morris Vermaport Ltd,V1010715,10/11/2022,225.00,Housing & Assets 2,Premises Expenses,G51021/B003006,Housing OP and SN,Lift
Ashfield District Council,37UB,Morris Vermaport Ltd,V1010721,10/11/2022,225.00,Housing & Assets 2,Premises Expenses,G51030/B003006,Housing OP and SN,Lift
Ashfield District Council,37UB,Morris Vermaport Ltd,V1011461,17/11/2022,67.50,Housing & Assets 2,Premises Expenses,G51028/B003006,Housing OP and SN,Lift
Ashfield District Council,37UB,Nottingham City Homes,V1011456,17/11/2022,583.05,Housing & Assets 2,Premises Expenses,G51001/B003011,Housing OP and SN,Fire Alarms
Ashfield District Council,37UB,Nottinghamshire Fire Safety Limited,V1010654,10/11/2022,10.00,Housing & Assets 2,Premises Expenses,G51023/B003011,Housing OP and SN,Fire Alarms
Ashfield District Council,37UB,Nottinghamshire Fire Safety Limited,V1010654,10/11/2022,64.00,Housing & Assets 2,Premises Expenses,G51023/B003011,Housing OP and SN,Fire Alarms
Ashfield District Council,37UB,Nottinghamshire Fire Safety Limited,V1010654,10/11/2022,13.04,Housing & Assets 2,Premises Expenses,G51023/B003011,Housing OP and SN,Fire Alarms
Ashfield District Council,37UB,British Telecom PLC,V1011334,17/11/2022,287.64,R & B Transformation 2,Supplies & Services,G51007/D301002,Housing OP and SN,Telephones
Ashfield District Council,37UB,Castle Water Ltd,V1007987,10/11/2022,22.86,R & B Transformation 2,Premises Expenses,G51020/B401,Housing OP and SN,Water rates
Ashfield District Council,37UB,Castle Water Ltd,V1007987,10/11/2022,20.54,R & B Transformation 2,Premises Expenses,G51020/B401,Housing OP and SN,Water rates
Ashfield District Council,37UB,Castle Water Ltd,V1007987,10/11/2022,20.72,R & B Transformation 2,Premises Expenses,G51020/B401,Housing OP and SN,Water rates
Ashfield District Council,37UB,Castle Water Ltd,V1007987,10/11/2022,-24.21,R & B Transformation 2,Premises Expenses,G51020/B401,Housing OP and SN,Water rates
Ashfield District Council,37UB,Castle Water Ltd,V1007987,10/11/2022,-24.21,R & B Transformation 2,Premises Expenses,G51020/B401,Housing OP and SN,Water rates
Ashfield District Council,37UB,Castle Water Ltd,V1007987,10/11/2022,-80.33,R & B Transformation 2,Premises Expenses,G51015/B401,Housing OP and SN,Water rates
Ashfield District Council,37UB,Castle Water Ltd,V1007987,10/11/2022,2.30,R & B Transformation 2,Premises Expenses,G51015/B401,Housing OP and SN,Water rates
Ashfield District Council,37UB,Castle Water Ltd,V1007987,10/11/2022,-7.21,R & B Transformation 2,Premises Expenses,G51015/B401,Housing OP and SN,Water rates
Ashfield District Council,37UB,Castle Water Ltd,V1007987,10/11/2022,-5.44,R & B Transformation 2,Premises Expenses,G51015/B401,Housing OP and SN,Water rates
Ashfield District Council,37UB,Castle Water Ltd,V1007987,10/11/2022,32.93,R & B Transformation 2,Premises Expenses,G51015/B401,Housing OP and SN,Water rates
Ashfield District Council,37UB,Castle Water Ltd,V1007987,10/11/2022,-24.09,R & B Transformation 2,Premises Expenses,G51020/B401,Housing OP and SN,Water rates
Ashfield District Council,37UB,Castle Water Ltd,V1007987,10/11/2022,13.26,R & B Transformation 2,Premises Expenses,G51022/B401,Housing OP and SN,Water rates
Ashfield District Council,37UB,Castle Water Ltd,V1007987,10/11/2022,4.31,R & B Transformation 2,Premises Expenses,G51015/B401,Housing OP and SN,Water rates
Ashfield District Council,37UB,Castle Water Ltd,V1007987,10/11/2022,5.09,R & B Transformation 2,Premises Expenses,G51015/B401,Housing OP and SN,Water rates
Ashfield District Council,37UB,Castle Water Ltd,V1007987,10/11/2022,-24.21,R & B Transformation 2,Premises Expenses,G51020/B401,Housing OP and SN,Water rates
Ashfield District Council,37UB,Castle Water Ltd,V1007987,10/11/2022,-14.52,R & B Transformation 2,Premises Expenses,G51021/B401,Housing OP and SN,Water rates
Ashfield District Council,37UB,Castle Water Ltd,V1007987,10/11/2022,119.49,R & B Transformation 2,Premises Expenses,G51009/B401,Housing OP and SN,Water rates
Ashfield District Council,37UB,Castle Water Ltd,V1007987,10/11/2022,-5.44,R & B Transformation 2,Premises Expenses,G51015/B401,Housing OP and SN,Water rates
Ashfield District Council,37UB,Castle Water Ltd,V1007987,10/11/2022,-28.83,R & B Transformation 2,Premises Expenses,G51020/B401,Housing OP and SN,Water rates
Ashfield District Council,37UB,Castle Water Ltd,V1007987,10/11/2022,23.25,R & B Transformation 2,Premises Expenses,G51020/B401,Housing OP and SN,Water rates
Ashfield District Council,37UB,Castle Water Ltd,V1007987,10/11/2022,5.17,R & B Transformation 2,Premises Expenses,G51015/B401,Housing OP and SN,Water rates
Ashfield District Council,37UB,Castle Water Ltd,V1007987,10/11/2022,-80.33,R & B Transformation 2,Premises Expenses,G51015/B401,Housing OP and SN,Water rates
Ashfield District Council,37UB,Castle Water Ltd,V1007987,10/11/2022,5.17,R & B Transformation 2,Premises Expenses,G51015/B401,Housing OP and SN,Water rates
Ashfield District Council,37UB,Castle Water Ltd,V1007987,10/11/2022,41.28,R & B Transformation 2,Premises Expenses,G51015/B401,Housing OP and SN,Water rates
Ashfield District Council,37UB,Castle Water Ltd,V1007987,10/11/2022,2.05,R & B Transformation 2,Premises Expenses,G51015/B401,Housing OP and SN,Water rates
Ashfield District Council,37UB,Castle Water Ltd,V1007987,10/11/2022,2.30,R & B Transformation 2,Premises Expenses,G51015/B401,Housing OP and SN,Water rates
Ashfield District Council,37UB,Castle Water Ltd,V1007987,10/11/2022,5.09,R & B Transformation 2,Premises Expenses,G51015/B401,Housing OP and SN,Water rates
Ashfield District Council,37UB,Castle Water Ltd,V1007987,10/11/2022,-26.04,R & B Transformation 2,Premises Expenses,G51020/B401,Housing OP and SN,Water rates
Ashfield District Council,37UB,Castle Water Ltd,V1007987,10/11/2022,7.40,R & B Transformation 2,Premises Expenses,G51027/B401,Housing OP and SN,Water rates
Ashfield District Council,37UB,Castle Water Ltd,V1007987,10/11/2022,4.18,R & B Transformation 2,Premises Expenses,G51015/B401,Housing OP and SN,Water rates
Ashfield District Council,37UB,Castle Water Ltd,V1007987,10/11/2022,-24.09,R & B Transformation 2,Premises Expenses,G51020/B401,Housing OP and SN,Water rates
Ashfield District Council,37UB,Castle Water Ltd,V1007987,10/11/2022,21.27,R & B Transformation 2,Premises Expenses,G51020/B401,Housing OP and SN,Water rates
Ashfield District Council,37UB,Castle Water Ltd,V1007987,10/11/2022,21.41,R & B Transformation 2,Premises Expenses,G51020/B401,Housing OP and SN,Water rates
Ashfield District Council,37UB,Castle Water Ltd,V1007987,10/11/2022,13.43,R & B Transformation 2,Premises Expenses,G51022/B401,Housing OP and SN,Water rates
Ashfield District Council,37UB,Castle Water Ltd,V1007987,10/11/2022,42.36,R & B Transformation 2,Premises Expenses,G51023/B401,Housing OP and SN,Water rates
Ashfield District Council,37UB,Castle Water Ltd,V1007987,10/11/2022,23.25,R & B Transformation 2,Premises Expenses,G51020/B401,Housing OP and SN,Water rates
Ashfield District Council,37UB,Castle Water Ltd,V1007987,10/11/2022,14.52,R & B Transformation 2,Premises Expenses,G51021/B401,Housing OP and SN,Water rates
Ashfield District Council,37UB,Castle Water Ltd,V1007987,10/11/2022,22.86,R & B Transformation 2,Premises Expenses,G51020/B401,Housing OP and SN,Water rates
Ashfield District Council,37UB,Castle Water Ltd,V1007987,10/11/2022,23.25,R & B Transformation 2,Premises Expenses,G51020/B401,Housing OP and SN,Water rates
Ashfield District Council,37UB,Castle Water Ltd,V1007987,10/11/2022,21.63,R & B Transformation 2,Premises Expenses,G51020/B401,Housing OP and SN,Water rates
Ashfield District Council,37UB,Castle Water Ltd,V1007987,10/11/2022,2.30,R & B Transformation 2,Premises Expenses,G51015/B401,Housing OP and SN,Water rates
Ashfield District Council,37UB,Castle Water Ltd,V1007987,10/11/2022,24.57,R & B Transformation 2,Premises Expenses,G51015/B401,Housing OP and SN,Water rates
Ashfield District Council,37UB,Castle Water Ltd,V1007987,10/11/2022,-77.47,R & B Transformation 2,Premises Expenses,G51015/B401,Housing OP and SN,Water rates
Ashfield District Council,37UB,Castle Water Ltd,V1007987,10/11/2022,20.72,R & B Transformation 2,Premises Expenses,G51020/B401,Housing OP and SN,Water rates
Ashfield District Council,37UB,Castle Water Ltd,V1007987,10/11/2022,4.31,R & B Transformation 2,Premises Expenses,G51015/B401,Housing OP and SN,Water rates
Ashfield District Council,37UB,Castle Water Ltd,V1007987,10/11/2022,-7.21,R & B Transformation 2,Premises Expenses,G51015/B401,Housing OP and SN,Water rates
Ashfield District Council,37UB,Castle Water Ltd,V1007987,10/11/2022,4.31,R & B Transformation 2,Premises Expenses,G51015/B401,Housing OP and SN,Water rates
Ashfield District Council,37UB,Castle Water Ltd,V1007987,10/11/2022,21.41,R & B Transformation 2,Premises Expenses,G51020/B401,Housing OP and SN,Water rates
Ashfield District Council,37UB,Castle Water Ltd,V1007987,10/11/2022,-28.83,R & B Transformation 2,Premises Expenses,G51020/B401,Housing OP and SN,Water rates
Ashfield District Council,37UB,Castle Water Ltd,V1007987,10/11/2022,2.30,R & B Transformation 2,Premises Expenses,G51015/B401,Housing OP and SN,Water rates
Ashfield District Council,37UB,Castle Water Ltd,V1007987,10/11/2022,5.17,R & B Transformation 2,Premises Expenses,G51015/B401,Housing OP and SN,Water rates
Ashfield District Council,37UB,Castle Water Ltd,V1007987,10/11/2022,3.46,R & B Transformation 2,Premises Expenses,G51008/B401,Housing OP and SN,Water rates
Ashfield District Council,37UB,Castle Water Ltd,V1007987,10/11/2022,4.62,R & B Transformation 2,Premises Expenses,G51015/B401,Housing OP and SN,Water rates
Ashfield District Council,37UB,Castle Water Ltd,V1007987,10/11/2022,-7.87,R & B Transformation 2,Premises Expenses,G51015/B401,Housing OP and SN,Water rates
Ashfield District Council,37UB,Castle Water Ltd,V1007987,10/11/2022,2.40,R & B Transformation 2,Premises Expenses,G51015/B401,Housing OP and SN,Water rates
Ashfield District Council,37UB,Castle Water Ltd,V1007987,10/11/2022,-5.27,R & B Transformation 2,Premises Expenses,G51015/B401,Housing OP and SN,Water rates
Ashfield District Council,37UB,Castle Water Ltd,V1007987,10/11/2022,5.09,R & B Transformation 2,Premises Expenses,G51015/B401,Housing OP and SN,Water rates
Ashfield District Council,37UB,Castle Water Ltd,V1007987,10/11/2022,-25.65,R & B Transformation 2,Premises Expenses,G51020/B401,Housing OP and SN,Water rates
Ashfield District Council,37UB,Castle Water Ltd,V1007987,10/11/2022,-24.89,R & B Transformation 2,Premises Expenses,G51020/B401,Housing OP and SN,Water rates
Ashfield District Council,37UB,Castle Water Ltd,V1007987,10/11/2022,-26.78,R & B Transformation 2,Premises Expenses,G51020/B401,Housing OP and SN,Water rates
Ashfield District Council,37UB,Castle Water Ltd,V1007987,10/11/2022,21.41,R & B Transformation 2,Premises Expenses,G51020/B401,Housing OP and SN,Water rates
Ashfield District Council,37UB,Castle Water Ltd,V1007987,10/11/2022,-23.85,R & B Transformation 2,Premises Expenses,G51020/B401,Housing OP and SN,Water rates
Ashfield District Council,37UB,Castle Water Ltd,V1007987,10/11/2022,22.86,R & B Transformation 2,Premises Expenses,G51020/B401,Housing OP and SN,Water rates
Ashfield District Council,37UB,Castle Water Ltd,V1007987,10/11/2022,-5.27,R & B Transformation 2,Premises Expenses,G51015/B401,Housing OP and SN,Water rates
Ashfield District Council,37UB,Castle Water Ltd,V1007987,10/11/2022,21.63,R & B Transformation 2,Premises Expenses,G51020/B401,Housing OP and SN,Water rates
Ashfield District Council,37UB,Castle Water Ltd,V1007987,10/11/2022,-80.33,R & B Transformation 2,Premises Expenses,G51015/B401,Housing OP and SN,Water rates
Ashfield District Council,37UB,Castle Water Ltd,V1007987,10/11/2022,5.09,R & B Transformation 2,Premises Expenses,G51015/B401,Housing OP and SN,Water rates
Ashfield District Council,37UB,Castle Water Ltd,V1007987,10/11/2022,-24.89,R & B Transformation 2,Premises Expenses,G51020/B401,Housing OP and SN,Water rates
Ashfield District Council,37UB,Castle Water Ltd,V1007987,10/11/2022,21.63,R & B Transformation 2,Premises Expenses,G51020/B401,Housing OP and SN,Water rates
Ashfield District Council,37UB,Castle Water Ltd,V1007987,10/11/2022,32.93,R & B Transformation 2,Premises Expenses,G51022/B401,Housing OP and SN,Water rates
Ashfield District Council,37UB,Castle Water Ltd,V1007987,10/11/2022,34.00,R & B Transformation 2,Premises Expenses,G51026/B401,Housing OP and SN,Water rates
Ashfield District Council,37UB,Castle Water Ltd,V1007987,10/11/2022,27.36,R & B Transformation 2,Premises Expenses,G51028/B401,Housing OP and SN,Water rates
Ashfield District Council,37UB,Castle Water Ltd,V1007987,10/11/2022,4.18,R & B Transformation 2,Premises Expenses,G51015/B401,Housing OP and SN,Water rates
Ashfield District Council,37UB,Castle Water Ltd,V1007987,10/11/2022,11.73,R & B Transformation 2,Premises Expenses,G51021/B401,Housing OP and SN,Water rates
Ashfield District Council,37UB,Castle Water Ltd,V1007987,10/11/2022,-80.25,R & B Transformation 2,Premises Expenses,G51015/B401,Housing OP and SN,Water rates
Ashfield District Council,37UB,Castle Water Ltd,V1007987,10/11/2022,9.73,R & B Transformation 2,Premises Expenses,G51015/B401,Housing OP and SN,Water rates
Ashfield District Council,37UB,Castle Water Ltd,V1007987,10/11/2022,7.69,R & B Transformation 2,Premises Expenses,G51028/B401,Housing OP and SN,Water rates
Ashfield District Council,37UB,Castle Water Ltd,V1007987,10/11/2022,-7.87,R & B Transformation 2,Premises Expenses,G51015/B401,Housing OP and SN,Water rates
Ashfield District Council,37UB,Castle Water Ltd,V1007987,10/11/2022,2.30,R & B Transformation 2,Premises Expenses,G51015/B401,Housing OP and SN,Water rates
Ashfield District Council,37UB,Castle Water Ltd,V1007987,10/11/2022,-25.65,R & B Transformation 2,Premises Expenses,G51020/B401,Housing OP and SN,Water rates
Ashfield District Council,37UB,Castle Water Ltd,V1007987,10/11/2022,-24.89,R & B Transformation 2,Premises Expenses,G51020/B401,Housing OP and SN,Water rates
Ashfield District Council,37UB,Castle Water Ltd,V1007987,10/11/2022,21.63,R & B Transformation 2,Premises Expenses,G51020/B401,Housing OP and SN,Water rates
Ashfield District Council,37UB,Castle Water Ltd,V1007987,10/11/2022,5.09,R & B Transformation 2,Premises Expenses,G51015/B401,Housing OP and SN,Water rates
Ashfield District Council,37UB,Castle Water Ltd,V1007987,10/11/2022,-5.44,R & B Transformation 2,Premises Expenses,G51015/B401,Housing OP and SN,Water rates
Ashfield District Council,37UB,Castle Water Ltd,V1007987,10/11/2022,-23.12,R & B Transformation 2,Premises Expenses,G51020/B401,Housing OP and SN,Water rates
Ashfield District Council,37UB,Castle Water Ltd,V1010653,10/11/2022,8.02,R & B Transformation 2,Premises Expenses,G51028/B401,Housing OP and SN,Water rates
Ashfield District Council,37UB,Castle Water Ltd,V1010653,10/11/2022,124.68,R & B Transformation 2,Premises Expenses,G51009/B401,Housing OP and SN,Water rates
Ashfield District Council,37UB,Castle Water Ltd,V1010653,10/11/2022,2.39,R & B Transformation 2,Premises Expenses,G51015/B401,Housing OP and SN,Water rates
Ashfield District Council,37UB,Castle Water Ltd,V1010653,10/11/2022,10.83,R & B Transformation 2,Premises Expenses,G51022/B401,Housing OP and SN,Water rates
Ashfield District Council,37UB,Castle Water Ltd,V1010653,10/11/2022,30.50,R & B Transformation 2,Premises Expenses,G51028/B401,Housing OP and SN,Water rates
Ashfield District Council,37UB,Castle Water Ltd,V1010653,10/11/2022,12.24,R & B Transformation 2,Premises Expenses,G51021/B401,Housing OP and SN,Water rates
Ashfield District Council,37UB,Castle Water Ltd,V1010653,10/11/2022,2.39,R & B Transformation 2,Premises Expenses,G51015/B401,Housing OP and SN,Water rates
Ashfield District Council,37UB,Castle Water Ltd,V1010653,10/11/2022,5.20,R & B Transformation 2,Premises Expenses,G51015/B401,Housing OP and SN,Water rates
Ashfield District Council,37UB,Castle Water Ltd,V1010653,10/11/2022,64.24,R & B Transformation 2,Premises Expenses,G51015/B401,Housing OP and SN,Water rates
Ashfield District Council,37UB,Castle Water Ltd,V1010653,10/11/2022,2.39,R & B Transformation 2,Premises Expenses,G51015/B401,Housing OP and SN,Water rates
Ashfield District Council,37UB,Castle Water Ltd,V1010653,10/11/2022,2.39,R & B Transformation 2,Premises Expenses,G51015/B401,Housing OP and SN,Water rates
Ashfield District Council,37UB,Castle Water Ltd,V1010653,10/11/2022,2.50,R & B Transformation 2,Premises Expenses,G51015/B401,Housing OP and SN,Water rates
Ashfield District Council,37UB,Castle Water Ltd,V1010653,10/11/2022,23.49,R & B Transformation 2,Premises Expenses,G51020/B401,Housing OP and SN,Water rates
Ashfield District Council,37UB,Castle Water Ltd,V1010653,10/11/2022,43.16,R & B Transformation 2,Premises Expenses,G51023/B401,Housing OP and SN,Water rates
Ashfield District Council,37UB,Castle Water Ltd,V1010653,10/11/2022,36.87,R & B Transformation 2,Premises Expenses,G51027/B401,Housing OP and SN,Water rates
Ashfield District Council,37UB,Castle Water Ltd,V1010653,10/11/2022,16.45,R & B Transformation 2,Premises Expenses,G51022/B401,Housing OP and SN,Water rates
Ashfield District Council,37UB,Castle Water Ltd,V1010653,10/11/2022,33.31,R & B Transformation 2,Premises Expenses,G51022/B401,Housing OP and SN,Water rates
Ashfield District Council,37UB,Castle Water Ltd,V1010653,10/11/2022,24.88,R & B Transformation 2,Premises Expenses,G51015/B401,Housing OP and SN,Water rates
Ashfield District Council,37UB,Castle Water Ltd,V1010653,10/11/2022,37.55,R & B Transformation 2,Premises Expenses,G51026/B401,Housing OP and SN,Water rates
Ashfield District Council,37UB,Castle Water Ltd,V1010653,10/11/2022,2.39,R & B Transformation 2,Premises Expenses,G51015/B401,Housing OP and SN,Water rates
Ashfield District Council,37UB,Castle Water Ltd,V1010653,10/11/2022,40.70,R & B Transformation 2,Premises Expenses,G51008/B401,Housing OP and SN,Water rates
Ashfield District Council,37UB,Castle Water Ltd,V1010653,10/11/2022,10.15,R & B Transformation 2,Premises Expenses,G51015/B401,Housing OP and SN,Water rates
Ashfield District Council,37UB,Castle Water Ltd,V1010653,10/11/2022,2.39,R & B Transformation 2,Premises Expenses,G51015/B401,Housing OP and SN,Water rates
Ashfield District Council,37UB,Daisy Telecoms Ltd,V1010645,17/11/2022,16.89,R & B Transformation 2,Supplies & Services,G51023/D301006,Housing OP and SN,Alarm Lines
Ashfield District Council,37UB,Daisy Telecoms Ltd,V1010645,17/11/2022,46.37,R & B Transformation 2,Supplies & Services,G51027/D301002,Housing OP and SN,Telephones
Ashfield District Council,37UB,Daisy Telecoms Ltd,V1010645,17/11/2022,65.28,R & B Transformation 2,Supplies & Services,G51028/D301006,Housing OP and SN,Alarm Lines
Ashfield District Council,37UB,Daisy Telecoms Ltd,V1010645,17/11/2022,55.37,R & B Transformation 2,Supplies & Services,G51021/D301006,Housing OP and SN,Alarm Lines
Ashfield District Council,37UB,Daisy Telecoms Ltd,V1010645,17/11/2022,74.18,R & B Transformation 2,Supplies & Services,G51026/D301006,Housing OP and SN,Alarm Lines
Ashfield District Council,37UB,Daisy Telecoms Ltd,V1010645,17/11/2022,16.69,R & B Transformation 2,Premises Expenses,G51008/B003011,Housing OP and SN,Fire Alarms
Ashfield District Council,37UB,Daisy Telecoms Ltd,V1010645,17/11/2022,88.89,R & B Transformation 2,Supplies & Services,G51015/D301006,Housing OP and SN,Alarm Lines
Ashfield District Council,37UB,Daisy Telecoms Ltd,V1010645,17/11/2022,84.19,R & B Transformation 2,Supplies & Services,G51022/D301006,Housing OP and SN,Alarm Lines
Ashfield District Council,37UB,Daisy Telecoms Ltd,V1010645,17/11/2022,29.68,R & B Transformation 2,Supplies & Services,G51030/D301002,Housing OP and SN,Telephones
Ashfield District Council,37UB,Daisy Telecoms Ltd,V1010645,17/11/2022,52.47,R & B Transformation 2,Supplies & Services,G51030/D301006,Housing OP and SN,Alarm Lines
Ashfield District Council,37UB,Daisy Telecoms Ltd,V1010645,17/11/2022,183.57,R & B Transformation 2,Supplies & Services,G51001/D301002,Housing OP and SN,Telephones
Ashfield District Council,37UB,Daisy Telecoms Ltd,V1010645,17/11/2022,16.69,R & B Transformation 2,Premises Expenses,G51009/B003011,Housing OP and SN,Fire Alarms
Ashfield District Council,37UB,Daisy Telecoms Ltd,V1010645,17/11/2022,16.69,R & B Transformation 2,Premises Expenses,G51028/B003011,Housing OP and SN,Fire Alarms
Ashfield District Council,37UB,Daisy Telecoms Ltd,V1010645,17/11/2022,16.69,R & B Transformation 2,Supplies & Services,G51022/D301002,Housing OP and SN,Telephones
Ashfield District Council,37UB,Daisy Telecoms Ltd,V1010645,17/11/2022,29.68,R & B Transformation 2,Supplies & Services,G51015/D301002,Housing OP and SN,Telephones
Ashfield District Council,37UB,Daisy Telecoms Ltd,V1010645,17/11/2022,29.68,R & B Transformation 2,Supplies & Services,G51028/D301002,Housing OP and SN,Telephones
Ashfield District Council,37UB,Daisy Telecoms Ltd,V1010645,17/11/2022,16.69,R & B Transformation 2,Premises Expenses,G51023/B003011,Housing OP and SN,Fire Alarms
Ashfield District Council,37UB,Daisy Telecoms Ltd,V1010645,17/11/2022,40.43,R & B Transformation 2,Supplies & Services,G51027/D301006,Housing OP and SN,Alarm Lines
Ashfield District Council,37UB,Daisy Telecoms Ltd,V1010645,17/11/2022,282.64,R & B Transformation 2,Premises Expenses,G51001/B003010,Housing OP and SN,C C T V Cameras
Ashfield District Council,37UB,Daisy Telecoms Ltd,V1011405,17/11/2022,14.80,R & B Transformation 2,Supplies & Services,G51015/D301002,Housing OP and SN,Telephones
Ashfield District Council,37UB,Daisy Telecoms Ltd,V1011405,17/11/2022,7.40,R & B Transformation 2,Supplies & Services,G51028/D301002,Housing OP and SN,Telephones
Ashfield District Council,37UB,Daisy Telecoms Ltd,V1011405,17/11/2022,7.40,R & B Transformation 2,Supplies & Services,G51030/D301002,Housing OP and SN,Telephones
Ashfield District Council,37UB,Daisy Telecoms Ltd,V1011405,17/11/2022,6.19,R & B Transformation 2,Supplies & Services,G51027/D301002,Housing OP and SN,Telephones
Ashfield District Council,37UB,EDF Energy 1 Ltd,V1011387,17/11/2022,19.98,R & B Transformation 2,Premises Expenses,G51052/B102,Housing OP and SN,Electricity
Ashfield District Council,37UB,EDF Energy 1 Ltd,V1011387,17/11/2022,168.45,R & B Transformation 2,Premises Expenses,G51015/B102,Housing OP and SN,Electricity
Ashfield District Council,37UB,EDF Energy 1 Ltd,V1011387,17/11/2022,53.43,R & B Transformation 2,Premises Expenses,G51042/B102,Housing OP and SN,Electricity
Ashfield District Council,37UB,EDF Energy 1 Ltd,V1011387,17/11/2022,716.75,R & B Transformation 2,Premises Expenses,G51019/B102,Housing OP and SN,Electricity
Ashfield District Council,37UB,EDF Energy 1 Ltd,V1011387,17/11/2022,34.30,R & B Transformation 2,Premises Expenses,G51036/B102,Housing OP and SN,Electricity
Ashfield District Council,37UB,EDF Energy 1 Ltd,V1011387,17/11/2022,49.53,R & B Transformation 2,Premises Expenses,G51060/B102,Housing OP and SN,Electricity
Ashfield District Council,37UB,EDF Energy 1 Ltd,V1011387,17/11/2022,480.11,R & B Transformation 2,Premises Expenses,G51013/B102,Housing OP and SN,Electricity
Ashfield District Council,37UB,EDF Energy 1 Ltd,V1011387,17/11/2022,410.84,R & B Transformation 2,Premises Expenses,G51020/B102,Housing OP and SN,Electricity
Ashfield District Council,37UB,EDF Energy 1 Ltd,V1011387,17/11/2022,105.58,R & B Transformation 2,Premises Expenses,G51034/B102,Housing OP and SN,Electricity
Ashfield District Council,37UB,EDF Energy 1 Ltd,V1011387,17/11/2022,65.59,R & B Transformation 2,Premises Expenses,G51037/B102,Housing OP and SN,Electricity
Ashfield District Council,37UB,EDF Energy 1 Ltd,V1011387,17/11/2022,40.74,R & B Transformation 2,Premises Expenses,G51043/B102,Housing OP and SN,Electricity
Ashfield District Council,37UB,EDF Energy 1 Ltd,V1011387,17/11/2022,32.19,R & B Transformation 2,Premises Expenses,G51039/B102,Housing OP and SN,Electricity
Ashfield District Council,37UB,EDF Energy 1 Ltd,V1011387,17/11/2022,34.60,R & B Transformation 2,Premises Expenses,G51039/B102,Housing OP and SN,Electricity
Ashfield District Council,37UB,EDF Energy 1 Ltd,V1011387,17/11/2022,41.13,R & B Transformation 2,Premises Expenses,G51043/B102,Housing OP and SN,Electricity
Ashfield District Council,37UB,EDF Energy 1 Ltd,V1011387,17/11/2022,33.97,R & B Transformation 2,Premises Expenses,G51044/B102,Housing OP and SN,Electricity
Ashfield District Council,37UB,EDF Energy 1 Ltd,V1011387,17/11/2022,40.13,R & B Transformation 2,Premises Expenses,G51046/B102,Housing OP and SN,Electricity
Ashfield District Council,37UB,EDF Energy 1 Ltd,V1011387,17/11/2022,160.09,R & B Transformation 2,Premises Expenses,G51033/B102,Housing OP and SN,Electricity
Ashfield District Council,37UB,EDF Energy 1 Ltd,V1011387,17/11/2022,38.97,R & B Transformation 2,Premises Expenses,G51013/B102,Housing OP and SN,Electricity
Ashfield District Council,37UB,EDF Energy 1 Ltd,V1011387,17/11/2022,193.09,R & B Transformation 2,Premises Expenses,G51009/B102,Housing OP and SN,Electricity
Ashfield District Council,37UB,EDF Energy 1 Ltd,V1011387,17/11/2022,43.39,R & B Transformation 2,Premises Expenses,G51022/B102,Housing OP and SN,Electricity
Ashfield District Council,37UB,EDF Energy 1 Ltd,V1011387,17/11/2022,45.86,R & B Transformation 2,Premises Expenses,G51022/B102,Housing OP and SN,Electricity
Ashfield District Council,37UB,EDF Energy 1 Ltd,V1011387,17/11/2022,29.35,R & B Transformation 2,Premises Expenses,G51029/B102,Housing OP and SN,Electricity
Ashfield District Council,37UB,EDF Energy 1 Ltd,V1011387,17/11/2022,44.49,R & B Transformation 2,Premises Expenses,G51029/B102,Housing OP and SN,Electricity
Ashfield District Council,37UB,EDF Energy 1 Ltd,V1011387,17/11/2022,68.00,R & B Transformation 2,Premises Expenses,G51040/B102,Housing OP and SN,Electricity
Ashfield District Council,37UB,EDF Energy 1 Ltd,V1011387,17/11/2022,27.48,R & B Transformation 2,Premises Expenses,G51050/B102,Housing OP and SN,Electricity
Ashfield District Council,37UB,EDF Energy 1 Ltd,V1011387,17/11/2022,29.09,R & B Transformation 2,Premises Expenses,G51043/B102,Housing OP and SN,Electricity
Ashfield District Council,37UB,EDF Energy 1 Ltd,V1011387,17/11/2022,42.88,R & B Transformation 2,Premises Expenses,G51046/B102,Housing OP and SN,Electricity
Ashfield District Council,37UB,EDF Energy 1 Ltd,V1011387,17/11/2022,42.53,R & B Transformation 2,Premises Expenses,G51060/B102,Housing OP and SN,Electricity
Ashfield District Council,37UB,EDF Energy 1 Ltd,V1011387,17/11/2022,44.62,R & B Transformation 2,Premises Expenses,G51065/B102,Housing OP and SN,Electricity
Ashfield District Council,37UB,EDF Energy 1 Ltd,V1011387,17/11/2022,39.68,R & B Transformation 2,Premises Expenses,G51058/B102,Housing OP and SN,Electricity
Ashfield District Council,37UB,EDF Energy 1 Ltd,V1011387,17/11/2022,413.47,R & B Transformation 2,Premises Expenses,G51007/B102,Housing OP and SN,Electricity
Ashfield District Council,37UB,EDF Energy 1 Ltd,V1011387,17/11/2022,260.01,R & B Transformation 2,Premises Expenses,G51008/B102,Housing OP and SN,Electricity
Ashfield District Council,37UB,EDF Energy 1 Ltd,V1011387,17/11/2022,37.91,R & B Transformation 2,Premises Expenses,G51022/B102,Housing OP and SN,Electricity
Ashfield District Council,37UB,EDF Energy 1 Ltd,V1011387,17/11/2022,33.49,R & B Transformation 2,Premises Expenses,G51055/B102,Housing OP and SN,Electricity
Ashfield District Council,37UB,EDF Energy 1 Ltd,V1011387,17/11/2022,28.65,R & B Transformation 2,Premises Expenses,G51049/B102,Housing OP and SN,Electricity
Ashfield District Council,37UB,EDF Energy 1 Ltd,V1011387,17/11/2022,364.74,R & B Transformation 2,Premises Expenses,G51013/B102,Housing OP and SN,Electricity
Ashfield District Council,37UB,EDF Energy 1 Ltd,V1011387,17/11/2022,481.95,R & B Transformation 2,Premises Expenses,G51022/B102,Housing OP and SN,Electricity
Ashfield District Council,37UB,EDF Energy 1 Ltd,V1011387,17/11/2022,25.46,R & B Transformation 2,Premises Expenses,G51012/B102,Housing OP and SN,Electricity
Ashfield District Council,37UB,EDF Energy 1 Ltd,V1011387,17/11/2022,1393.01,R & B Transformation 2,Premises Expenses,G51021/B102,Housing OP and SN,Electricity
Ashfield District Council,37UB,EDF Energy 1 Ltd,V1011387,17/11/2022,36.11,R & B Transformation 2,Premises Expenses,G51046/B102,Housing OP and SN,Electricity
Ashfield District Council,37UB,EDF Energy 1 Ltd,V1011387,17/11/2022,21.70,R & B Transformation 2,Premises Expenses,G51051/B102,Housing OP and SN,Electricity
Ashfield District Council,37UB,EDF Energy 1 Ltd,V1011387,17/11/2022,20.31,R & B Transformation 2,Premises Expenses,G51063/B102,Housing OP and SN,Electricity
Ashfield District Council,37UB,EDF Energy 1 Ltd,V1011387,17/11/2022,42.87,R & B Transformation 2,Premises Expenses,G51009/B102,Housing OP and SN,Electricity
Ashfield District Council,37UB,EDF Energy 1 Ltd,V1011387,17/11/2022,84.03,R & B Transformation 2,Premises Expenses,G51009/B102,Housing OP and SN,Electricity
Ashfield District Council,37UB,EDF Energy 1 Ltd,V1011387,17/11/2022,64.25,R & B Transformation 2,Premises Expenses,G51021/B102,Housing OP and SN,Electricity
Ashfield District Council,37UB,EDF Energy 1 Ltd,V1011387,17/11/2022,25.36,R & B Transformation 2,Premises Expenses,G51033/B102,Housing OP and SN,Electricity
Ashfield District Council,37UB,EDF Energy 1 Ltd,V1011387,17/11/2022,32.39,R & B Transformation 2,Premises Expenses,G51042/B102,Housing OP and SN,Electricity
Ashfield District Council,37UB,EDF Energy 1 Ltd,V1011387,17/11/2022,107.62,R & B Transformation 2,Premises Expenses,G51024/B102,Housing OP and SN,Electricity
Ashfield District Council,37UB,EDF Energy 1 Ltd,V1011387,17/11/2022,608.76,R & B Transformation 2,Premises Expenses,G51028/B102,Housing OP and SN,Electricity
Ashfield District Council,37UB,EDF Energy 1 Ltd,V1011387,17/11/2022,27.02,R & B Transformation 2,Premises Expenses,G51050/B102,Housing OP and SN,Electricity
Ashfield District Council,37UB,EDF Energy 1 Ltd,V1011387,17/11/2022,35.78,R & B Transformation 2,Premises Expenses,G51052/B102,Housing OP and SN,Electricity
Ashfield District Council,37UB,EDF Energy 1 Ltd,V1011387,17/11/2022,32.98,R & B Transformation 2,Premises Expenses,G51043/B102,Housing OP and SN,Electricity
Ashfield District Council,37UB,EDF Energy 1 Ltd,V1011387,17/11/2022,36.87,R & B Transformation 2,Premises Expenses,G51045/B102,Housing OP and SN,Electricity
Ashfield District Council,37UB,EDF Energy 1 Ltd,V1011387,17/11/2022,35.48,R & B Transformation 2,Premises Expenses,G51049/B102,Housing OP and SN,Electricity
Ashfield District Council,37UB,EDF Energy 1 Ltd,V1011387,17/11/2022,33.37,R & B Transformation 2,Premises Expenses,G51056/B102,Housing OP and SN,Electricity
Ashfield District Council,37UB,EDF Energy 1 Ltd,V1011387,17/11/2022,33.39,R & B Transformation 2,Premises Expenses,G51061/B102,Housing OP and SN,Electricity
Ashfield District Council,37UB,EDF Energy 1 Ltd,V1011387,17/11/2022,17.77,R & B Transformation 2,Premises Expenses,G51054/B102,Housing OP and SN,Electricity
Ashfield District Council,37UB,EDF Energy 1 Ltd,V1011387,17/11/2022,18.29,R & B Transformation 2,Premises Expenses,G51055/B102,Housing OP and SN,Electricity
Ashfield District Council,37UB,EDF Energy 1 Ltd,V1011387,17/11/2022,35.66,R & B Transformation 2,Premises Expenses,G51059/B102,Housing OP and SN,Electricity
Ashfield District Council,37UB,EDF Energy 1 Ltd,V1011387,17/11/2022,33.84,R & B Transformation 2,Premises Expenses,G51044/B102,Housing OP and SN,Electricity
Ashfield District Council,37UB,EDF Energy 1 Ltd,V1011387,17/11/2022,121.78,R & B Transformation 2,Premises Expenses,G51047/B102,Housing OP and SN,Electricity
Ashfield District Council,37UB,EDF Energy 1 Ltd,V1011387,17/11/2022,33.66,R & B Transformation 2,Premises Expenses,G51042/B102,Housing OP and SN,Electricity
Ashfield District Council,37UB,EDF Energy 1 Ltd,V1011387,17/11/2022,33.79,R & B Transformation 2,Premises Expenses,G51042/B102,Housing OP and SN,Electricity
Ashfield District Council,37UB,EDF Energy 1 Ltd,V1011387,17/11/2022,37.88,R & B Transformation 2,Premises Expenses,G51029/B102,Housing OP and SN,Electricity
Ashfield District Council,37UB,EDF Energy 1 Ltd,V1011387,17/11/2022,101.03,R & B Transformation 2,Premises Expenses,G51032/B102,Housing OP and SN,Electricity
Ashfield District Council,37UB,EDF Energy 1 Ltd,V1011387,17/11/2022,38.67,R & B Transformation 2,Premises Expenses,G51046/B102,Housing OP and SN,Electricity
Ashfield District Council,37UB,EDF Energy 1 Ltd,V1011387,17/11/2022,96.85,R & B Transformation 2,Premises Expenses,G51017/B102,Housing OP and SN,Electricity
Ashfield District Council,37UB,EDF Energy 1 Ltd,V1011387,17/11/2022,69.48,R & B Transformation 2,Premises Expenses,G51038/B102,Housing OP and SN,Electricity
Ashfield District Council,37UB,EDF Energy 1 Ltd,V1011387,17/11/2022,31.80,R & B Transformation 2,Premises Expenses,G51054/B102,Housing OP and SN,Electricity
Ashfield District Council,37UB,EDF Energy 1 Ltd,V1011387,17/11/2022,35.75,R & B Transformation 2,Premises Expenses,G51062/B102,Housing OP and SN,Electricity
Ashfield District Council,37UB,EDF Energy 1 Ltd,V1011387,17/11/2022,27.76,R & B Transformation 2,Premises Expenses,G51033/B102,Housing OP and SN,Electricity
Ashfield District Council,37UB,EDF Energy 1 Ltd,V1011387,17/11/2022,33.69,R & B Transformation 2,Premises Expenses,G51048/B102,Housing OP and SN,Electricity
Ashfield District Council,37UB,EDF Energy 1 Ltd,V1011387,17/11/2022,63.94,R & B Transformation 2,Premises Expenses,G51057/B102,Housing OP and SN,Electricity
Ashfield District Council,37UB,EDF Energy 1 Ltd,V1011387,17/11/2022,212.34,R & B Transformation 2,Premises Expenses,G51023/B102,Housing OP and SN,Electricity
Ashfield District Council,37UB,EDF Energy 1 Ltd,V1011387,17/11/2022,182.26,R & B Transformation 2,Premises Expenses,G51023/B102,Housing OP and SN,Electricity
Ashfield District Council,37UB,EDF Energy 1 Ltd,V1011387,17/11/2022,34.79,R & B Transformation 2,Premises Expenses,G51036/B102,Housing OP and SN,Electricity
Ashfield District Council,37UB,EDF Energy 1 Ltd,V1011387,17/11/2022,16.79,R & B Transformation 2,Premises Expenses,G51054/B102,Housing OP and SN,Electricity
Ashfield District Council,37UB,EDF Energy 1 Ltd,V1011387,17/11/2022,59.13,R & B Transformation 2,Premises Expenses,G51017/B102,Housing OP and SN,Electricity
Ashfield District Council,37UB,EDF Energy 1 Ltd,V1011387,17/11/2022,25.16,R & B Transformation 2,Premises Expenses,G51021/B102,Housing OP and SN,Electricity
Ashfield District Council,37UB,EDF Energy 1 Ltd,V1011387,17/11/2022,53.58,R & B Transformation 2,Premises Expenses,G51035/B102,Housing OP and SN,Electricity
Ashfield District Council,37UB,EDF Energy 1 Ltd,V1011387,17/11/2022,32.48,R & B Transformation 2,Premises Expenses,G51041/B102,Housing OP and SN,Electricity
Ashfield District Council,37UB,EDF Energy 1 Ltd,V1011387,17/11/2022,45.48,R & B Transformation 2,Premises Expenses,G51048/B102,Housing OP and SN,Electricity
Ashfield District Council,37UB,EDF Energy 1 Ltd,V1010698,24/11/2022,2107.78,R & B Transformation 2,Premises Expenses,G51026/B102,Housing OP and SN,Electricity
Ashfield District Council,37UB,Severn Trent Water Ltd,V1009359,03/11/2022,529.28,R & B Transformation 2,Premises Expenses,G51013/B401,Housing OP and SN,Water rates
Ashfield District Council,37UB,Amazon Payments UK Ltd,V1010652,10/11/2022,28.32,Housing & Assets 2,Central & Dept Recharges,G23100004/G548,Housing Revenue Account,Building Cleaning
Ashfield District Council,37UB,Chartered Institute of Housing,V1012264,24/11/2022,368.00,Housing & Assets 2,Supplies & Services,G23000/D201007,Housing Revenue Account,Membership/Subscriptions
Ashfield District Council,37UB,D.P.Tool Hire,V1012237,24/11/2022,279.99,Housing & Assets 2,Supplies & Services,G23011/D001001,Housing Revenue Account,Equipment Purchase
Ashfield District Council,37UB,Excel Cleaning Solutions Ltd,V1010588,03/11/2022,7.50,Housing & Assets 2,Premises Expenses,G23011005/B003004,Housing Revenue Account,Cleaning
Ashfield District Council,37UB,Excel Cleaning Solutions Ltd,V1010588,03/11/2022,7.50,Housing & Assets 2,Premises Expenses,G23011020/B003004,Housing Revenue Account,Cleaning
Ashfield District Council,37UB,Excel Cleaning Solutions Ltd,V1010588,03/11/2022,7.50,Housing & Assets 2,Premises Expenses,G23011002/B003004,Housing Revenue Account,Cleaning
Ashfield District Council,37UB,Excel Cleaning Solutions Ltd,V1010588,03/11/2022,7.50,Housing & Assets 2,Premises Expenses,G23011013/B003004,Housing Revenue Account,Cleaning
Ashfield District Council,37UB,Excel Cleaning Solutions Ltd,V1010588,03/11/2022,8.00,Housing & Assets 2,Premises Expenses,G23011018/B003004,Housing Revenue Account,Cleaning
Ashfield District Council,37UB,Excel Cleaning Solutions Ltd,V1010588,03/11/2022,7.50,Housing & Assets 2,Premises Expenses,G23011003/B003004,Housing Revenue Account,Cleaning
Ashfield District Council,37UB,Excel Cleaning Solutions Ltd,V1010588,03/11/2022,7.50,Housing & Assets 2,Premises Expenses,G23011001/B003004,Housing Revenue Account,Cleaning
Ashfield District Council,37UB,Excel Cleaning Solutions Ltd,V1010588,03/11/2022,8.00,Housing & Assets 2,Premises Expenses,G23011007/B003004,Housing Revenue Account,Cleaning
Ashfield District Council,37UB,Excel Cleaning Solutions Ltd,V1010588,03/11/2022,7.50,Housing & Assets 2,Premises Expenses,G23011014/B003004,Housing Revenue Account,Cleaning
Ashfield District Council,37UB,Excel Cleaning Solutions Ltd,V1010588,03/11/2022,7.50,Housing & Assets 2,Premises Expenses,G23011004/B003004,Housing Revenue Account,Cleaning
Ashfield District Council,37UB,Excel Cleaning Solutions Ltd,V1010588,03/11/2022,8.00,Housing & Assets 2,Premises Expenses,G23011015/B003004,Housing Revenue Account,Cleaning
Ashfield District Council,37UB,Excel Cleaning Solutions Ltd,V1010588,03/11/2022,8.00,Housing & Assets 2,Premises Expenses,G23011019/B003004,Housing Revenue Account,Cleaning
Ashfield District Council,37UB,Excel Cleaning Solutions Ltd,V1010588,03/11/2022,7.50,Housing & Assets 2,Premises Expenses,G23011012/B003004,Housing Revenue Account,Cleaning
Ashfield District Council,37UB,Excel Cleaning Solutions Ltd,V1010590,03/11/2022,10.00,Housing & Assets 2,Premises Expenses,G23000/B003005,Housing Revenue Account,Window Cleaning
Ashfield District Council,37UB,Excel Cleaning Solutions Ltd,V1010590,03/11/2022,45.00,Housing & Assets 2,Premises Expenses,G23000/B003005,Housing Revenue Account,Window Cleaning
Ashfield District Council,37UB,Excel Cleaning Solutions Ltd,V1010590,03/11/2022,20.00,Housing & Assets 2,Premises Expenses,G23000/B003005,Housing Revenue Account,Window Cleaning
Ashfield District Council,37UB,Excel Cleaning Solutions Ltd,V1010590,03/11/2022,9.00,Housing & Assets 2,Premises Expenses,G23100003/B003005,Housing Revenue Account,Window Cleaning
Ashfield District Council,37UB,Excel Cleaning Solutions Ltd,V1010590,03/11/2022,7.50,Housing & Assets 2,Premises Expenses,G23100004/B003005,Housing Revenue Account,Window Cleaning
Ashfield District Council,37UB,Excel Cleaning Solutions Ltd,V1010590,03/11/2022,80.00,Housing & Assets 2,Premises Expenses,G23000/B003005,Housing Revenue Account,Window Cleaning
Ashfield District Council,37UB,Excel Cleaning Solutions Ltd,V1010590,03/11/2022,10.00,Housing & Assets 2,Premises Expenses,G23100006/B003005,Housing Revenue Account,Window Cleaning
Ashfield District Council,37UB,Excel Cleaning Solutions Ltd,V1010590,03/11/2022,54.00,Housing & Assets 2,Premises Expenses,G23000/B003005,Housing Revenue Account,Window Cleaning
Ashfield District Council,37UB,Excel Cleaning Solutions Ltd,V1010590,03/11/2022,54.00,Housing & Assets 2,Premises Expenses,G23000/B003005,Housing Revenue Account,Window Cleaning
Ashfield District Council,37UB,Excel Cleaning Solutions Ltd,V1010753,10/11/2022,54.00,Housing & Assets 2,Premises Expenses,G23000/B003005,Housing Revenue Account,Window Cleaning
Ashfield District Council,37UB,Excel Cleaning Solutions Ltd,V1010753,10/11/2022,10.00,Housing & Assets 2,Premises Expenses,G23000/B003005,Housing Revenue Account,Window Cleaning
Ashfield District Council,37UB,Excel Cleaning Solutions Ltd,V1010753,10/11/2022,45.00,Housing & Assets 2,Premises Expenses,G23000/B003005,Housing Revenue Account,Window Cleaning
Ashfield District Council,37UB,Excel Cleaning Solutions Ltd,V1010753,10/11/2022,7.50,Housing & Assets 2,Premises Expenses,G23100004/B003005,Housing Revenue Account,Window Cleaning
Ashfield District Council,37UB,Excel Cleaning Solutions Ltd,V1010753,10/11/2022,80.00,Housing & Assets 2,Premises Expenses,G23000/B003005,Housing Revenue Account,Window Cleaning
Ashfield District Council,37UB,Excel Cleaning Solutions Ltd,V1010753,10/11/2022,20.00,Housing & Assets 2,Premises Expenses,G23000/B003005,Housing Revenue Account,Window Cleaning
Ashfield District Council,37UB,Excel Cleaning Solutions Ltd,V1010753,10/11/2022,20.00,Housing & Assets 2,Premises Expenses,G23100006/B003005,Housing Revenue Account,Window Cleaning
Ashfield District Council,37UB,Excel Cleaning Solutions Ltd,V1010757,10/11/2022,7.50,Housing & Assets 2,Premises Expenses,G23011014/B003004,Housing Revenue Account,Cleaning
Ashfield District Council,37UB,Excel Cleaning Solutions Ltd,V1010757,10/11/2022,7.50,Housing & Assets 2,Premises Expenses,G23011013/B003004,Housing Revenue Account,Cleaning
Ashfield District Council,37UB,Excel Cleaning Solutions Ltd,V1010757,10/11/2022,7.50,Housing & Assets 2,Premises Expenses,G23011005/B003004,Housing Revenue Account,Cleaning
Ashfield District Council,37UB,Excel Cleaning Solutions Ltd,V1010757,10/11/2022,7.50,Housing & Assets 2,Premises Expenses,G23011003/B003004,Housing Revenue Account,Cleaning
Ashfield District Council,37UB,Excel Cleaning Solutions Ltd,V1010757,10/11/2022,8.00,Housing & Assets 2,Premises Expenses,G23011019/B003004,Housing Revenue Account,Cleaning
Ashfield District Council,37UB,Excel Cleaning Solutions Ltd,V1010757,10/11/2022,8.00,Housing & Assets 2,Premises Expenses,G23011015/B003004,Housing Revenue Account,Cleaning
Ashfield District Council,37UB,Excel Cleaning Solutions Ltd,V1010757,10/11/2022,7.50,Housing & Assets 2,Premises Expenses,G23011002/B003004,Housing Revenue Account,Cleaning
Ashfield District Council,37UB,Excel Cleaning Solutions Ltd,V1010757,10/11/2022,7.50,Housing & Assets 2,Premises Expenses,G23011020/B003004,Housing Revenue Account,Cleaning
Ashfield District Council,37UB,Excel Cleaning Solutions Ltd,V1010757,10/11/2022,8.00,Housing & Assets 2,Premises Expenses,G23011007/B003004,Housing Revenue Account,Cleaning
Ashfield District Council,37UB,Excel Cleaning Solutions Ltd,V1010757,10/11/2022,7.50,Housing & Assets 2,Premises Expenses,G23011012/B003004,Housing Revenue Account,Cleaning
Ashfield District Council,37UB,Excel Cleaning Solutions Ltd,V1010757,10/11/2022,7.50,Housing & Assets 2,Premises Expenses,G23011001/B003004,Housing Revenue Account,Cleaning
Ashfield District Council,37UB,Excel Cleaning Solutions Ltd,V1010757,10/11/2022,8.00,Housing & Assets 2,Premises Expenses,G23011018/B003004,Housing Revenue Account,Cleaning
Ashfield District Council,37UB,OVO Energy,V1010546,03/11/2022,23.54,Housing & Assets 2,Premises Expenses,G23011044/B102,Housing Revenue Account,Electricity
Ashfield District Council,37UB,OVO Energy,V1010546,03/11/2022,9.41,Housing & Assets 2,Premises Expenses,G23011044/B101,Housing Revenue Account,Gas
Ashfield District Council,37UB,PHS Group Plc,V1008660,03/11/2022,-70.98,Housing & Assets 2,Supplies & Services,G23100003/D002002,Housing Revenue Account,Ladies Disposal Machine Maintenance
Ashfield District Council,37UB,PHS Group Plc,V1008666,03/11/2022,98.70,Housing & Assets 2,Supplies & Services,G23100004/D002002,Housing Revenue Account,Ladies Disposal Machine Maintenance
Ashfield District Council,37UB,PHS Group Plc,V1008672,03/11/2022,114.90,Housing & Assets 2,Supplies & Services,G23100007/D002002,Housing Revenue Account,Ladies Disposal Machine Maintenance
Ashfield District Council,37UB,PHS Group Plc,V1008678,03/11/2022,82.50,Housing & Assets 2,Supplies & Services,G23100003/D002002,Housing Revenue Account,Ladies Disposal Machine Maintenance
Ashfield District Council,37UB,PPL PRS Ltd,V1004554,10/11/2022,3504.12,Housing & Assets 2,Supplies & Services,G23100/D200014,Housing Revenue Account,Licences
Ashfield District Council,37UB,Taft Plumbing and Heating LLP,V1009543,03/11/2022,128.00,Housing & Assets 2,Premises Expenses,G23100002/B001001,Housing Revenue Account,General Repairs Asset Maintenance
Ashfield District Council,37UB,Bevan Brittan,V1009429,03/11/2022,537.60,Legal & Governance 2,Supplies & Services,G23000/D200004,Housing Revenue Account,Legal Expenses
Ashfield District Council,37UB,St Philips Barristers,V1009430,03/11/2022,3800.00,Legal & Governance 2,Supplies & Services,G23000/D200004,Housing Revenue Account,Legal Expenses
Ashfield District Council,37UB,British Gas Business,V1009592,03/11/2022,64.21,R & B Transformation 2,Premises Expenses,G23011051/B101,Housing Revenue Account,Gas
Ashfield District Council,37UB,British Gas Business,V1009592,03/11/2022,116.62,R & B Transformation 2,Premises Expenses,G23011001/B101,Housing Revenue Account,Gas
Ashfield District Council,37UB,British Gas Business,V1009592,03/11/2022,128.99,R & B Transformation 2,Premises Expenses,G23011034/B101,Housing Revenue Account,Gas
Ashfield District Council,37UB,British Gas Business,V1009592,03/11/2022,164.68,R & B Transformation 2,Premises Expenses,G23011040/B101,Housing Revenue Account,Gas
Ashfield District Council,37UB,British Gas Business,V1009592,03/11/2022,147.99,R & B Transformation 2,Premises Expenses,G23011005/B101,Housing Revenue Account,Gas
Ashfield District Council,37UB,British Gas Business,V1009592,03/11/2022,245.40,R & B Transformation 2,Premises Expenses,G23011004/B101,Housing Revenue Account,Gas
Ashfield District Council,37UB,British Gas Business,V1009592,03/11/2022,43.87,R & B Transformation 2,Premises Expenses,G23011055/B101,Housing Revenue Account,Gas
Ashfield District Council,37UB,British Gas Business,V1009592,03/11/2022,143.59,R & B Transformation 2,Premises Expenses,G23011014/B101,Housing Revenue Account,Gas
Ashfield District Council,37UB,British Gas Business,V1009592,03/11/2022,143.59,R & B Transformation 2,Premises Expenses,G23011015/B101,Housing Revenue Account,Gas
Ashfield District Council,37UB,British Gas Business,V1009592,03/11/2022,67.66,R & B Transformation 2,Premises Expenses,G23011041/B101,Housing Revenue Account,Gas
Ashfield District Council,37UB,British Gas Business,V1009592,03/11/2022,38.20,R & B Transformation 2,Premises Expenses,G23011030/B101,Housing Revenue Account,Gas
Ashfield District Council,37UB,British Gas Business,V1009592,03/11/2022,159.28,R & B Transformation 2,Premises Expenses,G23011038/B101,Housing Revenue Account,Gas
Ashfield District Council,37UB,British Gas Business,V1009592,03/11/2022,216.02,R & B Transformation 2,Premises Expenses,G23011016/B101,Housing Revenue Account,Gas
Ashfield District Council,37UB,British Gas Business,V1009592,03/11/2022,190.62,R & B Transformation 2,Premises Expenses,G23011002/B101,Housing Revenue Account,Gas
Ashfield District Council,37UB,British Gas Business,V1009592,03/11/2022,290.74,R & B Transformation 2,Premises Expenses,G23011007/B101,Housing Revenue Account,Gas
Ashfield District Council,37UB,British Gas Business,V1009592,03/11/2022,79.90,R & B Transformation 2,Premises Expenses,G23011020/B101,Housing Revenue Account,Gas
Ashfield District Council,37UB,British Gas Business,V1009592,03/11/2022,63.09,R & B Transformation 2,Premises Expenses,G23011033/B101,Housing Revenue Account,Gas
Ashfield District Council,37UB,British Gas Business,V1009592,03/11/2022,103.43,R & B Transformation 2,Premises Expenses,G23011046/B101,Housing Revenue Account,Gas
Ashfield District Council,37UB,British Gas Business,V1009592,03/11/2022,23.60,R & B Transformation 2,Premises Expenses,G23011036/B101,Housing Revenue Account,Gas
Ashfield District Council,37UB,British Gas Business,V1009592,03/11/2022,311.15,R & B Transformation 2,Premises Expenses,G23011035/B101,Housing Revenue Account,Gas
Ashfield District Council,37UB,British Gas Business,V1009592,03/11/2022,243.33,R & B Transformation 2,Premises Expenses,G23011029/B101,Housing Revenue Account,Gas
Ashfield District Council,37UB,British Gas Business,V1009593,03/11/2022,131.31,R & B Transformation 2,Premises Expenses,G23011002/B102,Housing Revenue Account,Electricity
Ashfield District Council,37UB,British Gas Business,V1009593,03/11/2022,176.34,R & B Transformation 2,Premises Expenses,G23011016/B102,Housing Revenue Account,Electricity
Ashfield District Council,37UB,British Gas Business,V1009593,03/11/2022,53.55,R & B Transformation 2,Premises Expenses,G23011029/B102,Housing Revenue Account,Electricity
Ashfield District Council,37UB,British Gas Business,V1009593,03/11/2022,127.62,R & B Transformation 2,Premises Expenses,G23011046/B102,Housing Revenue Account,Electricity
Ashfield District Council,37UB,British Gas Business,V1009593,03/11/2022,151.41,R & B Transformation 2,Premises Expenses,G23011036/B102,Housing Revenue Account,Electricity
Ashfield District Council,37UB,British Gas Business,V1009593,03/11/2022,74.07,R & B Transformation 2,Premises Expenses,G23011041/B102,Housing Revenue Account,Electricity
Ashfield District Council,37UB,British Gas Business,V1009593,03/11/2022,54.53,R & B Transformation 2,Premises Expenses,G23011030/B102,Housing Revenue Account,Electricity
Ashfield District Council,37UB,British Gas Business,V1009593,03/11/2022,166.64,R & B Transformation 2,Premises Expenses,G23011040/B102,Housing Revenue Account,Electricity
Ashfield District Council,37UB,British Gas Business,V1009593,03/11/2022,126.80,R & B Transformation 2,Premises Expenses,G23011015/B102,Housing Revenue Account,Electricity
Ashfield District Council,37UB,British Gas Business,V1009593,03/11/2022,49.19,R & B Transformation 2,Premises Expenses,G23011051/B102,Housing Revenue Account,Electricity
Ashfield District Council,37UB,British Gas Business,V1009593,03/11/2022,215.55,R & B Transformation 2,Premises Expenses,G23011014/B102,Housing Revenue Account,Electricity
Ashfield District Council,37UB,British Gas Business,V1009593,03/11/2022,93.08,R & B Transformation 2,Premises Expenses,G23011001/B102,Housing Revenue Account,Electricity
Ashfield District Council,37UB,British Gas Business,V1009593,03/11/2022,213.98,R & B Transformation 2,Premises Expenses,G23011032/B102,Housing Revenue Account,Electricity
Ashfield District Council,37UB,British Gas Business,V1009593,03/11/2022,29.56,R & B Transformation 2,Premises Expenses,G23011013/B102,Housing Revenue Account,Electricity
Ashfield District Council,37UB,British Gas Business,V1009593,03/11/2022,40.30,R & B Transformation 2,Premises Expenses,G23011055/B102,Housing Revenue Account,Electricity
Ashfield District Council,37UB,British Gas Business,V1009593,03/11/2022,84.99,R & B Transformation 2,Premises Expenses,G23011034/B102,Housing Revenue Account,Electricity
Ashfield District Council,37UB,British Gas Business,V1009593,03/11/2022,123.94,R & B Transformation 2,Premises Expenses,G23011007/B102,Housing Revenue Account,Electricity
Ashfield District Council,37UB,British Gas Business,V1009593,03/11/2022,60.90,R & B Transformation 2,Premises Expenses,G23011038/B102,Housing Revenue Account,Electricity
Ashfield District Council,37UB,British Gas Business,V1009593,03/11/2022,61.99,R & B Transformation 2,Premises Expenses,G23011005/B102,Housing Revenue Account,Electricity
Ashfield District Council,37UB,British Gas Business,V1009593,03/11/2022,139.16,R & B Transformation 2,Premises Expenses,G23011004/B102,Housing Revenue Account,Electricity
Ashfield District Council,37UB,British Gas Business,V1009593,03/11/2022,93.18,R & B Transformation 2,Premises Expenses,G23011035/B102,Housing Revenue Account,Electricity
Ashfield District Council,37UB,British Gas Business,V1009593,03/11/2022,62.05,R & B Transformation 2,Premises Expenses,G23011003/B102,Housing Revenue Account,Electricity
Ashfield District Council,37UB,British Gas Trading Limited,V1011424,17/11/2022,233.11,R & B Transformation 2,Premises Expenses,G23011052/B102,Housing Revenue Account,Electricity
Ashfield District Council,37UB,British Gas Trading Limited,V1011424,17/11/2022,58.88,R & B Transformation 2,Premises Expenses,G23011052/B101,Housing Revenue Account,Gas
Ashfield District Council,37UB,Castle Water Ltd,V1007987,10/11/2022,25.65,R & B Transformation 2,Premises Expenses,G23100007/B401,Housing Revenue Account,Water rates
Ashfield District Council,37UB,Castle Water Ltd,V1007987,10/11/2022,20.08,R & B Transformation 2,Premises Expenses,G23100002/B401,Housing Revenue Account,Water rates
Ashfield District Council,37UB,Castle Water Ltd,V1007987,10/11/2022,17.11,R & B Transformation 2,Premises Expenses,G23100006/B401,Housing Revenue Account,Water rates
Ashfield District Council,37UB,Castle Water Ltd,V1007987,10/11/2022,10.48,R & B Transformation 2,Premises Expenses,G23100003/B401,Housing Revenue Account,Water rates
Ashfield District Council,37UB,Castle Water Ltd,V1007987,10/11/2022,43.88,R & B Transformation 2,Premises Expenses,G23100004/B401,Housing Revenue Account,Water rates
Ashfield District Council,37UB,Castle Water Ltd,V1010653,10/11/2022,20.66,R & B Transformation 2,Premises Expenses,G23100006/B401,Housing Revenue Account,Water rates
Ashfield District Council,37UB,Castle Water Ltd,V1010653,10/11/2022,8.02,R & B Transformation 2,Premises Expenses,G23100003/B401,Housing Revenue Account,Water rates
Ashfield District Council,37UB,Castle Water Ltd,V1010653,10/11/2022,29.10,R & B Transformation 2,Premises Expenses,G23100007/B401,Housing Revenue Account,Water rates
Ashfield District Council,37UB,Castle Water Ltd,V1010653,10/11/2022,41.76,R & B Transformation 2,Premises Expenses,G23100004/B401,Housing Revenue Account,Water rates
Ashfield District Council,37UB,Castle Water Ltd,V1010653,10/11/2022,23.49,R & B Transformation 2,Premises Expenses,G23100002/B401,Housing Revenue Account,Water rates
Ashfield District Council,37UB,Daisy Telecoms Ltd,V1010645,17/11/2022,16.69,R & B Transformation 2,Premises Expenses,G23100004/B003026,Housing Revenue Account,Radio Controlled /Radio Equipment
Ashfield District Council,37UB,Daisy Telecoms Ltd,V1010645,17/11/2022,16.69,R & B Transformation 2,Premises Expenses,G23100006/B003026,Housing Revenue Account,Radio Controlled /Radio Equipment
Ashfield District Council,37UB,Daisy Telecoms Ltd,V1010645,17/11/2022,16.69,R & B Transformation 2,Premises Expenses,G23100007/B003026,Housing Revenue Account,Radio Controlled /Radio Equipment
Ashfield District Council,37UB,Daisy Telecoms Ltd,V1010650,17/11/2022,93.95,R & B Transformation 2,Supplies & Services,G23100007/d301002,Housing Revenue Account,Telephones
Ashfield District Council,37UB,Daisy Telecoms Ltd,V1010650,17/11/2022,39.86,R & B Transformation 2,Supplies & Services,G23100002/d301002,Housing Revenue Account,Telephones
Ashfield District Council,37UB,e.on Next,V1009357,03/11/2022,1.87,R & B Transformation 2,Premises Expenses,G23011050/B102,Housing Revenue Account,Electricity
Ashfield District Council,37UB,e.on Next,V1011248,17/11/2022,226.84,R & B Transformation 2,Premises Expenses,G23011045/B101,Housing Revenue Account,Gas
Ashfield District Council,37UB,e.on Next,V1011765,18/11/2022,164.74,R & B Transformation 2,Premises Expenses,G23011050/B101,Housing Revenue Account,Gas
Ashfield District Council,37UB,EDF Energy 1 Ltd,V1011216,10/11/2022,172.09,R & B Transformation 2,Premises Expenses,G23011039/B102,Housing Revenue Account,Electricity
Ashfield District Council,37UB,EDF Energy 1 Ltd,V1011217,10/11/2022,528.94,R & B Transformation 2,Premises Expenses,G23011039/B101,Housing Revenue Account,Gas
Ashfield District Council,37UB,EDF Energy 1 Ltd,V1011387,17/11/2022,95.62,R & B Transformation 2,Premises Expenses,G23100007/B102,Housing Revenue Account,Electricity
Ashfield District Council,37UB,EDF Energy 1 Ltd,V1011387,17/11/2022,161.66,R & B Transformation 2,Premises Expenses,G23100003/B102,Housing Revenue Account,Electricity
Ashfield District Council,37UB,EDF Energy 1 Ltd,V1011387,17/11/2022,233.69,R & B Transformation 2,Premises Expenses,G23100004/B102,Housing Revenue Account,Electricity
Ashfield District Council,37UB,EDF Energy 1 Ltd,V1011387,17/11/2022,49.93,R & B Transformation 2,Premises Expenses,G23100006/B102,Housing Revenue Account,Electricity
Ashfield District Council,37UB,OVO Energy,V1009367,03/11/2022,127.17,R & B Transformation 2,Premises Expenses,G23011044/b101,Housing Revenue Account,Gas
Ashfield District Council,37UB,OVO Energy,V1009367,03/11/2022,33.85,R & B Transformation 2,Premises Expenses,G23011044/b102,Housing Revenue Account,Electricity
Ashfield District Council,37UB,Paul Rotherham Surveying,V1011513,21/11/2022,381.00,R & B Transformation 2,Supplies & Services,G23000/D200004,Housing Revenue Account,Legal Expenses
Ashfield District Council,37UB,Paul Rotherham Surveying,V1012216,28/11/2022,388.00,R & B Transformation 2,Supplies & Services,G23000/D200004,Housing Revenue Account,Legal Expenses
Ashfield District Council,37UB,Paul Rotherham Surveying,V1012217,28/11/2022,463.00,R & B Transformation 2,Supplies & Services,G23000/D200004,Housing Revenue Account,Legal Expenses
Ashfield District Council,37UB,Scottish Power,V1011459,17/11/2022,99.48,R & B Transformation 2,Premises Expenses,G23011020/B102,Housing Revenue Account,Electricity
Ashfield District Council,37UB,Severn Trent Water Ltd,V1010594,10/11/2022,330.70,R & B Transformation 2,Premises Expenses,G23011002/B401,Housing Revenue Account,Water rates
Ashfield District Council,37UB,Severn Trent Water Ltd,V1010595,10/11/2022,101.97,R & B Transformation 2,Premises Expenses,G23011020/B401,Housing Revenue Account,Water rates
Ashfield District Council,37UB,Severn Trent Water Ltd,V1010596,10/11/2022,254.79,R & B Transformation 2,Premises Expenses,G23011034/B401,Housing Revenue Account,Water rates
